Workbook

Sheet Select an authority
A1: 15
A2: Selecting an Authority and its Standard Comparator Authorities
A3: PLEASE REMEMBER TO 'ENABLE MACROS' - | E3: Please select a Local Authority:
A4: THEY MAY HAVE BEEN DISABLED.
A5: Last updated: 24/09/2020
A7: Instructions on how to use this workbook available at:-
A8: LA Level Statistics - Child Protection - User Instructions
A9: Child Protection publications can be found at:-
A10: Children's Social Work Statistics
A11: To help comparisons between local authorities, we have used the comparators as calculated by HMIE in 2003.
A13: These were determined by comparing a number of statistical measures between education authorities, such as unemployment rates, looked after children rates, % owner-occupied properties etc. In order to determine the weight that can be given to comparisons between the local authority and its group, a star rating was introduced which indicates the ‘closeness’ of a particular authority to each member; five stars indicating extremely close and one star indicating not close:
A20: ***** | B20: Extremely Close
A21: **** | B21: Very Close
A22: *** | B22: Close
A23: ** | B23: Somewhat Close
A24: * | B24: Not close
A26: =OFFSET('REF EA Name'!B35,'Select an authority'!A1,0) -> 0
A28: Comparators | B28: Rating | D28: Note: Caution should be exercised when making comparisons with comparator authority averages if there are a number of authorities that are not extremely or very close.
A29: =OFFSET('REF CAS2'!$C$1,'Select an authority'!$A$1,0) -> Dundee City | B29: =OFFSET('REF CAS2'!$D$1,'Select an authority'!$A$1,0) -> ***
A30: =OFFSET('REF CAS2'!$E$1,'Select an authority'!$A$1,0) -> West Dunbartonshire | B30: =OFFSET('REF CAS2'!$F$1,'Select an authority'!$A$1,0) -> ***
A31: =OFFSET('REF CAS2'!$G$1,'Select an authority'!$A$1,0) -> Inverclyde | B31: =OFFSET('REF CAS2'!$H$1,'Select an authority'!$A$1,0) -> ***
A32: =OFFSET('REF CAS2'!$I$1,'Select an authority'!$A$1,0) -> Aberdeen City | B32: =OFFSET('REF CAS2'!$J$1,'Select an authority'!$A$1,0) -> ***
A33: =OFFSET('REF CAS2'!$K$1,'Select an authority'!$A$1,0) -> Renfrewshire | B33: =OFFSET('REF CAS2'!$L$1,'Select an authority'!$A$1,0) -> ***

Sheet CP conferences
A1: ='DATA CP CON'!A1 -> Child Protection: Conferences: 31 July 2013-2019
C2: select comparators:
B3: =J3 -> 8 | J3: =VLOOKUP('Select an authority'!$A$1,'REF CAs'!$A$1:$F$32,2,0) -> 8
B4: =J4 -> 31 | J4: =VLOOKUP('Select an authority'!$A$1,'REF CAs'!$A$1:$F$32,3,0) -> 31
B5: =J5 -> 17 | J5: =VLOOKUP('Select an authority'!$A$1,'REF CAs'!$A$1:$F$32,4,0) -> 17
B6: 1 | J6: =VLOOKUP('Select an authority'!$A$1,'REF CAs'!$A$1:$F$32,5,0) -> 1
B7: 25 | J7: =VLOOKUP('Select an authority'!$A$1,'REF CAs'!$A$1:$F$32,6,0) -> 25
B8: 0
B12: =IF(AA22="*","[text statement not available due to suppression of data for confidentiality]",IF(Z22="","[text statement not available due to suppression of data for confidentiality]","* The number of referrals resulted in a case conference in "&B22&" in "&AA20&" was "&ROUND(AA22,0)&" ("&Z47&ROUND((SQRT((Z22*100)^2)),1)&"% from "&ROUND(W22,0)&" in "&W20&")")) -> * The number of referrals resulted in a case conference in Glasgow City in 2019 was 708 (an increase of 6% from 668 in 2018)
B14: =IF(Z31="","[text statement not available due to suppression of data for confidentiality]","* The comparator authorities show "&Z49&ROUND(SQRT((Z31*100)^2),1)&"%, while the Scotland figures show "&Z50&ROUND(SQRT((100*Z33)^2),1)&"%") -> * The comparator authorities show an increase of 6.6%, while the Scotland figures show a decrease of 2.3%
B16: =IF(AC22="*","[text statement not available due to suppression of data for confidentiality]",IF(AC31="*","[text statement not available due to suppression of data for confidentiality]","* The rate (per 1,000 pop 0-15) is "&ROUND(AC22,1)&". This is "&AD43&" the comparator average rate of "&ROUND(AC31,1)&", and "&AD44&" the Scotland average rate of "&ROUND(AC33,1))) -> * The rate (per 1,000 pop 0-15) is 7. This is less than the comparator average rate of 7.6, and greater than the Scotland average rate of 6
C20: ='DATA CP CON'!B5 -> 2013 | G20: ='DATA CP CON'!C5 -> 2014 | K20: ='DATA CP CON'!D5 -> 2015 | O20: ='DATA CP CON'!E5 -> 2016 | S20: ='DATA CP CON'!F5 -> 2017 | W20: ='DATA CP CON'!G5 -> 2018 | AA20: ='DATA CP CON'!H5 -> 2019
C21: number | D21: population 0-17 (2001) | E21: rate | F21: % change | G21: number | H21: population 0-17 (2001) | I21: rate | J21: % change | K21: number | L21: population 0-17 (2001) | M21: rate | N21: % change | O21: number | P21: population 0-17 (2001) | Q21: rate | R21: % change | S21: number | T21: population 0-17 (2001) | U21: rate | V21: % change | W21: number | X21: population 0-17 (2001) | Y21: rate | Z21: % change | AA21: number | AB21: population 0-17 (2001) | AC21: rate | AD21: quartile
B22: =OFFSET('REF EA Name'!$B$2,'Select an authority'!$A$1,0) -> Glasgow City | C22: =OFFSET('DATA CP CON'!$B$5,'Select an authority'!$A$1,0) -> 878 | E22: =IF(C22="*","*",OFFSET('DATA CP CON'!$S$5,'Select an authority'!$A$1,0)) -> 9.103445416 | F22: =IF(C22=0,"",IF(C22="*","",IF(G22="*","",G22/C22-1))) -> -0.1138952164 | G22: =OFFSET('DATA CP CON'!$C$5,'Select an authority'!$A$1,0) -> 778 | I22: =IF(G22="*","",OFFSET('DATA CP CON'!$T$5,'Select an authority'!$A$1,0)) -> 8.044752815 | J22: =IF(G22=0,"",IF(G22="*","",IF(K22="*","",K22/G22-1))) -> 0.5102827763 | K22: =OFFSET('DATA CP CON'!$D$5,'Select an authority'!$A$1,0) -> 1175 | M22: =IF(K22="*","",OFFSET('DATA CP CON'!$U$5,'Select an authority'!$A$1,0)) -> 12.04732806 | N22: =IF(K22=0,"",IF(K22="*","",IF(O22="*","",O22/K22-1))) -> -0.1736170213 | O22: =OFFSET('DATA CP CON'!$E$5,'Select an authority'!$A$1,0) -> 971 | Q22: =IF(O22="*","",OFFSET('DATA CP CON'!$V$5,'Select an authority'!$A$1,0)) -> 9.85916923 | R22: =IF(O22=0,"",IF(O22="*","",IF(S22="*","",S22/O22-1))) -> -0.2080329557 | S22: =OFFSET('DATA CP CON'!$F$5,'Select an authority'!$A$1,0) -> 769 | U22: =IF(S22="*","",OFFSET('DATA CP CON'!$W$5,'Select an authority'!$A$1,0)) -> 7.756942413 | V22: =IF(S22=0,"",IF(S22="*","",IF(W22="*","",W22/S22-1))) -> -0.1313394018 | W22: =OFFSET('DATA CP CON'!$G$5,'Select an authority'!$A$1,0) -> 668 | Y22: =IF(W22="*","",OFFSET('DATA CP CON'!$X$5,'Select an authority'!$A$1,0)) -> 6.684144169 | Z22: =IF(W22=0,"",IF(W22="*","",IF(AA22="*","",AA22/W22-1))) -> 0.05988023952 | AA22: =OFFSET('DATA CP CON'!$H$5,'Select an authority'!$A$1,0) -> 708 | AC22: =IF(AA22="*","",OFFSET('DATA CP CON'!$Y$5,'Select an authority'!$A$1,0)) -> 7.03315916 | AD22: =IF(RANK(AC22,'DATA CP CON'!$Y$6:$Y$37)<9,1,IF(RANK(AC22,'DATA CP CON'!$Y$6:$Y$37)<17,2,IF(RANK(AC22,'DATA CP CON'!$Y$6:$Y$37)<25,3,4))) -> 2
A24: Comparator Authorities:
B25: =OFFSET('REF EA Name'!$B$2, B3,0) -> Dundee City | C25: =IF(B3<33,OFFSET('DATA CP CON'!$B$5,B3,0),"") -> 160 | D25: =OFFSET('DATA CP CON'!$J$5,B3,0) -> 23753 | E25: =IF($B3=33,"",IF(C25="*","",C25*1000/D25)) -> 6.735991243 | F25: =IF($B3=33,"",IF(C25="*","",IF(G25="*","",G25/C25-1))) -> -0.05 | G25: =IF(B3<33,OFFSET('DATA CP CON'!$C$5,B3,0),"") -> 152 | H25: =OFFSET('DATA CP CON'!$K$5,B3,0) -> 23716 | I25: =IF($B3=33,"",IF(G25="*","",G25*1000/H25)) -> 6.40917524 | J25: =IF($B3=33,"",IF(G25="*","",IF(K25="*","",K25/G25-1))) -> 0.06578947368 | K25: =IF(B3<33,OFFSET('DATA CP CON'!$D$5,B3,0),"") -> 162 | L25: =OFFSET('DATA CP CON'!$L$5,B3,0) -> 23798 | M25: =IF($B3=33,"",IF(K25="*","",K25*1000/L25)) -> 6.807294731 | N25: =IF($B3=33,"",IF(K25="*","",IF(O25="*","",O25/K25-1))) -> 0.07407407407 | O25: =IF(B3<33,OFFSET('DATA CP CON'!$E$5,B3,0),"") -> 174 | P25: =OFFSET('DATA CP CON'!$M$5,B3,0) -> 23849 | Q25: =IF($B3=33,"",IF(O25="*","",O25*1000/P25)) -> 7.295903392 | R25: =IF($B3=33,"",IF(O25="*","",IF(S25="*","",S25/O25-1))) -> -0.1264367816 | S25: =IF(B3<33,OFFSET('DATA CP CON'!$F$5,B3,0),"") -> 152 | T25: =OFFSET('DATA CP CON'!$N$5,B3,0) -> 23998 | U25: =IF($B3=33,"",IF(S25="*","",S25*1000/T25)) -> 6.333861155 | V25: =IF($B3=33,"",IF(S25="*","",IF(W25="*","",W25/S25-1))) -> 0.03289473684 | W25: =IF(B3<33,OFFSET('DATA CP CON'!$G$5,B3,0),"") -> 157 | X25: =OFFSET('DATA CP CON'!$O$5,B3,0) -> 24016 | Y25: =IF($B3=33,"",IF(W25="*","",W25*1000/X25)) -> 6.537308461 | Z25: =IF($B3=33,"",IF(W25="*","",IF(AA25="*","",AA25/W25-1))) -> 0.1464968153 | AA25: =IF(B3<33,OFFSET('DATA CP CON'!$H$5,B3,0),"") -> 180 | AB25: =OFFSET('DATA CP CON'!$P$5,B3,0) -> 24044 | AC25: =IF($B3=33,"",IF(AA25="*","",AA25*1000/AB25)) -> 7.486275162 | AD25: =IF(B3<33,IF(RANK(AC25,'DATA CP CON'!$Y$6:$Y$37)<9,1,IF(RANK(AC25,'DATA CP CON'!$Y$6:$Y$37)<17,2,IF(RANK(AC25,'DATA CP CON'!$Y$6:$Y$37)<25,3,4))),"") -> 1
B26: =OFFSET('REF EA Name'!$B$2,B4,0) -> West Dunbartonshire | C26: =IF(B4<33,OFFSET('DATA CP CON'!$B$5,B4,0),"") -> 129 | D26: =OFFSET('DATA CP CON'!$J$5,B4,0) -> 15782 | E26: =IF($B4=33,"",IF(C26="*","",C26*1000/D26)) -> 8.173868965 | F26: =IF($B4=33,"",IF(C26="*","",IF(G26="*","",G26/C26-1))) -> 0.04651162791 | G26: =IF(B4<33,OFFSET('DATA CP CON'!$C$5,B4,0),"") -> 135 | H26: =OFFSET('DATA CP CON'!$K$5,B4,0) -> 15698 | I26: =IF($B4=33,"",IF(G26="*","",G26*1000/H26)) -> 8.599821633 | J26: =IF($B4=33,"",IF(G26="*","",IF(K26="*","",K26/G26-1))) -> 0.02962962963 | K26: =IF(B4<33,OFFSET('DATA CP CON'!$D$5,B4,0),"") -> 139 | L26: =OFFSET('DATA CP CON'!$L$5,B4,0) -> 15709 | M26: =IF($B4=33,"",IF(K26="*","",K26*1000/L26)) -> 8.848430836 | N26: =IF($B4=33,"",IF(K26="*","",IF(O26="*","",O26/K26-1))) -> 0.1438848921 | O26: =IF(B4<33,OFFSET('DATA CP CON'!$E$5,B4,0),"") -> 159 | P26: =OFFSET('DATA CP CON'!$M$5,B4,0) -> 15764 | Q26: =IF($B4=33,"",IF(O26="*","",O26*1000/P26)) -> 10.08627252 | R26: =IF($B4=33,"",IF(O26="*","",IF(S26="*","",S26/O26-1))) -> 0.5786163522 | S26: =IF(B4<33,OFFSET('DATA CP CON'!$F$5,B4,0),"") -> 251 | T26: =OFFSET('DATA CP CON'!$N$5,B4,0) -> 15790 | U26: =IF($B4=33,"",IF(S26="*","",S26*1000/T26)) -> 15.8961368 | V26: =IF($B4=33,"",IF(S26="*","",IF(W26="*","",W26/S26-1))) -> -0.1195219124 | W26: =IF(B4<33,OFFSET('DATA CP CON'!$G$5,B4,0),"") -> 221 | X26: =OFFSET('DATA CP CON'!$O$5,B4,0) -> 15705 | Y26: =IF($B4=33,"",IF(W26="*","",W26*1000/X26)) -> 14.07195161 | Z26: =IF($B4=33,"",IF(W26="*","",IF(AA26="*","",AA26/W26-1))) -> -0.2624434389 | AA26: =IF(B4<33,OFFSET('DATA CP CON'!$H$5,B4,0),"") -> 163 | AB26: =OFFSET('DATA CP CON'!$P$5,B4,0) -> 15647 | AC26: =IF($B4=33,"",IF(AA26="*","",AA26*1000/AB26)) -> 10.4173324 | AD26: =IF(B4<33,IF(RANK(AC26,'DATA CP CON'!$Y$6:$Y$37)<9,1,IF(RANK(AC26,'DATA CP CON'!$Y$6:$Y$37)<17,2,IF(RANK(AC26,'DATA CP CON'!$Y$6:$Y$37)<25,3,4))),"") -> 1
B27: =OFFSET('REF EA Name'!$B$2,B5,0) -> Inverclyde | C27: =IF(B5<33,OFFSET('DATA CP CON'!$B$5,B5,0),"") -> 70 | D27: =OFFSET('DATA CP CON'!$J$5,B5,0) -> 13241 | E27: =IF($B5=33,"",IF(C27="*","",C27*1000/D27)) -> 5.286609773 | F27: =IF($B5=33,"",IF(C27="*","",IF(G27="*","",G27/C27-1))) -> 0.4428571429 | G27: =IF(B5<33,OFFSET('DATA CP CON'!$C$5,B5,0),"") -> 101 | H27: =OFFSET('DATA CP CON'!$K$5,B5,0) -> 13143 | I27: =IF($B5=33,"",IF(G27="*","",G27*1000/H27)) -> 7.684699079 | J27: =IF($B5=33,"",IF(G27="*","",IF(K27="*","",K27/G27-1))) -> 0.08910891089 | K27: =IF(B5<33,OFFSET('DATA CP CON'!$D$5,B5,0),"") -> 110 | L27: =OFFSET('DATA CP CON'!$L$5,B5,0) -> 12966 | M27: =IF($B5=33,"",IF(K27="*","",K27*1000/L27)) -> 8.48372667 | N27: =IF($B5=33,"",IF(K27="*","",IF(O27="*","",O27/K27-1))) -> -0.03636363636 | O27: =IF(B5<33,OFFSET('DATA CP CON'!$E$5,B5,0),"") -> 106 | P27: =OFFSET('DATA CP CON'!$M$5,B5,0) -> 12851 | Q27: =IF($B5=33,"",IF(O27="*","",O27*1000/P27)) -> 8.24838534 | R27: =IF($B5=33,"",IF(O27="*","",IF(S27="*","",S27/O27-1))) -> -0.1037735849 | S27: =IF(B5<33,OFFSET('DATA CP CON'!$F$5,B5,0),"") -> 95 | T27: =OFFSET('DATA CP CON'!$N$5,B5,0) -> 12701 | U27: =IF($B5=33,"",IF(S27="*","",S27*1000/T27)) -> 7.479726006 | V27: =IF($B5=33,"",IF(S27="*","",IF(W27="*","",W27/S27-1))) -> -0.2631578947 | W27: =IF(B5<33,OFFSET('DATA CP CON'!$G$5,B5,0),"") -> 70 | X27: =OFFSET('DATA CP CON'!$O$5,B5,0) -> 12628 | Y27: =IF($B5=33,"",IF(W27="*","",W27*1000/X27)) -> 5.543237251 | Z27: =IF($B5=33,"",IF(W27="*","",IF(AA27="*","",AA27/W27-1))) -> 0.3142857143 | AA27: =IF(B5<33,OFFSET('DATA CP CON'!$H$5,B5,0),"") -> 92 | AB27: =OFFSET('DATA CP CON'!$P$5,B5,0) -> 12603 | AC27: =IF($B5=33,"",IF(AA27="*","",AA27*1000/AB27)) -> 7.299849242 | AD27: =IF(B5<33,IF(RANK(AC27,'DATA CP CON'!$Y$6:$Y$37)<9,1,IF(RANK(AC27,'DATA CP CON'!$Y$6:$Y$37)<17,2,IF(RANK(AC27,'DATA CP CON'!$Y$6:$Y$37)<25,3,4))),"") -> 2
B28: =OFFSET('REF EA Name'!$B$2,B6,0) -> Aberdeen City | C28: =IF(B6<33,OFFSET('DATA CP CON'!$B$5,B6,0),"") -> 212 | D28: =OFFSET('DATA CP CON'!$J$5,B6,0) -> 33131 | E28: =IF($B6=33,"",IF(C28="*","",C28*1000/D28)) -> 6.398840965 | F28: =IF($B6=33,"",IF(C28="*","",IF(G28="*","",G28/C28-1))) -> 0.06132075472 | G28: =IF(B6<33,OFFSET('DATA CP CON'!$C$5,B6,0),"") -> 225 | H28: =OFFSET('DATA CP CON'!$K$5,B6,0) -> 33511 | I28: =IF($B6=33,"",IF(G28="*","",G28*1000/H28)) -> 6.714213243 | J28: =IF($B6=33,"",IF(G28="*","",IF(K28="*","",K28/G28-1))) -> -0.08888888889 | K28: =IF(B6<33,OFFSET('DATA CP CON'!$D$5,B6,0),"") -> 205 | L28: =OFFSET('DATA CP CON'!$L$5,B6,0) -> 33851 | M28: =IF($B6=33,"",IF(K28="*","",K28*1000/L28)) -> 6.05595108 | N28: =IF($B6=33,"",IF(K28="*","",IF(O28="*","",O28/K28-1))) -> -0.04390243902 | O28: =IF(B6<33,OFFSET('DATA CP CON'!$E$5,B6,0),"") -> 196 | P28: =OFFSET('DATA CP CON'!$M$5,B6,0) -> 34187 | Q28: =IF($B6=33,"",IF(O28="*","",O28*1000/P28)) -> 5.733173428 | R28: =IF($B6=33,"",IF(O28="*","",IF(S28="*","",S28/O28-1))) -> 0.04591836735 | S28: =IF(B6<33,OFFSET('DATA CP CON'!$F$5,B6,0),"") -> 205 | T28: =OFFSET('DATA CP CON'!$N$5,B6,0) -> 34495 | U28: =IF($B6=33,"",IF(S28="*","",S28*1000/T28)) -> 5.942890274 | V28: =IF($B6=33,"",IF(S28="*","",IF(W28="*","",W28/S28-1))) -> -0.1414634146 | W28: =IF(B6<33,OFFSET('DATA CP CON'!$G$5,B6,0),"") -> 176 | X28: =OFFSET('DATA CP CON'!$O$5,B6,0) -> 34833 | Y28: =IF($B6=33,"",IF(W28="*","",W28*1000/X28)) -> 5.05267993 | Z28: =IF($B6=33,"",IF(W28="*","",IF(AA28="*","",AA28/W28-1))) -> 0.1818181818 | AA28: =IF(B6<33,OFFSET('DATA CP CON'!$H$5,B6,0),"") -> 208 | AB28: =OFFSET('DATA CP CON'!$P$5,B6,0) -> 35423 | AC28: =IF($B6=33,"",IF(AA28="*","",AA28*1000/AB28)) -> 5.871891144 | AD28: =IF(B6<33,IF(RANK(AC28,'DATA CP CON'!$Y$6:$Y$37)<9,1,IF(RANK(AC28,'DATA CP CON'!$Y$6:$Y$37)<17,2,IF(RANK(AC28,'DATA CP CON'!$Y$6:$Y$37)<25,3,4))),"") -> 2
B29: =OFFSET('REF EA Name'!$B$2,B7,0) -> Renfrewshire | C29: =IF(B7<33,OFFSET('DATA CP CON'!$B$5,B7,0),"") -> 289 | D29: =OFFSET('DATA CP CON'!$J$5,B7,0) -> 30113 | E29: =IF($B7=33,"",IF(C29="*","",C29*1000/D29)) -> 9.59718394 | F29: =IF($B7=33,"",IF(C29="*","",IF(G29="*","",G29/C29-1))) -> -0.03806228374 | G29: =IF(B7<33,OFFSET('DATA CP CON'!$C$5,B7,0),"") -> 278 | H29: =OFFSET('DATA CP CON'!$K$5,B7,0) -> 29973 | I29: =IF($B7=33,"",IF(G29="*","",G29*1000/H29)) -> 9.275014179 | J29: =IF($B7=33,"",IF(G29="*","",IF(K29="*","",K29/G29-1))) -> -0.07553956835 | K29: =IF(B7<33,OFFSET('DATA CP CON'!$D$5,B7,0),"") -> 257 | L29: =OFFSET('DATA CP CON'!$L$5,B7,0) -> 29831 | M29: =IF($B7=33,"",IF(K29="*","",K29*1000/L29)) -> 8.615198954 | N29: =IF($B7=33,"",IF(K29="*","",IF(O29="*","",O29/K29-1))) -> -0.140077821 | O29: =IF(B7<33,OFFSET('DATA CP CON'!$E$5,B7,0),"") -> 221 | P29: =OFFSET('DATA CP CON'!$M$5,B7,0) -> 29954 | Q29: =IF($B7=33,"",IF(O29="*","",O29*1000/P29)) -> 7.377979569 | R29: =IF($B7=33,"",IF(O29="*","",IF(S29="*","",S29/O29-1))) -> 0.221719457 | S29: =IF(B7<33,OFFSET('DATA CP CON'!$F$5,B7,0),"") -> 270 | T29: =OFFSET('DATA CP CON'!$N$5,B7,0) -> 30039 | U29: =IF($B7=33,"",IF(S29="*","",S29*1000/T29)) -> 8.98831519 | V29: =IF($B7=33,"",IF(S29="*","",IF(W29="*","",W29/S29-1))) -> -0.2111111111 | W29: =IF(B7<33,OFFSET('DATA CP CON'!$G$5,B7,0),"") -> 213 | X29: =OFFSET('DATA CP CON'!$O$5,B7,0) -> 30171 | Y29: =IF($B7=33,"",IF(W29="*","",W29*1000/X29)) -> 7.059759372 | Z29: =IF($B7=33,"",IF(W29="*","",IF(AA29="*","",AA29/W29-1))) -> 0.1690140845 | AA29: =IF(B7<33,OFFSET('DATA CP CON'!$H$5,B7,0),"") -> 249 | AB29: =OFFSET('DATA CP CON'!$P$5,B7,0) -> 30267 | AC29: =IF($B7=33,"",IF(AA29="*","",AA29*1000/AB29)) -> 8.226781643 | AD29: =IF(B7<33,IF(RANK(AC29,'DATA CP CON'!$Y$6:$Y$37)<9,1,IF(RANK(AC29,'DATA CP CON'!$Y$6:$Y$37)<17,2,IF(RANK(AC29,'DATA CP CON'!$Y$6:$Y$37)<25,3,4))),"") -> 1
B31: Comparator authorities | C31: =SUM(C25:C29) -> 860 | D31: =SUM(D25:D29) -> 116020 | E31: =C31*1000/D31 -> 7.412515084 | F31: =IF(C31=0,"",SUM(G25:G29)/SUM(C25:C29)-1) -> 0.03604651163 | G31: =SUM(G25:G29) -> 891 | H31: =SUM(H25:H29) -> 116041 | I31: =SUM(G25:G29)/SUM(H25:H29)*1000 -> 7.678320594 | J31: =IF(G31=0,"",SUM(K25:K29)/SUM(G25:G29)-1) -> -0.0202020202 | K31: =SUM(K25:K29) -> 873 | L31: =SUM(L25:L29) -> 116155 | M31: =SUM(K25:K29)/SUM(L25:L29)*1000 -> 7.515819379 | N31: =IF(K31=0,"",SUM(O25:O29)/SUM(K25:K29)-1) -> -0.01947308133 | O31: =SUM(O25:O29) -> 856 | P31: =SUM(P25:P29) -> 116605 | Q31: =SUM(O25:O29)/SUM(P25:P29)*1000 -> 7.341023112 | R31: =IF(O31=0,"",SUM(S25:S29)/SUM(O25:O29)-1) -> 0.136682243 | S31: =SUM(S25:S29) -> 973 | T31: =SUM(T25:T29) -> 117023 | U31: =SUM(S25:S29)/SUM(T25:T29)*1000 -> 8.314604821 | V31: =IF(S31=0,"",SUM(W25:W29)/SUM(S25:S29)-1) -> -0.1397738952 | W31: =SUM(W25:W29) -> 837 | X31: =SUM(X25:X29) -> 117353 | Y31: =SUM(W25:W29)/SUM(X25:X29)*1000 -> 7.132327252 | Z31: =IF(W31=0,"",SUM(AA25:AA29)/SUM(W25:W29)-1) -> 0.06571087216 | AA31: =SUM(AA25:AA29) -> 892 | AB31: =SUM(AB25:AB29) -> 117984 | AC31: =SUM(AA25:AA29)/SUM(AB25:AB29)*1000 -> 7.560347166
B33: Scotland(1,2) | C33: ='DATA CP CON'!B38 -> 5601 | D33: ='DATA CP CON'!J38 -> 911579 | E33: =C33*1000/D33 -> 6.14428371 | F33: =IF(C33=0,"",G33/C33-1) -> 0.05016961257 | G33: ='DATA CP CON'!C38 -> 5882 | H33: ='DATA CP CON'!K38 -> 911041 | I33: =G33*1000/H33 -> 6.456350483 | J33: =IF(G33=0,"",K33/G33-1) -> 0.03043182591 | K33: ='DATA CP CON'!D38 -> 6061 | L33: ='DATA CP CON'!L38 -> 912262 | M33: =K33*1000/L33 -> 6.643924662 | N33: =IF(K33=0,"",O33/K33-1) -> -0.0584062036 | O33: ='DATA CP CON'!E38 -> 5707 | P33: ='DATA CP CON'!$M$38 -> 915917 | Q33: =O33*1000/P33 -> 6.230913937 | R33: =IF(O33=0,"",S33/O33-1) -> -0.01016295777 | S33: ='DATA CP CON'!F38 -> 5649 | T33: ='DATA CP CON'!$N$38 -> 917442 | U33: =S33*1000/T33 -> 6.157337467 | V33: =IF(S33=0,"",W33/S33-1) -> 0.001062134891 | W33: ='DATA CP CON'!G38 -> 5655 | X33: ='DATA CP CON'!$O$38 -> 919502 | Y33: =W33*1000/X33 -> 6.150068189 | Z33: =IF(W33=0,"",AA33/W33-1) -> -0.02298850575 | AA33: ='DATA CP CON'!H38 -> 5525 | AB33: ='DATA CP CON'!P38 -> 921397 | AC33: =AA33*1000/AB33 -> 5.996329487
A35: Notes
A36: =IF('DATA CP CON'!A40="","",'DATA CP CON'!A40) -> Figures for 2019 are provisional and may be revised with the publication of 2020 statistics.
A37: =IF('DATA CP CON'!A41="","",'DATA CP CON'!A41) -> Cells containing * represent numbers that are supressed to maintain confidentiality.
A38: =IF('DATA CP CON'!A42="","",'DATA CP CON'!A42) -> Population figures source: NRS mid-year population estimates for 2013-2019.
A39: =IF('DATA CP CON'!A43="","",'DATA CP CON'!A43) -> Source: Scottish Government CP Returns
A40: =IF('DATA CP CON'!A44="","",'DATA CP CON'!A44) -> 
V43: =V22-V31 -> 0.008434493349 | Y43: =Y22-Y31 -> -0.4481830826 | Z43: =Z22-Z31 -> -0.005830632642 | AC43: =AC22-AC31 -> -0.5271880057 | AD43: =IF(AC43<-0.5,"less than",IF(AC43>0.5,"greater than","similar to")) -> less than
V44: =V22-V33 -> -0.1324015367 | Y44: =Y22-Y33 -> 0.5340759803 | Z44: =Z23-Z33 -> 0.02298850575 | AC44: =AC22-AC33 -> 1.036829673 | AD44: =IF(AC44<-0.5,"less than",IF(AC44>0.5,"greater than","similar to")) -> greater than
V46: =W22-S22 -> -101 | Z46: =AA22-W22 -> 40
V47: =IF(V46<0,"a decrease of ",IF(V46>=0,"an increase of ")) -> a decrease of | Z47: =IF(Z46<0,"a decrease of ",IF(Z46>=0,"an increase of ")) -> an increase of
V49: =IF(V31<0,"a decrease of ",IF(V31>=0,"an increase of ")) -> a decrease of | Z49: =IF(Z31<0,"a decrease of ",IF(Z31>=0,"an increase of ")) -> an increase of
V50: =IF(V33<0,"a decrease of ",IF(V33>=0,"an increase of ")) -> an increase of | Z50: =IF(Z33<0,"a decrease of ",IF(Z33>=0,"an increase of ")) -> a decrease of

Sheet CP registrations
A1: ='DATA CP REG'!A1 -> Child Protection: Registrations: 31 July 2013-2019
C2: select comparators:
B3: =J3 -> 8 | J3: =VLOOKUP('Select an authority'!$A$1,'REF CAs'!$A$1:$F$32,2,0) -> 8
B4: =J4 -> 31 | J4: =VLOOKUP('Select an authority'!$A$1,'REF CAs'!$A$1:$F$32,3,0) -> 31
B5: =J5 -> 17 | J5: =VLOOKUP('Select an authority'!$A$1,'REF CAs'!$A$1:$F$32,4,0) -> 17
B6: =J6 -> 1 | J6: =VLOOKUP('Select an authority'!$A$1,'REF CAs'!$A$1:$F$32,5,0) -> 1
B7: =J7 -> 25 | J7: =VLOOKUP('Select an authority'!$A$1,'REF CAs'!$A$1:$F$32,6,0) -> 25
B12: =IF(AA22="*","[text statement not available due to suppression of data for confidentiality]",IF(Z22="","[text statement not available due to suppression of data for confidentiality]","* The number of registrations following a case conference in "&B22&" in "&AA20&" was "&ROUND(AA22,0)&" ("&Z47&ROUND((SQRT((Z22*100)^2)),1)&"% from "&ROUND(W22,0)&" in "&W20&")")) -> * The number of registrations following a case conference in Glasgow City in 2019 was 533 (an increase of 29.7% from 411 in 2018)
B14: =IF(Z31="","[text statement not available due to suppression of data for confidentiality]","* The comparator authorities show "&Z49&ROUND(SQRT((Z31*100)^2),1)&"%, while the Scotland figures show "&Z50&ROUND(SQRT((100*Z33)^2),1)&"%") -> * The comparator authorities show an increase of 10.6%, while the Scotland figures show an increase of 1.1%
B16: =IF(AC22="*","[text statement not available due to suppression of data for confidentiality]",IF(AC31="*","[text statement not available due to suppression of data for confidentiality]","* The rate (per 1,000 pop 0-15) is "&ROUND(AC22,1)&". This is "&AD43&" the comparator average rate of "&ROUND(AC31,1)&", and "&AD44&" the Scotland average rate of "&ROUND(AC33,1))) -> * The rate (per 1,000 pop 0-15) is 5.3. This is similar to the comparator average rate of 5.3, and greater than the Scotland average rate of 4.7
C20: ='DATA CP REG'!B5 -> 2013 | G20: ='DATA CP REG'!C5 -> 2014 | K20: ='DATA CP REG'!D5 -> 2015 | O20: ='DATA CP REG'!E5 -> 2016 | S20: ='DATA CP REG'!F5 -> 2017 | W20: ='DATA CP REG'!G5 -> 2018 | AA20: ='DATA CP REG'!H5 -> 2019
C21: ='DATA CP REG'!B4 -> 0 | D21: ='DATA CP REG'!J4 -> 0 | E21: rate | F21: % change | G21: ='DATA CP REG'!C4 -> 0 | H21: ='DATA CP REG'!K4 -> 0 | I21: rate | J21: % change | K21: ='DATA CP REG'!D4 -> 0 | L21: ='DATA CP REG'!L4 -> 0 | M21: rate | N21: % change | O21: ='DATA CP REG'!E4 -> 0 | P21: ='DATA CP REG'!M4 -> 0 | Q21: rate | R21: % change | S21: ='DATA CP REG'!F4 -> 0 | T21: ='DATA CP REG'!N4 -> 0 | U21: rate | V21: % change | W21: ='DATA CP REG'!G4 -> 0 | X21: ='DATA CP REG'!O4 -> 0 | Y21: rate | Z21: % change | AA21: ='DATA CP REG'!H4 -> 0 | AB21: ='DATA CP REG'!P4 -> 0 | AC21: rate | AD21: quartile
B22: =OFFSET('REF EA Name'!$B$2,'Select an authority'!$A$1,0) -> Glasgow City | C22: =OFFSET('DATA CP REG'!$B$5,'Select an authority'!$A$1,0) -> 633 | E22: =OFFSET('DATA CP REG'!$S$5,'Select an authority'!$A$1,0) -> 6.563190146 | F22: =IF(C22=0,"",G22/C22-1) -> 0.1184834123 | G22: =OFFSET('DATA CP REG'!$C$5,'Select an authority'!$A$1,0) -> 708 | I22: =OFFSET('DATA CP REG'!$T$5,'Select an authority'!$A$1,0) -> 7.320931868 | J22: =IF(G22=0,"",K22/G22-1) -> 0.03248587571 | K22: =OFFSET('DATA CP REG'!$D$5,'Select an authority'!$A$1,0) -> 731 | M22: =OFFSET('DATA CP REG'!$U$5,'Select an authority'!$A$1,0) -> 7.494976008 | N22: =IF(K22=0,"",O22/K22-1) -> -0.1805745554 | O22: =OFFSET('DATA CP REG'!$E$5,'Select an authority'!$A$1,0) -> 599 | Q22: =OFFSET('DATA CP REG'!$V$5,'Select an authority'!$A$1,0) -> 6.082020977 | R22: =IF(O22=0,"",S22/O22-1) -> -0.1853088481 | S22: =OFFSET('DATA CP REG'!$F$5,'Select an authority'!$A$1,0) -> 488 | U22: =OFFSET('DATA CP REG'!$W$5,'Select an authority'!$A$1,0) -> 4.922481011 | V22: =IF(S22=0,"",W22/S22-1) -> -0.1577868852 | W22: =OFFSET('DATA CP REG'!$G$5,'Select an authority'!$A$1,0) -> 411 | Y22: =OFFSET('DATA CP REG'!$X$5,'Select an authority'!$A$1,0) -> 4.112549781 | Z22: =IF(W22=0,"",AA22/W22-1) -> 0.296836983 | AA22: =OFFSET('DATA CP REG'!$H$5,'Select an authority'!$A$1,0) -> 533 | AC22: =OFFSET('DATA CP REG'!$Y$5,'Select an authority'!$A$1,0) -> 5.294737051 | AD22: =IF(AC22="*","",IF(RANK(AC22,'DATA CP REG'!$Y$6:$Y$37)<9,1,IF(RANK(AC22,'DATA CP REG'!$Y$6:$Y$37)<17,2,IF(RANK(AC22,'DATA CP REG'!$Y$6:$Y$37)<25,3,4)))) -> 2
A24: Comparator Authorities:
B25: =OFFSET('REF EA Name'!$B$2, B3,0) -> Dundee City | C25: =IF(B3<33,OFFSET('DATA CP REG'!$B$5,$B3,0)," ") -> 122 | D25: =OFFSET('DATA CP REG'!$J$5,$B3,0) -> 23753 | E25: =IF($B3=33,"",C25*1000/D25) -> 5.136193323 | F25: =IF($B3=33,"",IF(C25=0,"",G25/C25-1)) -> 0.08196721311 | G25: =IF(B3<33,OFFSET('DATA CP REG'!$C$5,$B3,0),"") -> 132 | H25: =OFFSET('DATA CP REG'!$K$5,$B3,0) -> 23716 | I25: =IF($B3=33,"",G25*1000/H25) -> 5.565862709 | J25: =IF($B3=33,"",IF(G25=0,"",K25/G25-1)) -> -0.04545454545 | K25: =IF(B3<33,OFFSET('DATA CP REG'!$D$5,$B3,0),"") -> 126 | L25: =OFFSET('DATA CP REG'!$L$5,$B3,0) -> 23798 | M25: =IF($B3=33,"",K25*1000/L25) -> 5.294562568 | N25: =IF($B3=33,"",IF(K25=0,"",O25/K25-1)) -> 0.1984126984 | O25: =IF(B3<33,OFFSET('DATA CP REG'!$E$5,$B3,0),"") -> 151 | P25: =OFFSET('DATA CP REG'!$M$5,$B3,0) -> 23849 | Q25: =IF($B3=33,"",O25*1000/P25) -> 6.331502369 | R25: =IF($B3=33,"",IF(O25=0,"",S25/O25-1)) -> -0.05298013245 | S25: =IF(B3<33,OFFSET('DATA CP REG'!$F$5,$B3,0),"") -> 143 | T25: =OFFSET('DATA CP REG'!$N$5,$B3,0) -> 23998 | U25: =IF($B3=33,"",S25*1000/T25) -> 5.958829902 | V25: =IF($B3=33,"",IF(S25=0,"",W25/S25-1)) -> -0.006993006993 | W25: =IF(B3<33,OFFSET('DATA CP REG'!$G$5,$B3,0),"") -> 142 | X25: =OFFSET('DATA CP REG'!$O$5,$B3,0) -> 24016 | Y25: =IF($B3=33,"",W25*1000/X25) -> 5.91272485 | Z25: =IF($B3=33,"",IF(W25=0,"",AA25/W25-1)) -> 0.1830985915 | AA25: =IF(B3<33,OFFSET('DATA CP REG'!$H$5,$B3,0),"") -> 168 | AB25: =OFFSET('DATA CP REG'!$P$5,$B3,0) -> 24044 | AC25: =IF($B3=33,"",AA25*1000/AB25) -> 6.987190151 | AD25: =IF(AC25="*","",IF(B3<33,IF(RANK(AC25,'DATA CP REG'!$Y$6:$Y$37)<9,1,IF(RANK(AC25,'DATA CP REG'!$Y$6:$Y$37)<17,2,IF(RANK(AC25,'DATA CP REG'!$Y$6:$Y$37)<25,3,4))),"")) -> 1
B26: =OFFSET('REF EA Name'!$B$2,B4,0) -> West Dunbartonshire | C26: =IF(B4<33,OFFSET('DATA CP REG'!$B$5,$B4,0),"") -> 62 | D26: =OFFSET('DATA CP REG'!$J$5,$B4,0) -> 15782 | E26: =IF($B4=33,"",C26*1000/D26) -> 3.928526169 | F26: =IF($B4=33,"",IF(C26=0,"",G26/C26-1)) -> 0.04838709677 | G26: =IF(B4<33,OFFSET('DATA CP REG'!$C$5,$B4,0),"") -> 65 | H26: =OFFSET('DATA CP REG'!$K$5,$B4,0) -> 15698 | I26: =IF($B4=33,"",G26*1000/H26) -> 4.14065486 | J26: =IF($B4=33,"",IF(G26=0,"",K26/G26-1)) -> -0.1076923077 | K26: =IF(B4<33,OFFSET('DATA CP REG'!$D$5,$B4,0),"") -> 58 | L26: =OFFSET('DATA CP REG'!$L$5,$B4,0) -> 15709 | M26: =IF($B4=33,"",K26*1000/L26) -> 3.692150996 | N26: =IF($B4=33,"",IF(K26=0,"",O26/K26-1)) -> 0.3275862069 | O26: =IF(B4<33,OFFSET('DATA CP REG'!$E$5,$B4,0),"") -> 77 | P26: =OFFSET('DATA CP REG'!$M$5,$B4,0) -> 15764 | Q26: =IF($B4=33,"",O26*1000/P26) -> 4.884547069 | R26: =IF($B4=33,"",IF(O26=0,"",S26/O26-1)) -> 0.6623376623 | S26: =IF(B4<33,OFFSET('DATA CP REG'!$F$5,$B4,0),"") -> 128 | T26: =OFFSET('DATA CP REG'!$N$5,$B4,0) -> 15790 | U26: =IF($B4=33,"",S26*1000/T26) -> 8.106396453 | V26: =IF($B4=33,"",IF(S26=0,"",W26/S26-1)) -> -0.2578125 | W26: =IF(B4<33,OFFSET('DATA CP REG'!$G$5,$B4,0),"") -> 95 | X26: =OFFSET('DATA CP REG'!$O$5,$B4,0) -> 15705 | Y26: =IF($B4=33,"",W26*1000/X26) -> 6.049028972 | Z26: =IF($B4=33,"",IF(W26=0,"",AA26/W26-1)) -> -0.2526315789 | AA26: =IF(B4<33,OFFSET('DATA CP REG'!$H$5,$B4,0),"") -> 71 | AB26: =OFFSET('DATA CP REG'!$P$5,$B4,0) -> 15647 | AC26: =IF($B4=33,"",AA26*1000/AB26) -> 4.537611044 | AD26: =IF(AC26="*","",IF(B4<33,IF(RANK(AC26,'DATA CP REG'!$Y$6:$Y$37)<9,1,IF(RANK(AC26,'DATA CP REG'!$Y$6:$Y$37)<17,2,IF(RANK(AC26,'DATA CP REG'!$Y$6:$Y$37)<25,3,4))),"")) -> 3
B27: =OFFSET('REF EA Name'!$B$2,B5,0) -> Inverclyde | C27: =IF(B5<33,OFFSET('DATA CP REG'!$B$5,$B5,0),"") -> 48 | D27: =OFFSET('DATA CP REG'!$J$5,$B5,0) -> 13241 | E27: =IF($B5=33,"",C27*1000/D27) -> 3.625103844 | F27: =IF($B5=33,"",IF(C27=0,"",G27/C27-1)) -> 0.4166666667 | G27: =IF(B5<33,OFFSET('DATA CP REG'!$C$5,$B5,0),"") -> 68 | H27: =OFFSET('DATA CP REG'!$K$5,$B5,0) -> 13143 | I27: =IF($B5=33,"",G27*1000/H27) -> 5.173856806 | J27: =IF($B5=33,"",IF(G27=0,"",K27/G27-1)) -> -0.1323529412 | K27: =IF(B5<33,OFFSET('DATA CP REG'!$D$5,$B5,0),"") -> 59 | L27: =OFFSET('DATA CP REG'!$L$5,$B5,0) -> 12966 | M27: =IF($B5=33,"",K27*1000/L27) -> 4.550362487 | N27: =IF($B5=33,"",IF(K27=0,"",O27/K27-1)) -> -0.03389830508 | O27: =IF(B5<33,OFFSET('DATA CP REG'!$E$5,$B5,0),"") -> 57 | P27: =OFFSET('DATA CP REG'!$M$5,$B5,0) -> 12851 | Q27: =IF($B5=33,"",O27*1000/P27) -> 4.435452494 | R27: =IF($B5=33,"",IF(O27=0,"",S27/O27-1)) -> -0.1754385965 | S27: =IF(B5<33,OFFSET('DATA CP REG'!$F$5,$B5,0),"") -> 47 | T27: =OFFSET('DATA CP REG'!$N$5,$B5,0) -> 12701 | U27: =IF($B5=33,"",S27*1000/T27) -> 3.700496024 | V27: =IF($B5=33,"",IF(S27=0,"",W27/S27-1)) -> 0.06382978723 | W27: =IF(B5<33,OFFSET('DATA CP REG'!$G$5,$B5,0),"") -> 50 | X27: =OFFSET('DATA CP REG'!$O$5,$B5,0) -> 12628 | Y27: =IF($B5=33,"",W27*1000/X27) -> 3.959455179 | Z27: =IF($B5=33,"",IF(W27=0,"",AA27/W27-1)) -> 0.28 | AA27: =IF(B5<33,OFFSET('DATA CP REG'!$H$5,$B5,0),"") -> 64 | AB27: =OFFSET('DATA CP REG'!$P$5,$B5,0) -> 12603 | AC27: =IF($B5=33,"",AA27*1000/AB27) -> 5.078155995 | AD27: =IF(AC27="*","",IF(B5<33,IF(RANK(AC27,'DATA CP REG'!$Y$6:$Y$37)<9,1,IF(RANK(AC27,'DATA CP REG'!$Y$6:$Y$37)<17,2,IF(RANK(AC27,'DATA CP REG'!$Y$6:$Y$37)<25,3,4))),"")) -> 2
B28: =OFFSET('REF EA Name'!$B$2,B6,0) -> Aberdeen City | C28: =IF(B6<33,OFFSET('DATA CP REG'!$B$5,$B6,0),"") -> 170 | D28: =OFFSET('DATA CP REG'!$J$5,$B6,0) -> 33131 | E28: =IF($B6=33,"",C28*1000/D28) -> 5.131146057 | F28: =IF($B6=33,"",IF(C28=0,"",G28/C28-1)) -> -0.01764705882 | G28: =IF(B6<33,OFFSET('DATA CP REG'!$C$5,$B6,0),"") -> 167 | H28: =OFFSET('DATA CP REG'!$K$5,$B6,0) -> 33511 | I28: =IF($B6=33,"",G28*1000/H28) -> 4.983438274 | J28: =IF($B6=33,"",IF(G28=0,"",K28/G28-1)) -> -0.04790419162 | K28: =IF(B6<33,OFFSET('DATA CP REG'!$D$5,$B6,0),"") -> 159 | L28: =OFFSET('DATA CP REG'!$L$5,$B6,0) -> 33851 | M28: =IF($B6=33,"",K28*1000/L28) -> 4.69705474 | N28: =IF($B6=33,"",IF(K28=0,"",O28/K28-1)) -> -0.01886792453 | O28: =IF(B6<33,OFFSET('DATA CP REG'!$E$5,$B6,0),"") -> 156 | P28: =OFFSET('DATA CP REG'!$M$5,$B6,0) -> 34187 | Q28: =IF($B6=33,"",O28*1000/P28) -> 4.563138035 | R28: =IF($B6=33,"",IF(O28=0,"",S28/O28-1)) -> 0.05128205128 | S28: =IF(B6<33,OFFSET('DATA CP REG'!$F$5,$B6,0),"") -> 164 | T28: =OFFSET('DATA CP REG'!$N$5,$B6,0) -> 34495 | U28: =IF($B6=33,"",S28*1000/T28) -> 4.754312219 | V28: =IF($B6=33,"",IF(S28=0,"",W28/S28-1)) -> -0.08536585366 | W28: =IF(B6<33,OFFSET('DATA CP REG'!$G$5,$B6,0),"") -> 150 | X28: =OFFSET('DATA CP REG'!$O$5,$B6,0) -> 34833 | Y28: =IF($B6=33,"",W28*1000/X28) -> 4.306261304 | Z28: =IF($B6=33,"",IF(W28=0,"",AA28/W28-1)) -> 0.08 | AA28: =IF(B6<33,OFFSET('DATA CP REG'!$H$5,$B6,0),"") -> 162 | AB28: =OFFSET('DATA CP REG'!$P$5,$B6,0) -> 35423 | AC28: =IF($B6=33,"",AA28*1000/AB28) -> 4.573299833 | AD28: =IF(AC28="*","",IF(B6<33,IF(RANK(AC28,'DATA CP REG'!$Y$6:$Y$37)<9,1,IF(RANK(AC28,'DATA CP REG'!$Y$6:$Y$37)<17,2,IF(RANK(AC28,'DATA CP REG'!$Y$6:$Y$37)<25,3,4))),"")) -> 2
B29: =OFFSET('REF EA Name'!$B$2,B7,0) -> Renfrewshire | C29: =IF(B7<33,OFFSET('DATA CP REG'!$B$5,$B7,0),"") -> 191 | D29: =OFFSET('DATA CP REG'!$J$5,$B7,0) -> 30113 | E29: =IF($B7=33,"",C29*1000/D29) -> 6.342775545 | F29: =IF($B7=33,"",IF(C29=0,"",G29/C29-1)) -> -0.2827225131 | G29: =IF(B7<33,OFFSET('DATA CP REG'!$C$5,$B7,0),"") -> 137 | H29: =OFFSET('DATA CP REG'!$K$5,$B7,0) -> 29973 | I29: =IF($B7=33,"",G29*1000/H29) -> 4.570780369 | J29: =IF($B7=33,"",IF(G29=0,"",K29/G29-1)) -> 0.01459854015 | K29: =IF(B7<33,OFFSET('DATA CP REG'!$D$5,$B7,0),"") -> 139 | L29: =OFFSET('DATA CP REG'!$L$5,$B7,0) -> 29831 | M29: =IF($B7=33,"",K29*1000/L29) -> 4.659582314 | N29: =IF($B7=33,"",IF(K29=0,"",O29/K29-1)) -> -0.04316546763 | O29: =IF(B7<33,OFFSET('DATA CP REG'!$E$5,$B7,0),"") -> 133 | P29: =OFFSET('DATA CP REG'!$M$5,$B7,0) -> 29954 | Q29: =IF($B7=33,"",O29*1000/P29) -> 4.44014155 | R29: =IF($B7=33,"",IF(O29=0,"",S29/O29-1)) -> 0.4586466165 | S29: =IF(B7<33,OFFSET('DATA CP REG'!$F$5,$B7,0),"") -> 194 | T29: =OFFSET('DATA CP REG'!$N$5,$B7,0) -> 30039 | U29: =IF($B7=33,"",S29*1000/T29) -> 6.458270914 | V29: =IF($B7=33,"",IF(S29=0,"",W29/S29-1)) -> -0.3402061856 | W29: =IF(B7<33,OFFSET('DATA CP REG'!$G$5,$B7,0),"") -> 128 | X29: =OFFSET('DATA CP REG'!$O$5,$B7,0) -> 30171 | Y29: =IF($B7=33,"",W29*1000/X29) -> 4.242484505 | Z29: =IF($B7=33,"",IF(W29=0,"",AA29/W29-1)) -> 0.25 | AA29: =IF(B7<33,OFFSET('DATA CP REG'!$H$5,$B7,0),"") -> 160 | AB29: =OFFSET('DATA CP REG'!$P$5,$B7,0) -> 30267 | AC29: =IF($B7=33,"",AA29*1000/AB29) -> 5.286285393 | AD29: =IF(AC29="*","",IF(B7<33,IF(RANK(AC29,'DATA CP REG'!$Y$6:$Y$37)<9,1,IF(RANK(AC29,'DATA CP REG'!$Y$6:$Y$37)<17,2,IF(RANK(AC29,'DATA CP REG'!$Y$6:$Y$37)<25,3,4))),"")) -> 2
B31: Comparator authorities | C31: =SUM(C25:C29) -> 593 | D31: =SUM(D25:D29) -> 116020 | E31: =1000*C31/(SUMIF(C25,">0",D25)+SUMIF(C26,">0",D26)+SUMIF(C27,">0",D27)+SUMIF(C28,">0",D28)+SUMIF(C29,">0",D29)) -> 5.111187726 | F31: =IF(C31=0,"",SUM(G25:G29)/SUM(C25:C29)-1) -> -0.04047217538 | G31: =SUM(G25:G29) -> 569 | H31: =SUM(H25:H29) -> 116041 | I31: =1000*G31/(SUMIF(G25,">0",H25)+SUMIF(G26,">0",H26)+SUMIF(G27,">0",H27)+SUMIF(G28,">0",H28)+SUMIF(G29,">0",H29)) -> 4.903439302 | J31: =IF(G31=0,"",SUM(K25:K29)/SUM(G25:G29)-1) -> -0.04920913884 | K31: =SUM(K25:K29) -> 541 | L31: =SUM(L25:L29) -> 116155 | M31: =1000*K31/(SUMIF(K25,">0",L25)+SUMIF(K26,">0",L26)+SUMIF(K27,">0",L27)+SUMIF(K28,">0",L28)+SUMIF(K29,">0",L29)) -> 4.657569627 | N31: =IF(K31=0,"",SUM(O25:O29)/SUM(K25:K29)-1) -> 0.06099815157 | O31: =SUM(O25:O29) -> 574 | P31: =SUM(P25:P29) -> 116605 | Q31: =1000*O31/(SUMIF(O25,">0",P25)+SUMIF(O26,">0",P26)+SUMIF(O27,">0",P27)+SUMIF(O28,">0",P28)+SUMIF(O29,">0",P29)) -> 4.922601947 | R31: =IF(O31=0,"",SUM(S25:S29)/SUM(O25:O29)-1) -> 0.1777003484 | S31: =SUM(S25:S29) -> 676 | T31: =SUM(T25:T29) -> 117023 | U31: =1000*S31/(SUMIF(S25,">0",T25)+SUMIF(S26,">0",T26)+SUMIF(S27,">0",T27)+SUMIF(S28,">0",T28)+SUMIF(S29,">0",T29)) -> 5.776642199 | V31: =IF(S31=0,"",SUM(W25:W29)/SUM(S25:S29)-1) -> -0.1642011834 | W31: =SUM(W25:W29) -> 565 | X31: =SUM(X25:X29) -> 117353 | Y31: =1000*W31/(SUMIF(W25,">0",X25)+SUMIF(W26,">0",X26)+SUMIF(W27,">0",X27)+SUMIF(W28,">0",X28)+SUMIF(W29,">0",X29)) -> 4.814533928 | Z31: =IF(W31=0,"",SUM(AA25:AA29)/SUM(W25:W29)-1) -> 0.1061946903 | AA31: =SUM(AA25:AA29) -> 625 | AB31: =SUM(AB25:AB29) -> 117984 | AC31: =1000*AA31/(SUMIF(AA25,">0",AB25)+SUMIF(AA26,">0",AB26)+SUMIF(AA27,">0",AB27)+SUMIF(AA28,">0",AB28)+SUMIF(AA29,">0",AB29)) -> 5.297328451
B33: Scotland(1,2) | C33: ='DATA CP REG'!$B$38 -> 4251 | D33: ='DATA CP REG'!$J$38 -> 911579 | E33: =C33*1000/D33 -> 4.663336913 | F33: =IF(C33=0,"",G33/C33-1) -> 0.08727358269 | G33: ='DATA CP REG'!$C$38 -> 4622 | H33: ='DATA CP REG'!$K$38 -> 911041 | I33: =G33*1000/H33 -> 5.073317227 | J33: =IF(G33=0,"",K33/G33-1) -> -0.04781479879 | K33: ='DATA CP REG'!$D$38 -> 4401 | L33: ='DATA CP REG'!$L$38 -> 912262 | M33: =K33*1000/L33 -> 4.824271974 | N33: =IF(K33=0,"",O33/K33-1) -> -0.02908429902 | O33: ='DATA CP REG'!$E$38 -> 4273 | P33: ='DATA CP REG'!$M$38 -> 915917 | Q33: =O33*1000/P33 -> 4.665269888 | R33: =IF(O33=0,"",S33/O33-1) -> 0.003276386614 | S33: ='DATA CP REG'!$F$38 -> 4287 | T33: ='DATA CP REG'!$N$38 -> 917442 | U33: =S33*1000/T33 -> 4.672774955 | V33: =IF(S33=0,"",W33/S33-1) -> -0.009563797527 | W33: ='DATA CP REG'!$G$38 -> 4246 | X33: ='DATA CP REG'!$O$38 -> 919502 | Y33: =W33*1000/X33 -> 4.617716982 | Z33: =IF(W33=0,"",AA33/W33-1) -> 0.01106924164 | AA33: ='DATA CP REG'!$H$38 -> 4293 | AB33: ='DATA CP REG'!$P$38 -> 921397 | AC33: =AA33*1000/AB33 -> 4.659229409
A35: Notes
A36: =IF('DATA CP REG'!A40="","",'DATA CP REG'!A40) -> Figures for 2019 are provisional and may be revised with the publication of 2020 statistics.
A37: =IF('DATA CP REG'!A41="","",'DATA CP REG'!A41) -> Cells containing * represent numbers that are supressed to maintain confidentiality.
A38: =IF('DATA CP REG'!A42="","",'DATA CP REG'!A42) -> Population figures source: NRS mid-year population estimates for 2013-2019.
A39: =IF('DATA CP REG'!A43="","",'DATA CP REG'!A43) -> Source: Scottish Government CP Returns
A40: =IF('DATA CP REG'!A44="","",'DATA CP REG'!A44) -> 
V43: =V22-V31 -> 0.006414298186 | Y43: =Y22-Y31 -> -0.7019841467 | Z43: =Z22-Z31 -> 0.1906422927 | AC43: =AC22-AC31 -> -0.002591400077 | AD43: =IF(AC43<-0.5,"less than",IF(AC43>0.5,"greater than","similar to")) -> similar to
V44: =V22-V33 -> -0.1482230877 | Y44: =Y22-Y33 -> -0.5051672007 | Z44: =Z22-Z33 -> 0.2857677413 | AC44: =AC22-AC33 -> 0.635507642 | AD44: =IF(AC44<-0.5,"less than",IF(AC44>0.5,"greater than","similar to")) -> greater than
V46: =W22-S22 -> -77 | Z46: =AA22-W22 -> 122
V47: =IF(V46<0,"a decrease of ",IF(V46>=0,"an increase of ")) -> a decrease of | Z47: =IF(Z46<0,"a decrease of ",IF(Z46>=0,"an increase of ")) -> an increase of
V49: =IF(V31<0,"a decrease of ",IF(V31>=0,"an increase of ")) -> a decrease of | Z49: =IF(Z31<0,"a decrease of ",IF(Z31>=0,"an increase of ")) -> an increase of
V50: =IF(V33<0,"a decrease of ",IF(V33>=0,"an increase of ")) -> a decrease of | Z50: =IF(Z33<0,"a decrease of ",IF(Z33>=0,"an increase of ")) -> an increase of

Sheet CP de-registrations
A1: ='DATA CP DEREG'!A1 -> Child Protection: De-registrations: 31 July 2013-2019
B3: =J3 -> 8 | F3: =VLOOKUP('Select an authority'!$A$1,'REF CAs'!$A$1:$F$32,2,0) -> 8 | J3: =VLOOKUP('Select an authority'!$A$1,'REF CAs'!$A$1:$F$32,2,0) -> 8
B4: =J4 -> 31 | F4: =VLOOKUP('Select an authority'!$A$1,'REF CAs'!$A$1:$F$32,3,0) -> 31 | J4: =VLOOKUP('Select an authority'!$A$1,'REF CAs'!$A$1:$F$32,3,0) -> 31
B5: =J5 -> 17 | F5: =VLOOKUP('Select an authority'!$A$1,'REF CAs'!$A$1:$F$32,4,0) -> 17 | J5: =VLOOKUP('Select an authority'!$A$1,'REF CAs'!$A$1:$F$32,4,0) -> 17
B6: =J6 -> 1 | F6: =VLOOKUP('Select an authority'!$A$1,'REF CAs'!$A$1:$F$32,5,0) -> 1 | J6: =VLOOKUP('Select an authority'!$A$1,'REF CAs'!$A$1:$F$32,5,0) -> 1
B7: =J7 -> 25 | F7: =VLOOKUP('Select an authority'!$A$1,'REF CAs'!$A$1:$F$32,6,0) -> 25 | J7: =VLOOKUP('Select an authority'!$A$1,'REF CAs'!$A$1:$F$32,6,0) -> 25
B12: =IF(AA22="*","[text statement not available due to suppression of data for confidentiality]",IF(Z22="","[text statement not available due to suppression of data for confidentiality]","* The number of de-registrations in "&B22&" in "&AA20&" is "&ROUND(AA22,0)&" ("&Z47&ROUND((SQRT((Z22*100)^2)),1)&"% from "&ROUND(W22,0)&" in "&W20&")")) -> * The number of de-registrations in Glasgow City in 2019 is 427 (a decrease of 15.9% from 508 in 2018)
B14: =IF(Z31="","[text statement not available due to suppression of data for confidentiality]","* The comparator authorities show "&Z49&ROUND(SQRT((Z31*100)^2),1)&"%, while the estimated Scotland figures show "&Z50&ROUND(SQRT((100*Z33)^2),1)&"%") -> * The comparator authorities show a decrease of 3.9%, while the estimated Scotland figures show a decrease of 2.1%
B16: =IF(AC22="*","[text statement not available due to suppression of data for confidentiality]",IF(AC31="*","[text statement not available due to suppression of data for confidentiality]","* The rate (per 1,000 pop 0-15) is "&ROUND(AC22,1)&". This is "&AD43&" the comparator average rate of "&ROUND(AC31,1)&", and "&AD44&" the estimated AJ7Scotland average rate of "&ROUND(AC33,1))) -> * The rate (per 1,000 pop 0-15) is 4.2. This is less than the comparator average rate of 4.8, and similar to the estimated AJ7Scotland average rate of 4.6
C20: ='DATA CP DEREG'!B5 -> 2013 | G20: ='DATA CP DEREG'!C5 -> 2014 | K20: ='DATA CP DEREG'!D5 -> 2015 | O20: ='DATA CP DEREG'!E5 -> 2016 | S20: ='DATA CP DEREG'!F5 -> 2017 | W20: ='DATA CP DEREG'!G5 -> 2018 | AA20: ='DATA CP DEREG'!H5 -> 2019
C21: Number | D21: ='DATA CP DEREG'!J4 -> 0 | E21: rate | F21: % change | G21: =C21 -> Number | H21: ='DATA CP DEREG'!K4 -> 0 | I21: rate | J21: % change | K21: =G21 -> Number | L21: ='DATA CP DEREG'!L4 -> 0 | M21: rate | N21: % change | O21: =K21 -> Number | P21: ='DATA CP DEREG'!M4 -> 0 | Q21: rate | R21: % change | S21: =O21 -> Number | T21: ='DATA CP DEREG'!N4 -> 0 | U21: rate | V21: % change | W21: =S21 -> Number | X21: ='DATA CP DEREG'!O4 -> 0 | Y21: rate | Z21: % change | AA21: =W21 -> Number | AB21: =X21 -> 0 | AC21: =Y21 -> rate | AD21: quartile
B22: =OFFSET('REF EA Name'!$B$2,'Select an authority'!$A$1,0) -> Glasgow City | C22: =OFFSET('DATA CP DEREG'!B5,'Select an authority'!$A$1,0) -> 639 | E22: =OFFSET('DATA CP DEREG'!$S$5,'Select an authority'!$A$1,0) -> 6.625400479 | F22: =IF(C22=0,"",G22/C22-1) -> 0.02816901408 | G22: =OFFSET('DATA CP DEREG'!C5,'Select an authority'!$A$1,0) -> 657 | I22: =OFFSET('DATA CP DEREG'!$T$5,'Select an authority'!$A$1,0) -> 6.793576606 | J22: =IF(G22=0,"",K22/G22-1) -> 0.07914764079 | K22: =OFFSET('DATA CP DEREG'!D5,'Select an authority'!$A$1,0) -> 709 | M22: =OFFSET('DATA CP DEREG'!$U$5,'Select an authority'!$A$1,0) -> 7.269409014 | N22: =IF(K22=0,"",O22/K22-1) -> -0.1650211566 | O22: =OFFSET('DATA CP DEREG'!E5,'Select an authority'!$A$1,0) -> 592 | Q22: =OFFSET('DATA CP DEREG'!$V$5,'Select an authority'!$A$1,0) -> 6.010945607 | R22: =IF(O22=0,"",S22/O22-1) -> 0.003378378378 | S22: =OFFSET('DATA CP DEREG'!F5,'Select an authority'!$A$1,0) -> 594 | U22: =OFFSET('DATA CP DEREG'!$W$5,'Select an authority'!$A$1,0) -> 5.991708444 | V22: =IF(S22=0,"",W22/S22-1) -> -0.1447811448 | W22: =OFFSET('DATA CP DEREG'!G5,'Select an authority'!$A$1,0) -> 508 | Y22: =OFFSET('DATA CP DEREG'!$X$5,'Select an authority'!$A$1,0) -> 5.083151554 | Z22: =IF(W22=0,"",AA22/W22-1) -> -0.1594488189 | AA22: =OFFSET('DATA CP DEREG'!H5,'Select an authority'!$A$1,0) -> 427 | AC22: =OFFSET('DATA CP DEREG'!$Y$5,'Select an authority'!$A$1,0) -> 4.241749945 | AD22: =IF(AC22="*","",IF(RANK(AC22,'DATA CP DEREG'!$Y$6:$Y$37)<9,1,IF(RANK(AC22,'DATA CP DEREG'!$Y$6:$Y$37)<17,2,IF(RANK(AC22,'DATA CP DEREG'!$Y$6:$Y$37)<25,3,4)))) -> 3
A24: Comparator Authorities:
B25: =OFFSET('REF EA Name'!$B$2, B3,0) -> Dundee City | C25: =IF($B3=33,"",OFFSET('DATA CP DEREG'!$B$5,$B3,0)) -> 158 | D25: =OFFSET('DATA CP DEREG'!$J$5,$B3,0) -> 23753 | E25: =IF($B3=33,"",C25*1000/D25) -> 6.651791353 | F25: =IF($B3=33,"",IF(C25=0,"",G25/C25-1)) -> -0.2974683544 | G25: =IF($B3=33,"",OFFSET('DATA CP DEREG'!$C$5,$B3,0)) -> 111 | H25: =OFFSET('DATA CP DEREG'!$K$5,$B3,0) -> 23716 | I25: =IF($B3=33,"",G25*1000/H25) -> 4.680384551 | J25: =IF($B3=33,"",IF(G25=0,"",K25/G25-1)) -> 0.0990990991 | K25: =IF($B3=33,"",OFFSET('DATA CP DEREG'!$D$5,$B3,0)) -> 122 | L25: =OFFSET('DATA CP DEREG'!$L$5,$B3,0) -> 23798 | M25: =IF($B3=33,"",K25*1000/L25) -> 5.126481217 | N25: =IF($B3=33,"",IF(K25=0,"",O25/K25-1)) -> 0.1721311475 | O25: =IF($B3=33,"",OFFSET('DATA CP DEREG'!$E$5,$B3,0)) -> 143 | P25: =OFFSET('DATA CP DEREG'!$M$5,$B3,0) -> 23849 | Q25: =IF($B3=33,"",O25*1000/P25) -> 5.996058535 | R25: =IF($B3=33,"",IF(O25=0,"",S25/O25-1)) -> 0.06293706294 | S25: =IF($B3=33,"",OFFSET('DATA CP DEREG'!$F$5,$B3,0)) -> 152 | T25: =OFFSET('DATA CP DEREG'!$N$5,$B3,0) -> 23998 | U25: =IF($B3=33,"",S25*1000/T25) -> 6.333861155 | V25: =IF($B3=33,"",W25/S25-1) -> -0.1052631579 | W25: =IF($B3=33,"",OFFSET('DATA CP DEREG'!$G$5,$B3,0)) -> 136 | X25: =OFFSET('DATA CP DEREG'!$O$5,$B3,0) -> 24016 | Y25: =IF($B3=33,"",W25*1000/X25) -> 5.662891406 | Z25: =IF($B3=33,"",IF(W25=0,"",AA25/W25-1)) -> 0.1176470588 | AA25: =IF($B3=33,"",OFFSET('DATA CP DEREG'!$H$5,$B3,0)) -> 152 | AB25: =OFFSET('DATA CP DEREG'!$P$5,$B3,0) -> 24044 | AC25: =IF($B3=33,"",AA25*1000/AB25) -> 6.32174347 | AD25: =IF(AC25="*","",IF(B3<33,IF(RANK(AC25,'DATA CP DEREG'!$Y$6:$Y$37)<9,1,IF(RANK(AC25,'DATA CP DEREG'!$Y$6:$Y$37)<17,2,IF(RANK(AC25,'DATA CP DEREG'!$Y$6:$Y$37)<25,3,4))),"")) -> 1
B26: =OFFSET('REF EA Name'!$B$2,B4,0) -> West Dunbartonshire | C26: =IF($B4=33,"",OFFSET('DATA CP DEREG'!$B$5,$B4,0)) -> 61 | D26: =OFFSET('DATA CP DEREG'!$J$5,$B4,0) -> 15782 | E26: =IF($B4=33,"",C26*1000/D26) -> 3.865162844 | F26: =IF($B4=33,"",IF(C26=0,"",G26/C26-1)) -> -0.08196721311 | G26: =IF($B4=33,"",OFFSET('DATA CP DEREG'!$C$5,$B4,0)) -> 56 | H26: =OFFSET('DATA CP DEREG'!$K$5,$B4,0) -> 15698 | I26: =IF($B4=33,"",G26*1000/H26) -> 3.567333418 | J26: =IF($B4=33,"",IF(G26=0,"",K26/G26-1)) -> 0.4821428571 | K26: =IF($B4=33,"",OFFSET('DATA CP DEREG'!$D$5,$B4,0)) -> 83 | L26: =OFFSET('DATA CP DEREG'!$L$5,$B4,0) -> 15709 | M26: =IF($B4=33,"",K26*1000/L26) -> 5.283595391 | N26: =IF($B4=33,"",IF(K26=0,"",O26/K26-1)) -> -0.4578313253 | O26: =IF($B4=33,"",OFFSET('DATA CP DEREG'!$E$5,$B4,0)) -> 45 | P26: =OFFSET('DATA CP DEREG'!$M$5,$B4,0) -> 15764 | Q26: =IF($B4=33,"",O26*1000/P26) -> 2.85460543 | R26: =IF($B4=33,"",IF(O26=0,"",S26/O26-1)) -> 1.333333333 | S26: =IF($B4=33,"",OFFSET('DATA CP DEREG'!$F$5,$B4,0)) -> 105 | T26: =OFFSET('DATA CP DEREG'!$N$5,$B4,0) -> 15790 | U26: =IF($B4=33,"",S26*1000/T26) -> 6.649778341 | V26: =IF($B4=33,"",W26/S26-1) -> 0.06666666667 | W26: =IF($B4=33,"",OFFSET('DATA CP DEREG'!$G$5,$B4,0)) -> 112 | X26: =OFFSET('DATA CP DEREG'!$O$5,$B4,0) -> 15705 | Y26: =IF($B4=33,"",W26*1000/X26) -> 7.131486788 | Z26: =IF($B4=33,"",IF(W26=0,"",AA26/W26-1)) -> -0.2767857143 | AA26: =IF($B4=33,"",OFFSET('DATA CP DEREG'!$H$5,$B4,0)) -> 81 | AB26: =OFFSET('DATA CP DEREG'!$P$5,$B4,0) -> 15647 | AC26: =IF($B4=33,"",AA26*1000/AB26) -> 5.176711191 | AD26: =IF(AC26="*","",IF(B4<33,IF(RANK(AC26,'DATA CP DEREG'!$Y$6:$Y$37)<9,1,IF(RANK(AC26,'DATA CP DEREG'!$Y$6:$Y$37)<17,2,IF(RANK(AC26,'DATA CP DEREG'!$Y$6:$Y$37)<25,3,4))),"")) -> 2
B27: =OFFSET('REF EA Name'!$B$2,B5,0) -> Inverclyde | C27: =IF($B5=33,"",OFFSET('DATA CP DEREG'!$B$5,$B5,0)) -> 54 | D27: =OFFSET('DATA CP DEREG'!$J$5,$B5,0) -> 13241 | E27: =IF($B5=33,"",C27*1000/D27) -> 4.078241825 | F27: =IF($B5=33,"",IF(C27=0,"",G27/C27-1)) -> 0.2222222222 | G27: =IF($B5=33,"",OFFSET('DATA CP DEREG'!$C$5,$B5,0)) -> 66 | H27: =OFFSET('DATA CP DEREG'!$K$5,$B5,0) -> 13143 | I27: =IF($B5=33,"",G27*1000/H27) -> 5.021684547 | J27: =IF($B5=33,"",IF(G27=0,"",K27/G27-1)) -> -0.3484848485 | K27: =IF($B5=33,"",OFFSET('DATA CP DEREG'!$D$5,$B5,0)) -> 43 | L27: =OFFSET('DATA CP DEREG'!$L$5,$B5,0) -> 12966 | M27: =IF($B5=33,"",K27*1000/L27) -> 3.31636588 | N27: =IF($B5=33,"",IF(K27=0,"",O27/K27-1)) -> 0.3720930233 | O27: =IF($B5=33,"",OFFSET('DATA CP DEREG'!$E$5,$B5,0)) -> 59 | P27: =OFFSET('DATA CP DEREG'!$M$5,$B5,0) -> 12851 | Q27: =IF($B5=33,"",O27*1000/P27) -> 4.591082406 | R27: =IF($B5=33,"",IF(O27=0,"",S27/O27-1)) -> -0.1355932203 | S27: =IF($B5=33,"",OFFSET('DATA CP DEREG'!$F$5,$B5,0)) -> 51 | T27: =OFFSET('DATA CP DEREG'!$N$5,$B5,0) -> 12701 | U27: =IF($B5=33,"",S27*1000/T27) -> 4.015431856 | V27: =IF($B5=33,"",W27/S27-1) -> 0.01960784314 | W27: =IF($B5=33,"",OFFSET('DATA CP DEREG'!$G$5,$B5,0)) -> 52 | X27: =OFFSET('DATA CP DEREG'!$O$5,$B5,0) -> 12628 | Y27: =IF($B5=33,"",W27*1000/X27) -> 4.117833386 | Z27: =IF($B5=33,"",IF(W27=0,"",AA27/W27-1)) -> -0.09615384615 | AA27: =IF($B5=33,"",OFFSET('DATA CP DEREG'!$H$5,$B5,0)) -> 47 | AB27: =OFFSET('DATA CP DEREG'!$P$5,$B5,0) -> 12603 | AC27: =IF($B5=33,"",AA27*1000/AB27) -> 3.729270809 | AD27: =IF(AC27="*","",IF(B5<33,IF(RANK(AC27,'DATA CP DEREG'!$Y$6:$Y$37)<9,1,IF(RANK(AC27,'DATA CP DEREG'!$Y$6:$Y$37)<17,2,IF(RANK(AC27,'DATA CP DEREG'!$Y$6:$Y$37)<25,3,4))),"")) -> 3
B28: =OFFSET('REF EA Name'!$B$2,B6,0) -> Aberdeen City | C28: =IF($B6=33,"",OFFSET('DATA CP DEREG'!$B$5,$B6,0)) -> 154 | D28: =OFFSET('DATA CP DEREG'!$J$5,$B6,0) -> 33131 | E28: =IF($B6=33,"",C28*1000/D28) -> 4.648214663 | F28: =IF($B6=33,"",IF(C28=0,"",G28/C28-1)) -> 0.2077922078 | G28: =IF($B6=33,"",OFFSET('DATA CP DEREG'!$C$5,$B6,0)) -> 186 | H28: =OFFSET('DATA CP DEREG'!$K$5,$B6,0) -> 33511 | I28: =IF($B6=33,"",G28*1000/H28) -> 5.550416281 | J28: =IF($B6=33,"",IF(G28=0,"",K28/G28-1)) -> -0.2795698925 | K28: =IF($B6=33,"",OFFSET('DATA CP DEREG'!$D$5,$B6,0)) -> 134 | L28: =OFFSET('DATA CP DEREG'!$L$5,$B6,0) -> 33851 | M28: =IF($B6=33,"",K28*1000/L28) -> 3.95852412 | N28: =IF($B6=33,"",IF(K28=0,"",O28/K28-1)) -> 0.01492537313 | O28: =IF($B6=33,"",OFFSET('DATA CP DEREG'!$E$5,$B6,0)) -> 136 | P28: =OFFSET('DATA CP DEREG'!$M$5,$B6,0) -> 34187 | Q28: =IF($B6=33,"",O28*1000/P28) -> 3.978120338 | R28: =IF($B6=33,"",IF(O28=0,"",S28/O28-1)) -> 0.4779411765 | S28: =IF($B6=33,"",OFFSET('DATA CP DEREG'!$F$5,$B6,0)) -> 201 | T28: =OFFSET('DATA CP DEREG'!$N$5,$B6,0) -> 34495 | U28: =IF($B6=33,"",S28*1000/T28) -> 5.826931439 | V28: =IF($B6=33,"",W28/S28-1) -> -0.1940298507 | W28: =IF($B6=33,"",OFFSET('DATA CP DEREG'!$G$5,$B6,0)) -> 162 | X28: =OFFSET('DATA CP DEREG'!$O$5,$B6,0) -> 34833 | Y28: =IF($B6=33,"",W28*1000/X28) -> 4.650762208 | Z28: =IF($B6=33,"",IF(W28=0,"",AA28/W28-1)) -> -0.3148148148 | AA28: =IF($B6=33,"",OFFSET('DATA CP DEREG'!$H$5,$B6,0)) -> 111 | AB28: =OFFSET('DATA CP DEREG'!$P$5,$B6,0) -> 35423 | AC28: =IF($B6=33,"",AA28*1000/AB28) -> 3.133557293 | AD28: =IF(AC28="*","",IF(B6<33,IF(RANK(AC28,'DATA CP DEREG'!$Y$6:$Y$37)<9,1,IF(RANK(AC28,'DATA CP DEREG'!$Y$6:$Y$37)<17,2,IF(RANK(AC28,'DATA CP DEREG'!$Y$6:$Y$37)<25,3,4))),"")) -> 4
B29: =OFFSET('REF EA Name'!$B$2,B7,0) -> Renfrewshire | C29: =IF($B7=33,"",OFFSET('DATA CP DEREG'!$B$5,$B7,0)) -> 168 | D29: =OFFSET('DATA CP DEREG'!$J$5,$B7,0) -> 30113 | E29: =IF($B7=33,"",C29*1000/D29) -> 5.57898582 | F29: =IF($B7=33,"",IF(C29=0,"",G29/C29-1)) -> 0 | G29: =IF($B7=33,"",OFFSET('DATA CP DEREG'!$C$5,$B7,0)) -> 168 | H29: =OFFSET('DATA CP DEREG'!$K$5,$B7,0) -> 29973 | I29: =IF($B7=33,"",G29*1000/H29) -> 5.60504454 | J29: =IF($B7=33,"",IF(G29=0,"",K29/G29-1)) -> -0.2142857143 | K29: =IF($B7=33,"",OFFSET('DATA CP DEREG'!$D$5,$B7,0)) -> 132 | L29: =OFFSET('DATA CP DEREG'!$L$5,$B7,0) -> 29831 | M29: =IF($B7=33,"",K29*1000/L29) -> 4.424927089 | N29: =IF($B7=33,"",IF(K29=0,"",O29/K29-1)) -> 0.1060606061 | O29: =IF($B7=33,"",OFFSET('DATA CP DEREG'!$E$5,$B7,0)) -> 146 | P29: =OFFSET('DATA CP DEREG'!$M$5,$B7,0) -> 29954 | Q29: =IF($B7=33,"",O29*1000/P29) -> 4.874140349 | R29: =IF($B7=33,"",IF(O29=0,"",S29/O29-1)) -> 0.08904109589 | S29: =IF($B7=33,"",OFFSET('DATA CP DEREG'!$F$5,$B7,0)) -> 159 | T29: =OFFSET('DATA CP DEREG'!$N$5,$B7,0) -> 30039 | U29: =IF($B7=33,"",S29*1000/T29) -> 5.293118945 | V29: =IF($B7=33,"",W29/S29-1) -> -0.1698113208 | W29: =IF($B7=33,"",OFFSET('DATA CP DEREG'!$G$5,$B7,0)) -> 132 | X29: =OFFSET('DATA CP DEREG'!$O$5,$B7,0) -> 30171 | Y29: =IF($B7=33,"",W29*1000/X29) -> 4.375062146 | Z29: =IF($B7=33,"",IF(W29=0,"",AA29/W29-1)) -> 0.3636363636 | AA29: =IF($B7=33,"",OFFSET('DATA CP DEREG'!$H$5,$B7,0)) -> 180 | AB29: =OFFSET('DATA CP DEREG'!$P$5,$B7,0) -> 30267 | AC29: =IF($B7=33,"",AA29*1000/AB29) -> 5.947071067 | AD29: =IF(AC29="*","",IF(B7<33,IF(RANK(AC29,'DATA CP DEREG'!$Y$6:$Y$37)<9,1,IF(RANK(AC29,'DATA CP DEREG'!$Y$6:$Y$37)<17,2,IF(RANK(AC29,'DATA CP DEREG'!$Y$6:$Y$37)<25,3,4))),"")) -> 2
B31: Comparator authorities | C31: =SUM(C25:C29) -> 595 | D31: =SUM(D25:D29) -> 116020 | E31: =1000*C31/(SUMIF(C25,">0",D25)+SUMIF(C26,">0",D26)+SUMIF(C27,">0",D27)+SUMIF(C28,">0",D28)+SUMIF(C29,">0",D29)) -> 5.128426133 | F31: =IF(C31=0,"",SUM(G25:G29)/SUM(C25:C29)-1) -> -0.01344537815 | G31: =SUM(G25:G29) -> 587 | H31: =SUM(H25:H29) -> 116041 | I31: =1000*G31/(SUMIF(G25,">0",H25)+SUMIF(G26,">0",H26)+SUMIF(G27,">0",H27)+SUMIF(G28,">0",H28)+SUMIF(G29,">0",H29)) -> 5.058556889 | J31: =IF(G31=0,"",SUM(K25:K29)/SUM(G25:G29)-1) -> -0.1243611584 | K31: =SUM(K25:K29) -> 514 | L31: =SUM(L25:L29) -> 116155 | M31: =1000*K31/(SUMIF(K25,">0",L25)+SUMIF(K26,">0",L26)+SUMIF(K27,">0",L27)+SUMIF(K28,">0",L28)+SUMIF(K29,">0",L29)) -> 4.425121605 | N31: =IF(K31=0,"",SUM(O25:O29)/SUM(K25:K29)-1) -> 0.02918287938 | O31: =SUM(O25:O29) -> 529 | P31: =SUM(P25:P29) -> 116605 | Q31: =1000*O31/(SUMIF(O25,">0",P25)+SUMIF(O26,">0",P26)+SUMIF(O27,">0",P27)+SUMIF(O28,">0",P28)+SUMIF(O29,">0",P29)) -> 4.536683676 | R31: =IF(O31=0,"",SUM(S25:S29)/SUM(O25:O29)-1) -> 0.2627599244 | S31: =SUM(S25:S29) -> 668 | T31: =SUM(T25:T29) -> 117023 | U31: =1000*S31/(SUMIF(S25,">0",T25)+SUMIF(S26,">0",T26)+SUMIF(S27,">0",T27)+SUMIF(S28,">0",T28)+SUMIF(S29,">0",T29)) -> 5.708279569 | V31: =IF(S31=0,"",SUM(W25:W29)/SUM(S25:S29)-1) -> -0.1107784431 | W31: =SUM(W25:W29) -> 594 | X31: =SUM(X25:X29) -> 117353 | Y31: =1000*W31/(SUMIF(W25,">0",X25)+SUMIF(W26,">0",X26)+SUMIF(W27,">0",X27)+SUMIF(W28,">0",X28)+SUMIF(W29,">0",X29)) -> 5.061651598 | Z31: =IF(W31=0,"",SUM(AA25:AA29)/SUM(W25:W29)-1) -> -0.03872053872 | AA31: =SUM(AA25:AA29) -> 571 | AB31: =SUM(AB25:AB29) -> 117984 | AC31: =1000*AA31/(SUMIF(AA25,">0",AB25)+SUMIF(AA26,">0",AB26)+SUMIF(AA27,">0",AB27)+SUMIF(AA28,">0",AB28)+SUMIF(AA29,">0",AB29)) -> 4.839639273
B33: Scotland(1,2) | C33: ='DATA CP DEREG'!$B$38 -> 4228 | D33: ='DATA CP DEREG'!$J$38 -> 911579 | E33: =C33*1000/D33 -> 4.638105968 | F33: =IF(C33=0,"",G33/C33-1) -> 0.03926206244 | G33: ='DATA CP DEREG'!$C$38 -> 4394 | H33: ='DATA CP DEREG'!$K$38 -> 911041 | I33: =G33*1000/H33 -> 4.823054067 | J33: =IF(G33=0,"",K33/G33-1) -> 0.0332271279 | K33: ='DATA CP DEREG'!$D$38 -> 4540 | L33: ='DATA CP DEREG'!$L$38 -> 912262 | M33: =K33*1000/L33 -> 4.976640483 | N33: =IF(K33=0,"",O33/K33-1) -> -0.05308370044 | O33: ='DATA CP DEREG'!$E$38 -> 4299 | P33: ='DATA CP DEREG'!$M$38 -> 915917 | Q33: =O33*1000/P33 -> 4.69365674 | R33: =IF(O33=0,"",S33/O33-1) -> 0.01674808095 | S33: ='DATA CP DEREG'!$F$38 -> 4371 | T33: ='DATA CP DEREG'!$N$38 -> 917442 | U33: =S33*1000/T33 -> 4.764333876 | V33: =IF(S33=0,"",W33/S33-1) -> -0.01258293297 | W33: ='DATA CP DEREG'!$G$38 -> 4316 | X33: ='DATA CP DEREG'!$O$38 -> 919502 | Y33: =W33*1000/X33 -> 4.693845147 | Z33: =IF(W33=0,"",AA33/W33-1) -> -0.02131603336 | AA33: ='DATA CP DEREG'!$H$38 -> 4224 | AB33: ='DATA CP DEREG'!$P$38 -> 921397 | AC33: =AA33*1000/AB33 -> 4.584343122
A35: Notes
A36: =IF('DATA CP DEREG'!A40="","",'DATA CP DEREG'!A40) -> Figures for 2019 are provisional and may be revised with the publication of 2020 statistics.
A37: =IF('DATA CP DEREG'!A41="","",'DATA CP DEREG'!A41) -> Cells containing * represent numbers that are supressed to maintain confidentiality.
A38: =IF('DATA CP DEREG'!A42="","",'DATA CP DEREG'!A42) -> Population figures source: NRS mid-year population estimates for 2013-2019.
A39: =IF('DATA CP DEREG'!A43="","",'DATA CP DEREG'!A43) -> Source: Scottish Government CP Returns
R43: =R22-R31 -> -0.259381546 | U43: =U22-U31 -> 0.2834288749 | V43: =V22-V31 -> -0.03400270167 | Y43: =Y22-Y31 -> 0.02149995579 | Z43: =Z22-Z31 -> -0.1207282802 | AC43: =AC22-AC31 -> -0.5978893278 | AD43: =IF(AC43<-0.5,"less than",IF(AC43>0.5,"greater than","similar to")) -> less than
R44: =R22-R33 -> -0.01336970257 | U44: =U22-U33 -> 1.227374568 | V44: =V22-V33 -> -0.1321982118 | Y44: =Y22-Y33 -> 0.3893064074 | Z44: =Z22-Z33 -> -0.1381327855 | AC44: =AC22-AC33 -> -0.3425931771 | AD44: =IF(AC44<-0.5,"less than",IF(AC44>0.5,"greater than","similar to")) -> similar to
R46: =S22-O22 -> 2 | V46: =W22-S22 -> -86 | Z46: =AA22-W22 -> -81
R47: =IF(R46<0,"a decrease of ",IF(R46>=0,"an increase of ")) -> an increase of | V47: =IF(V46<0,"a decrease of ",IF(V46>=0,"an increase of ")) -> a decrease of | Z47: =IF(Z46<0,"a decrease of ",IF(Z46>=0,"an increase of ")) -> a decrease of
R49: =IF(R31<0,"a decrease of ",IF(R31>=0,"an increase of ")) -> an increase of | V49: =IF(V31<0,"a decrease of ",IF(V31>=0,"an increase of ")) -> a decrease of | Z49: =IF(Z31<0,"a decrease of ",IF(Z31>=0,"an increase of ")) -> a decrease of
R50: =IF(R33<0,"a decrease of ",IF(R33>=0,"an increase of ")) -> an increase of | V50: =IF(V33<0,"a decrease of ",IF(V33>=0,"an increase of ")) -> a decrease of | Z50: =IF(Z33<0,"a decrease of ",IF(Z33>=0,"an increase of ")) -> a decrease of

Sheet CP on register
A1: ='DATA CP ON REG'!A1 -> Child Protection: On Child Protection Registers: as at 31 July 2012-2018
C2: select comparators:
B3: =J3 -> 8 | J3: =VLOOKUP('Select an authority'!$A$1,'REF CAs'!$A$1:$F$32,2,0) -> 8
B4: =J4 -> 31 | J4: =VLOOKUP('Select an authority'!$A$1,'REF CAs'!$A$1:$F$32,3,0) -> 31
B5: =J5 -> 17 | J5: =VLOOKUP('Select an authority'!$A$1,'REF CAs'!$A$1:$F$32,4,0) -> 17
B6: =J6 -> 1 | J6: =VLOOKUP('Select an authority'!$A$1,'REF CAs'!$A$1:$F$32,5,0) -> 1
B7: =J7 -> 25 | J7: =VLOOKUP('Select an authority'!$A$1,'REF CAs'!$A$1:$F$32,6,0) -> 25
B12: =IF(AA23="*","[text statement not available due to suppression of data for confidentiality]",IF(Z23="","","* The number of child protection referrals in "&B23&" in "&AA21&" was "&ROUND(AA23,0)&" ("&Z48&ROUND((SQRT((Z23*100)^2)),1)&"% from "&ROUND(W23,0)&" in "&W21&")")) -> * The number of child protection referrals in Glasgow City in 2019 was 414 (an increase of 34.4% from 308 in 2018)
B15: =IF(Z32="","[text statement not available due to suppression of data for confidentiality]","* The comparator authorities show "&Z50&ROUND(SQRT((Z32*100)^2),1)&"%, while the Scotland figures show "&Z51&ROUND(SQRT((100*Z34)^2),1)&"%") -> * The comparator authorities show an increase of 16.3%, while the Scotland figures show an increase of 2.7%
B17: =IF(AC23="*","[text statement not available due to suppression of data for confidentiality]",IF(AC32="*","","* The rate (per 1,000 pop 0-15) is "&ROUND(AC23,1)&". This is "&AD44&" the comparator average rate of "&ROUND(AC32,1)&", and "&AD45&" the Scotland average rate of "&ROUND(AC34,1))) -> * The rate (per 1,000 pop 0-15) is 4.1. This is greater than the comparator average rate of 3.3, and greater than the Scotland average rate of 2.8
C21: ='DATA CP ON REG'!B5 -> 2013 | G21: ='DATA CP ON REG'!C5 -> 2014 | K21: ='DATA CP ON REG'!D5 -> 2015 | O21: ='DATA CP ON REG'!E5 -> 2016 | S21: ='DATA CP ON REG'!F5 -> 2017 | W21: ='DATA CP ON REG'!G5 -> 2018 | AA21: ='DATA CP ON REG'!H5 -> 2019
C22: number | D22: population 0-15 | E22: rate | F22: % change | G22: number | H22: population 0-15 | I22: rate | J22: % change | K22: number | L22: population 0-15 | M22: rate | N22: % change | O22: number | P22: population 0-15 | Q22: rate | R22: % change | S22: number | T22: population 0-15 | U22: rate | V22: % change | W22: number | X22: population 0-15 | Y22: rate | Z22: % change | AA22: number | AB22: population 0-15 | AC22: rate | AD22: quartile
B23: =OFFSET('REF EA Name'!$B$2,'Select an authority'!$A$1,0) -> Glasgow City | C23: =OFFSET('DATA CP ON REG'!$B$5,'Select an authority'!$A$1,0) -> 431 | E23: =OFFSET('DATA CP ON REG'!$S$5,'Select an authority'!$A$1,0) -> 4.468775597 | F23: =IF(C23=0,"",G23/C23-1) -> 0.1183294664 | G23: =OFFSET('DATA CP ON REG'!$C$5,'Select an authority'!$A$1,0) -> 482 | I23: =OFFSET('DATA CP ON REG'!$T$5,'Select an authority'!$A$1,0) -> 4.984024238 | J23: =IF(G23=0,"",K23/G23-1) -> 0.04564315353 | K23: =OFFSET('DATA CP ON REG'!$D$5,'Select an authority'!$A$1,0) -> 504 | M23: =OFFSET('DATA CP ON REG'!$U$5,'Select an authority'!$A$1,0) -> 5.167534758 | N23: =IF(K23=0,"",O23/K23-1) -> 0.01388888889 | O23: =OFFSET('DATA CP ON REG'!$E$5,'Select an authority'!$A$1,0) -> 511 | Q23: =OFFSET('DATA CP ON REG'!$V$5,'Select an authority'!$A$1,0) -> 5.188502036 | R23: =IF(O23=0,"",S23/O23-1) -> -0.2074363992 | S23: =OFFSET('DATA CP ON REG'!$F$5,'Select an authority'!$A$1,0) -> 405 | U23: =OFFSET('DATA CP ON REG'!$W$5,'Select an authority'!$A$1,0) -> 4.085255757 | V23: =IF(S23=0,"",W23/S23-1) -> -0.2395061728 | W23: =OFFSET('DATA CP ON REG'!$G$5,'Select an authority'!$A$1,0) -> 308 | Y23: =OFFSET('DATA CP ON REG'!$X$5,'Select an authority'!$A$1,0) -> 3.081910785 | Z23: =IF(W23=0,"",AA23/W23-1) -> 0.3441558442 | AA23: =OFFSET('DATA CP ON REG'!$H$5,'Select an authority'!$A$1,0) -> 414 | AC23: =OFFSET('DATA CP ON REG'!$Y$5,'Select an authority'!$A$1,0) -> 4.112610017 | AD23: =IF(RANK(AC23,'DATA CP ON REG'!$Y$6:$Y$37)<9,1,IF(RANK(AC23,'DATA CP ON REG'!$Y$6:$Y$37)<17,2,IF(RANK(AC23,'DATA CP ON REG'!$Y$6:$Y$37)<25,3,4))) -> 1
A25: Comparator Authorities:
B26: =OFFSET('REF EA Name'!$B$2, B3,0) -> Dundee City | C26: =IF(B3<33,OFFSET('DATA CP ON REG'!$B$5,B3,0),"") -> 46 | D26: =OFFSET('DATA CP ON REG'!$J$5,B3,0) -> 23753 | E26: =IF(B3<33,C26*1000/D26,"") -> 1.936597482 | F26: =IF($B3=33,"",IF(C26=0,"",G26/C26-1)) -> 0.4565217391 | G26: =IF(B3<33,OFFSET('DATA CP ON REG'!$C$5,B3,0),"") -> 67 | H26: =OFFSET('DATA CP ON REG'!$K$5,B3,0) -> 23716 | I26: =IF(B3<33,G26*1000/H26,"") -> 2.825096981 | J26: =IF($B3=33,"",IF(G26=0,"",K26/G26-1)) -> 0.05970149254 | K26: =IF(B3<33,OFFSET('DATA CP ON REG'!$D$5,B3,0),"") -> 71 | L26: =OFFSET('DATA CP ON REG'!$L$5,B3,0) -> 23798 | M26: =IF(B3<33,K26*1000/L26,"") -> 2.983443987 | N26: =IF($B3=33,"",IF(K26=0,"",O26/K26-1)) -> 0.1126760563 | O26: =IF(B3<33,OFFSET('DATA CP ON REG'!$E$5,B3,0),"") -> 79 | P26: =OFFSET('DATA CP ON REG'!$M$5,B3,0) -> 23849 | Q26: =IF(B3<33,O26*1000/P26,"") -> 3.312507862 | R26: =IF($B3=33,"",IF(O26=0,"",S26/O26-1)) -> -0.1265822785 | S26: =IF(B3<33,OFFSET('DATA CP ON REG'!$F$5,B3,0),"") -> 69 | T26: =OFFSET('DATA CP ON REG'!$N$5,B3,0) -> 23998 | U26: =IF(B3<33,S26*1000/T26,"") -> 2.875239603 | V26: =IF($B3=33,"",IF(S26=0,"",W26/S26-1)) -> 0.08695652174 | W26: =IF(B3<33,OFFSET('DATA CP ON REG'!$G$5,B3,0),"") -> 75 | X26: =OFFSET('DATA CP ON REG'!$O$5,B3,0) -> 24016 | Y26: =IF(B3<33,W26*1000/X26,"") -> 3.122918055 | Z26: =IF($B3=33,"",IF(W26=0,"",AA26/W26-1)) -> 0.2133333333 | AA26: =IF(B3<33,OFFSET('DATA CP ON REG'!$H$5,B3,0),"") -> 91 | AB26: =OFFSET('DATA CP ON REG'!$P$5,B3,0) -> 24044 | AC26: =IF(B3<33,AA26*1000/AB26,"") -> 3.784727999 | AD26: =IF(B3<33,IF(RANK(AC26,'DATA CP ON REG'!$Y$6:$Y$37)<9,1,IF(RANK(AC26,'DATA CP ON REG'!$Y$6:$Y$37)<17,2,IF(RANK(AC26,'DATA CP ON REG'!$Y$6:$Y$37)<25,3,4))),"") -> 1
B27: =OFFSET('REF EA Name'!$B$2,B4,0) -> West Dunbartonshire | C27: =IF(B4<33,OFFSET('DATA CP ON REG'!$B$5,B4,0),"") -> 32 | D27: =OFFSET('DATA CP ON REG'!$J$5,B4,0) -> 15782 | E27: =IF(B4<33,C27*1000/D27,"") -> 2.02762641 | F27: =IF($B4=33,"",IF(C27=0,"",G27/C27-1)) -> 0.28125 | G27: =IF(B4<33,OFFSET('DATA CP ON REG'!$C$5,B4,0),"") -> 41 | H27: =OFFSET('DATA CP ON REG'!$K$5,B4,0) -> 15698 | I27: =IF(B4<33,G27*1000/H27,"") -> 2.611797681 | J27: =IF($B4=33,"",IF(G27=0,"",K27/G27-1)) -> -0.6097560976 | K27: =IF(B4<33,OFFSET('DATA CP ON REG'!$D$5,B4,0),"") -> 16 | L27: =OFFSET('DATA CP ON REG'!$L$5,B4,0) -> 15709 | M27: =IF(B4<33,K27*1000/L27,"") -> 1.018524413 | N27: =IF($B4=33,"",IF(K27=0,"",O27/K27-1)) -> 2 | O27: =IF(B4<33,OFFSET('DATA CP ON REG'!$E$5,B4,0),"") -> 48 | P27: =OFFSET('DATA CP ON REG'!$M$5,B4,0) -> 15764 | Q27: =IF(B4<33,O27*1000/P27,"") -> 3.044912459 | R27: =IF($B4=33,"",IF(O27=0,"",S27/O27-1)) -> 0.4791666667 | S27: =IF(B4<33,OFFSET('DATA CP ON REG'!$F$5,B4,0),"") -> 71 | T27: =OFFSET('DATA CP ON REG'!$N$5,B4,0) -> 15790 | U27: =IF(B4<33,S27*1000/T27,"") -> 4.496516783 | V27: =IF($B4=33,"",IF(S27=0,"",W27/S27-1)) -> -0.2394366197 | W27: =IF(B4<33,OFFSET('DATA CP ON REG'!$G$5,B4,0),"") -> 54 | X27: =OFFSET('DATA CP ON REG'!$O$5,B4,0) -> 15705 | Y27: =IF(B4<33,W27*1000/X27,"") -> 3.438395415 | Z27: =IF($B4=33,"",IF(W27=0,"",AA27/W27-1)) -> -0.1851851852 | AA27: =IF(B4<33,OFFSET('DATA CP ON REG'!$H$5,B4,0),"") -> 44 | AB27: =OFFSET('DATA CP ON REG'!$P$5,B4,0) -> 15647 | AC27: =IF(B4<33,AA27*1000/AB27,"") -> 2.812040647 | AD27: =IF(B4<33,IF(RANK(AC27,'DATA CP ON REG'!$Y$6:$Y$37)<9,1,IF(RANK(AC27,'DATA CP ON REG'!$Y$6:$Y$37)<17,2,IF(RANK(AC27,'DATA CP ON REG'!$Y$6:$Y$37)<25,3,4))),"") -> 2
B28: =OFFSET('REF EA Name'!$B$2,B5,0) -> Inverclyde | C28: =IF(B5<33,OFFSET('DATA CP ON REG'!$B$5,B5,0),"") -> 24 | D28: =OFFSET('DATA CP ON REG'!$J$5,B5,0) -> 13241 | E28: =IF(B5<33,C28*1000/D28,"") -> 1.812551922 | F28: =IF($B5=33,"",IF(C28=0,"",G28/C28-1)) -> 0.08333333333 | G28: =IF(B5<33,OFFSET('DATA CP ON REG'!$C$5,B5,0),"") -> 26 | H28: =OFFSET('DATA CP ON REG'!$K$5,B5,0) -> 13143 | I28: =IF(B5<33,G28*1000/H28,"") -> 1.978239367 | J28: =IF($B5=33,"",IF(G28=0,"",K28/G28-1)) -> 0.6153846154 | K28: =IF(B5<33,OFFSET('DATA CP ON REG'!$D$5,B5,0),"") -> 42 | L28: =OFFSET('DATA CP ON REG'!$L$5,B5,0) -> 12966 | M28: =IF(B5<33,K28*1000/L28,"") -> 3.239241092 | N28: =IF($B5=33,"",IF(K28=0,"",O28/K28-1)) -> -0.04761904762 | O28: =IF(B5<33,OFFSET('DATA CP ON REG'!$E$5,B5,0),"") -> 40 | P28: =OFFSET('DATA CP ON REG'!$M$5,B5,0) -> 12851 | Q28: =IF(B5<33,O28*1000/P28,"") -> 3.112598241 | R28: =IF($B5=33,"",IF(O28=0,"",S28/O28-1)) -> -0.175 | S28: =IF(B5<33,OFFSET('DATA CP ON REG'!$F$5,B5,0),"") -> 33 | T28: =OFFSET('DATA CP ON REG'!$N$5,B5,0) -> 12701 | U28: =IF(B5<33,S28*1000/T28,"") -> 2.598220613 | V28: =IF($B5=33,"",IF(S28=0,"",W28/S28-1)) -> -0.06060606061 | W28: =IF(B5<33,OFFSET('DATA CP ON REG'!$G$5,B5,0),"") -> 31 | X28: =OFFSET('DATA CP ON REG'!$O$5,B5,0) -> 12628 | Y28: =IF(B5<33,W28*1000/X28,"") -> 2.454862211 | Z28: =IF($B5=33,"",IF(W28=0,"",AA28/W28-1)) -> 0.5483870968 | AA28: =IF(B5<33,OFFSET('DATA CP ON REG'!$H$5,B5,0),"") -> 48 | AB28: =OFFSET('DATA CP ON REG'!$P$5,B5,0) -> 12603 | AC28: =IF(B5<33,AA28*1000/AB28,"") -> 3.808616996 | AD28: =IF(B5<33,IF(RANK(AC28,'DATA CP ON REG'!$Y$6:$Y$37)<9,1,IF(RANK(AC28,'DATA CP ON REG'!$Y$6:$Y$37)<17,2,IF(RANK(AC28,'DATA CP ON REG'!$Y$6:$Y$37)<25,3,4))),"") -> 1
B29: =OFFSET('REF EA Name'!$B$2,B6,0) -> Aberdeen City | C29: =IF(B6<33,OFFSET('DATA CP ON REG'!$B$5,B6,0),"") -> 92 | D29: =OFFSET('DATA CP ON REG'!$J$5,B6,0) -> 33131 | E29: =IF(B6<33,C29*1000/D29,"") -> 2.776855513 | F29: =IF($B6=33,"",IF(C29=0,"",G29/C29-1)) -> -0.2065217391 | G29: =IF(B6<33,OFFSET('DATA CP ON REG'!$C$5,B6,0),"") -> 73 | H29: =OFFSET('DATA CP ON REG'!$K$5,B6,0) -> 33511 | I29: =IF(B6<33,G29*1000/H29,"") -> 2.178389186 | J29: =IF($B6=33,"",IF(G29=0,"",K29/G29-1)) -> 0.3424657534 | K29: =IF(B6<33,OFFSET('DATA CP ON REG'!$D$5,B6,0),"") -> 98 | L29: =OFFSET('DATA CP ON REG'!$L$5,B6,0) -> 33851 | M29: =IF(B6<33,K29*1000/L29,"") -> 2.895040028 | N29: =IF($B6=33,"",IF(K29=0,"",O29/K29-1)) -> 0.2040816327 | O29: =IF(B6<33,OFFSET('DATA CP ON REG'!$E$5,B6,0),"") -> 118 | P29: =OFFSET('DATA CP ON REG'!$M$5,B6,0) -> 34187 | Q29: =IF(B6<33,O29*1000/P29,"") -> 3.451604411 | R29: =IF($B6=33,"",IF(O29=0,"",S29/O29-1)) -> -0.3220338983 | S29: =IF(B6<33,OFFSET('DATA CP ON REG'!$F$5,B6,0),"") -> 80 | T29: =OFFSET('DATA CP ON REG'!$N$5,B6,0) -> 34495 | U29: =IF(B6<33,S29*1000/T29,"") -> 2.319176692 | V29: =IF($B6=33,"",IF(S29=0,"",W29/S29-1)) -> -0.15 | W29: =IF(B6<33,OFFSET('DATA CP ON REG'!$G$5,B6,0),"") -> 68 | X29: =OFFSET('DATA CP ON REG'!$O$5,B6,0) -> 34833 | Y29: =IF(B6<33,W29*1000/X29,"") -> 1.952171791 | Z29: =IF($B6=33,"",IF(W29=0,"",AA29/W29-1)) -> 0.75 | AA29: =IF(B6<33,OFFSET('DATA CP ON REG'!$H$5,B6,0),"") -> 119 | AB29: =OFFSET('DATA CP ON REG'!$P$5,B6,0) -> 35423 | AC29: =IF(B6<33,AA29*1000/AB29,"") -> 3.35939926 | AD29: =IF(B6<33,IF(RANK(AC29,'DATA CP ON REG'!$Y$6:$Y$37)<9,1,IF(RANK(AC29,'DATA CP ON REG'!$Y$6:$Y$37)<17,2,IF(RANK(AC29,'DATA CP ON REG'!$Y$6:$Y$37)<25,3,4))),"") -> 1
B30: =OFFSET('REF EA Name'!$B$2,B7,0) -> Renfrewshire | C30: =IF(B7<33,OFFSET('DATA CP ON REG'!$B$5,B7,0),"") -> 109 | D30: =OFFSET('DATA CP ON REG'!$J$5,B7,0) -> 30113 | E30: =IF(B7<33,C30*1000/D30,"") -> 3.619699133 | F30: =IF($B7=33,"",IF(C30=0,"",G30/C30-1)) -> -0.2844036697 | G30: =IF(B7<33,OFFSET('DATA CP ON REG'!$C$5,B7,0),"") -> 78 | H30: =OFFSET('DATA CP ON REG'!$K$5,B7,0) -> 29973 | I30: =IF(B7<33,G30*1000/H30,"") -> 2.602342108 | J30: =IF($B7=33,"",IF(G30=0,"",K30/G30-1)) -> 0.08974358974 | K30: =IF(B7<33,OFFSET('DATA CP ON REG'!$D$5,B7,0),"") -> 85 | L30: =OFFSET('DATA CP ON REG'!$L$5,B7,0) -> 29831 | M30: =IF(B7<33,K30*1000/L30,"") -> 2.849384868 | N30: =IF($B7=33,"",IF(K30=0,"",O30/K30-1)) -> -0.1529411765 | O30: =IF(B7<33,OFFSET('DATA CP ON REG'!$E$5,B7,0),"") -> 72 | P30: =OFFSET('DATA CP ON REG'!$M$5,B7,0) -> 29954 | Q30: =IF(B7<33,O30*1000/P30,"") -> 2.403685651 | R30: =IF($B7=33,"",IF(O30=0,"",S30/O30-1)) -> 0.4861111111 | S30: =IF(B7<33,OFFSET('DATA CP ON REG'!$F$5,B7,0),"") -> 107 | T30: =OFFSET('DATA CP ON REG'!$N$5,B7,0) -> 30039 | U30: =IF(B7<33,S30*1000/T30,"") -> 3.56203602 | V30: =IF($B7=33,"",IF(S30=0,"",W30/S30-1)) -> -0.03738317757 | W30: =IF(B7<33,OFFSET('DATA CP ON REG'!$G$5,B7,0),"") -> 103 | X30: =OFFSET('DATA CP ON REG'!$O$5,B7,0) -> 30171 | Y30: =IF(B7<33,W30*1000/X30,"") -> 3.41387425 | Z30: =IF($B7=33,"",IF(W30=0,"",AA30/W30-1)) -> -0.1941747573 | AA30: =IF(B7<33,OFFSET('DATA CP ON REG'!$H$5,B7,0),"") -> 83 | AB30: =OFFSET('DATA CP ON REG'!$P$5,B7,0) -> 30267 | AC30: =IF(B7<33,AA30*1000/AB30,"") -> 2.742260548 | AD30: =IF(B7<33,IF(RANK(AC30,'DATA CP ON REG'!$Y$6:$Y$37)<9,1,IF(RANK(AC30,'DATA CP ON REG'!$Y$6:$Y$37)<17,2,IF(RANK(AC30,'DATA CP ON REG'!$Y$6:$Y$37)<25,3,4))),"") -> 3
B32: Comparator authorities | C32: =SUM(C26:C30) -> 303 | D32: =SUM(D26:D30) -> 116020 | E32: =C32*1000/D32 -> 2.611618686 | F32: =IF(C32=0,"",SUM(G26:G30)/SUM(C26:C30)-1) -> -0.05940594059 | G32: =SUM(G26:G30) -> 285 | H32: =SUM(H26:H30) -> 116041 | I32: =SUM(G26:G30)/SUM(H26:H30)*1000 -> 2.456028473 | J32: =IF(G32=0,"",SUM(K26:K30)/SUM(G26:G30)-1) -> 0.09473684211 | K32: =SUM(K26:K30) -> 312 | L32: =SUM(L26:L30) -> 116155 | M32: =SUM(K26:K30)/SUM(L26:L30)*1000 -> 2.686066032 | N32: =IF(K32=0,"",SUM(O26:O30)/SUM(K26:K30)-1) -> 0.1442307692 | O32: =SUM(O26:O30) -> 357 | P32: =SUM(P26:P30) -> 116605 | Q32: =SUM(O26:O30)/SUM(P26:P30)*1000 -> 3.061618284 | R32: =IF(O32=0,"",SUM(S26:S30)/SUM(O26:O30)-1) -> 0.008403361345 | S32: =SUM(S26:S30) -> 360 | T32: =SUM(T26:T30) -> 117023 | U32: =SUM(S26:S30)/SUM(T26:T30)*1000 -> 3.076318331 | V32: =IF(S32=0,"",SUM(W26:W30)/SUM(S26:S30)-1) -> -0.08055555556 | W32: =SUM(W26:W30) -> 331 | X32: =SUM(X26:X30) -> 117353 | Y32: =SUM(W26:W30)/SUM(X26:X30)*1000 -> 2.820549965 | Z32: =IF(W32=0,"",SUM(AA26:AA30)/SUM(W26:W30)-1) -> 0.163141994 | AA32: =SUM(AA26:AA30) -> 385 | AB32: =SUM(AB26:AB30) -> 117984 | AC32: =SUM(AA26:AA30)/SUM(AB26:AB30)*1000 -> 3.263154326
B34: Scotland(1,2) | C34: ='DATA CP ON REG'!B38 -> 2645 | D34: ='DATA CP ON REG'!J38 -> 911579 | E34: =C34*1000/D34 -> 2.901558724 | F34: =IF(C34=0,"",G34/C34-1) -> 0.08771266541 | G34: ='DATA CP ON REG'!C38 -> 2877 | H34: ='DATA CP ON REG'!K38 -> 911041 | I34: =G34*1000/H34 -> 3.157925933 | J34: =IF(G34=0,"",K34/G34-1) -> -0.04727146333 | K34: ='DATA CP ON REG'!D38 -> 2741 | L34: ='DATA CP ON REG'!L38 -> 912262 | M34: =K34*1000/L34 -> 3.004619287 | N34: =IF(K34=0,"",O34/K34-1) -> -0.009485589201 | O34: ='DATA CP ON REG'!E38 -> 2715 | P34: ='DATA CP ON REG'!$M$38 -> 915917 | Q34: =O34*1000/P34 -> 2.964242393 | R34: =IF(O34=0,"",S34/O34-1) -> -0.0423572744 | S34: ='DATA CP ON REG'!F38 -> 2600 | T34: ='DATA CP ON REG'!$N$38 -> 917442 | U34: =S34*1000/T34 -> 2.833966616 | V34: =IF(S34=0,"",W34/S34-1) -> -0.02692307692 | W34: ='DATA CP ON REG'!G38 -> 2530 | X34: ='DATA CP ON REG'!$O$38 -> 919502 | Y34: =W34*1000/X34 -> 2.751489393 | Z34: =IF(W34=0,"",AA34/W34-1) -> 0.02727272727 | AA34: ='DATA CP ON REG'!H38 -> 2599 | AB34: ='DATA CP ON REG'!$P$38 -> 921397 | AC34: =AA34*1000/AB34 -> 2.820716803
A36: Notes
A37: =IF('DATA CP ON REG'!A40="","",'DATA CP ON REG'!A40) -> Figures for 2019 are provisional and may be revised with the publication of 2020 statistics.
A38: =IF('DATA CP ON REG'!A41="","",'DATA CP ON REG'!A41) -> Cells containing * represent numbers that are supressed to maintain confidentiality.
A39: =IF('DATA CP ON REG'!A42="","",'DATA CP ON REG'!A42) -> Population figures source: NRS mid-year population estimates for 2013-2019.
A40: =IF('DATA CP ON REG'!A43="","",'DATA CP ON REG'!A43) -> Source: Scottish Government CP Returns
V44: =V23-V32 -> -0.1589506173 | Y44: =Y23-Y32 -> 0.26136082 | Z44: =Z23-Z32 -> 0.1810138502 | AC44: =AC23-AC32 -> 0.8494556913 | AD44: =IF(AC44<-0.5,"less than",IF(AC44>0.5,"greater than","similar to")) -> greater than
V45: =V23-V34 -> -0.2125830959 | Y45: =Y23-Y34 -> 0.3304213915 | Z45: =Z23-Z34 -> 0.3168831169 | AC45: =AC23-AC34 -> 1.291893214 | AD45: =IF(AC45<-0.5,"less than",IF(AC45>0.5,"greater than","similar to")) -> greater than
V47: =W23-S23 -> -97 | Z47: =AA23-W23 -> 106
V48: =IF(V47<0,"a decrease of ",IF(V47>=0,"an increase of ")) -> a decrease of | Z48: =IF(Z47<0,"a decrease of ",IF(Z47>=0,"an increase of ")) -> an increase of
V50: =IF(V32<0,"a decrease of ",IF(V32>=0,"an increase of ")) -> a decrease of | Z50: =IF(Z32<0,"a decrease of ",IF(Z32>=0,"an increase of ")) -> an increase of
V51: =IF(V34<0,"a decrease of ",IF(V34>=0,"an increase of ")) -> a decrease of | Z51: =IF(Z34<0,"a decrease of ",IF(Z34>=0,"an increase of ")) -> an increase of

Sheet DATA CP CON
A1: Child Protection: Conferences: 31 July 2013-2019
A3: Number of child protection referrals that resulted in a case conference: 31 July 2013-2019 | J3: Population Aged 0-15 | R3: Number of child protection referrals that resulted in a case conference per 1,000 children: year ended 31 July 2013-2019
A5: Council | B5: 2013 | C5: 2014 | D5: 2015 | E5: 2016 | F5: 2017 | G5: 2018 | H5: 2019 | J5: 2013 | K5: 2014 | L5: 2015 | M5: 2016 | N5: 2017 | O5: 2018 | P5: 2019 | R5: Council | S5: 2013 | T5: 2014 | U5: 2015 | V5: 2016 | W5: 2017 | X5: 2018 | Y5: 2019
A6: Aberdeen City | B6: 212 | C6: 225 | D6: 205 | E6: 196 | F6: 205 | G6: 176 | H6: 208 | J6: 33131 | K6: 33511 | L6: 33851 | M6: 34187 | N6: 34495 | O6: 34833 | P6: 35423 | R6: Aberdeen City | S6: =IFERROR(B6*1000/J6,"*") -> 6.398840965 | T6: =IFERROR(C6*1000/K6,"*") -> 6.714213243 | U6: 6.05595108 | V6: 5.733173428 | W6: 5.942890274 | X6: 5.05267993 | Y6: 5.871891144
A7: Aberdeenshire | B7: 80 | C7: 97 | D7: 126 | E7: 117 | F7: 134 | G7: 127 | H7: 154 | J7: 48112 | K7: 48669 | L7: 48856 | M7: 48871 | N7: 48888 | O7: 49033 | P7: 49016 | R7: Aberdeenshire | S7: =IFERROR(B7*1000/J7,"*") -> 1.662786831 | T7: 1.993055127 | U7: 2.579007696 | V7: 2.394057826 | W7: 2.740958927 | X7: 2.590092387 | Y7: 3.141831239
A8: Angus | B8: 160 | C8: 216 | D8: 193 | E8: 181 | F8: 171 | G8: 202 | H8: 143 | J8: 19757 | K8: 19676 | L8: 19653 | M8: 19445 | N8: 19288 | O8: 19253 | P8: 19145 | R8: Angus | S8: 8.098395505 | T8: 10.97784102 | U8: 9.820383656 | V8: 9.308305477 | W8: 8.865615927 | X8: 10.4918714 | Y8: 7.469313137
A9: Argyll & Bute | B9: 76 | C9: 63 | D9: 67 | E9: 73 | F9: 92 | G9: 80 | H9: 68 | J9: 13814 | K9: 13575 | L9: 13292 | M9: 13238 | N9: 13163 | O9: 13024 | P9: 12906 | R9: Argyll & Bute | S9: 5.501664978 | T9: 4.640883978 | U9: 5.04062594 | V9: 5.514428161 | W9: 6.989288156 | X9: 6.142506143 | Y9: 5.268867194
A10: City of Edinburgh | B10: 498 | C10: 522 | D10: 476 | E10: 482 | F10: 368 | G10: 312 | H10: 201 | J10: 74440 | K10: 75329 | L10: 76108 | M10: 77364 | N10: 78052 | O10: 78501 | P10: 79067 | R10: City of Edinburgh | S10: 6.689951639 | T10: 6.929602145 | U10: 6.254270248 | V10: 6.230287989 | W10: 4.714805514 | X10: 3.974471663 | Y10: 2.542147799
A11: Clackmannanshire | B11: 66 | C11: 80 | D11: 97 | E11: 26 | F11: 59 | G11: 76 | H11: 70 | J11: 9180 | K11: 9087 | L11: 9029 | M11: 9024 | N11: 9020 | O11: 8980 | P11: 8946 | R11: Clackmannanshire | S11: 7.189542484 | T11: 8.803785628 | U11: 10.74316093 | V11: 2.881205674 | W11: 6.541019956 | X11: 8.46325167 | Y11: 7.824726135
A12: Dumfries and Galloway | B12: 160 | C12: 205 | D12: 211 | E12: 149 | F12: 225 | G12: 284 | H12: 209 | J12: 24265 | K12: 23927 | L12: 23676 | M12: 23614 | N12: 23487 | O12: 23424 | P12: 23243 | R12: Dumfries and Galloway | S12: 6.593859468 | T12: 8.567726836 | U12: 8.911978375 | V12: 6.309816211 | W12: 9.579767531 | X12: 12.12431694 | Y12: 8.991954567
A13: Dundee City | B13: 160 | C13: 152 | D13: 162 | E13: 174 | F13: 152 | G13: 157 | H13: 180 | J13: 23753 | K13: 23716 | L13: 23798 | M13: 23849 | N13: 23998 | O13: 24016 | P13: 24044 | R13: Dundee City | S13: 6.735991243 | T13: 6.40917524 | U13: 6.807294731 | V13: 7.295903392 | W13: 6.333861155 | X13: 6.537308461 | Y13: 7.486275162
A14: East Ayrshire | B14: 134 | C14: 124 | D14: 169 | E14: 196 | F14: 230 | G14: 289 | H14: 255 | J14: 21380 | K14: 21169 | L14: 21191 | M14: 21259 | N14: 21164 | O14: 21119 | P14: 21053 | R14: East Ayrshire | S14: 6.267539757 | T14: 5.857621994 | U14: 7.975083762 | V14: 9.21962463 | W14: 10.86751087 | X14: 13.68436005 | Y14: 12.11228803
A15: East Dunbartonshire | B15: 110 | C15: 84 | D15: 119 | E15: 91 | F15: 88 | G15: 116 | H15: 103 | J15: 18326 | K15: 18384 | L15: 18544 | M15: 18810 | N15: 19061 | O15: 19224 | P15: 19398 | R15: East Dunbartonshire | S15: 6.00240096 | T15: 4.569190601 | U15: 6.417169974 | V15: 4.837852206 | W15: 4.616756728 | X15: 6.034124012 | Y15: 5.309825755
A16: East Lothian | B16: 100 | C16: 108 | D16: 52 | E16: 79 | F16: 85 | G16: 85 | H16: 93 | J16: 18729 | K16: 18807 | L16: 18915 | M16: 18989 | N16: 19051 | O16: 19350 | P16: 19700 | R16: East Lothian | S16: 5.339313364 | T16: 5.74254267 | U16: 2.749140893 | V16: 4.160303334 | W16: 4.461708047 | X16: 4.392764858 | Y16: 4.720812183
A17: East Renfrewshire | B17: 59 | C17: 43 | D17: 65 | E17: 38 | F17: 50 | G17: 26 | H17: 54 | J17: 18015 | K17: 18206 | L17: 18381 | M17: 18662 | N17: 19029 | O17: 19322 | P17: 19525 | R17: East Renfrewshire | S17: 3.275048571 | T17: 2.361858728 | U17: 3.536260269 | V17: 2.036223342 | W17: 2.627568448 | X17: 1.345616396 | Y17: 2.765685019
A18: Falkirk | B18: 119 | C18: 127 | D18: 115 | E18: 137 | F18: 150 | G18: 107 | H18: 132 | J18: 28309 | K18: 28288 | L18: 28318 | M18: 28359 | N18: 28329 | O18: 28230 | P18: 28112 | R18: Falkirk | S18: 4.203610159 | T18: 4.489536199 | U18: 4.061021259 | V18: 4.830917874 | W18: 5.294927459 | X18: 3.790294013 | Y18: 4.695503699
A19: Fife | B19: 373 | C19: 520 | D19: 440 | E19: 347 | F19: 340 | G19: 379 | H19: 349 | J19: 64186 | K19: 64070 | L19: 64081 | M19: 64372 | N19: 64333 | O19: 64473 | P19: 64552 | R19: Fife | S19: 5.811236095 | T19: 8.11612299 | U19: 6.866309827 | V19: 5.390542472 | W19: 5.285001477 | X19: 5.87842973 | Y19: 5.406493989
A20: Glasgow City | B20: 878 | C20: 778 | D20: 1175 | E20: 971 | F20: 769 | G20: 668 | H20: 708 | J20: 96447 | K20: 96709 | L20: 97532 | M20: 98487 | N20: 99137 | O20: 99938 | P20: 100666 | R20: Glasgow City | S20: 9.103445416 | T20: 8.044752815 | U20: 12.04732806 | V20: 9.85916923 | W20: 7.756942413 | X20: 6.684144169 | Y20: 7.03315916
A21: Highland | B21: 192 | C21: 244 | D21: 179 | E21: 194 | F21: 163 | G21: 175 | H21: 177 | J21: 40530 | K21: 40126 | L21: 39956 | M21: 39972 | N21: 39555 | O21: 39335 | P21: 39036 | R21: Highland | S21: 4.73723168 | T21: 6.080845337 | U21: 4.479927921 | V21: 4.853397378 | W21: 4.120844394 | X21: 4.448964027 | Y21: 4.534276053
A22: Inverclyde | B22: 70 | C22: 101 | D22: 110 | E22: 106 | F22: 95 | G22: 70 | H22: 92 | J22: 13241 | K22: 13143 | L22: 12966 | M22: 12851 | N22: 12701 | O22: 12628 | P22: 12603 | R22: Inverclyde | S22: 5.286609773 | T22: =IFERROR(C22*1000/K22,"*") -> 7.684699079 | U22: =IFERROR(D22*1000/L22,"*") -> 8.48372667 | V22: =IFERROR(E22*1000/M22,"*") -> 8.24838534 | W22: =IFERROR(F22*1000/N22,"*") -> 7.479726006 | X22: =IFERROR(G22*1000/O22,"*") -> 5.543237251 | Y22: =IFERROR(H22*1000/P22,"*") -> 7.299849242
A23: Midlothian | B23: 166 | C23: 192 | D23: 87 | E23: 126 | F23: 155 | G23: 131 | H23: 135 | J23: 16061 | K23: 16365 | L23: 16624 | M23: 16884 | N23: 17229 | O23: 17590 | P23: 17953 | R23: Midlothian | S23: 10.33559554 | T23: 11.73235564 | U23: 5.233397498 | V23: 7.462686567 | W23: 8.996459458 | X23: 7.447413303 | Y23: 7.519634601
A24: Moray | B24: 110 | C24: 102 | D24: 74 | E24: 97 | F24: 113 | G24: 91 | H24: 113 | J24: 16611 | K24: 16591 | L24: 16502 | M24: 16527 | N24: 16362 | O24: 16173 | P24: 16145 | R24: Moray | S24: 6.622117874 | T24: 6.147911518 | U24: 4.484304933 | V24: 5.86918376 | W24: 6.90624618 | X24: 5.62666172 | Y24: 6.99907092
A25: Na h-Eileanan Siar | B25: 21 | C25: 11 | D25: * | E25: 9 | F25: 10 | G25: 26 | H25: 19 | J25: 4460 | K25: 4431 | L25: 4348 | M25: 4307 | N25: 4367 | O25: 4328 | P25: 4254 | R25: Na h-Eileanan Siar | S25: 4.708520179 | T25: 2.482509592 | U25: * | V25: 2.089621546 | W25: 2.289901534 | X25: 6.007393715 | Y25: 4.466384579
A26: North Ayrshire | B26: 232 | C26: 209 | D26: 202 | E26: 175 | F26: 154 | G26: 300 | H26: 285 | J26: 23675 | K26: 23369 | L26: 23196 | M26: 23128 | N26: 22901 | O26: 22780 | P26: 22468 | R26: North Ayrshire | S26: 9.79936642 | T26: 8.943472121 | U26: 8.708398 | V26: 7.566585956 | W26: 6.724597179 | X26: 13.16944688 | Y26: 12.68470714
A27: North Lanarkshire | B27: 255 | C27: 311 | D27: 236 | E27: 323 | F27: 331 | G27: 286 | H27: 361 | J27: 63940 | K27: 63555 | L27: 63131 | M27: 63299 | N27: 63011 | O27: 62955 | P27: 62836 | R27: North Lanarkshire | S27: 3.988113857 | T27: 4.893399418 | U27: 3.738258542 | V27: 5.102766236 | W27: 5.253051055 | X27: 4.542927488 | Y27: 5.745114266
A28: Orkney Islands | B28: 16 | C28: 14 | D28: * | E28: 16 | F28: 17 | G28: 18 | H28: 17 | J28: 3526 | K28: 3508 | L28: 3489 | M28: 3516 | N28: 3545 | O28: 3544 | P28: 3582 | R28: Orkney Islands | S28: 4.537719796 | T28: 3.990877993 | U28: * | V28: 4.550625711 | W28: 4.795486601 | X28: 5.079006772 | Y28: 4.745951982
A29: Perth and Kinross | B29: 92 | C29: 129 | D29: 132 | E29: 123 | F29: 111 | G29: 118 | H29: 162 | J29: 24640 | K29: 24462 | L29: 24619 | M29: 24514 | N29: 24453 | O29: 24425 | P29: 24421 | R29: Perth and Kinross | S29: 3.733766234 | T29: 5.273485406 | U29: 5.361712498 | V29: 5.017540997 | W29: 4.539320329 | X29: 4.83111566 | Y29: 6.633634986
A30: Renfrewshire | B30: 289 | C30: 278 | D30: 257 | E30: 221 | F30: 270 | G30: 213 | H30: 249 | J30: 30113 | K30: 29973 | L30: 29831 | M30: 29954 | N30: 30039 | O30: 30171 | P30: 30267 | R30: Renfrewshire | S30: 9.59718394 | T30: 9.275014179 | U30: 8.615198954 | V30: 7.377979569 | W30: 8.98831519 | X30: 7.059759372 | Y30: 8.226781643
A31: Scottish Borders | B31: 52 | C31: 40 | D31: 63 | E31: 91 | F31: 59 | G31: 88 | H31: 68 | J31: 19030 | K31: 19069 | L31: 18975 | M31: 19002 | N31: 19026 | O31: 19046 | P31: 19023 | R31: Scottish Borders | S31: 2.732527588 | T31: 2.097645393 | U31: 3.320158103 | V31: 4.788969582 | W31: 3.101019657 | X31: 4.620392733 | Y31: 3.574620197
A32: Shetland Islands | B32: 9 | C32: 26 | D32: 39 | E32: 28 | F32: 17 | G32: 15 | H32: 24 | J32: 4357 | K32: 4307 | L32: 4254 | M32: 4233 | N32: 4233 | O32: 4205 | P32: 4198 | R32: Shetland Islands | S32: 2.065641496 | T32: 6.036684467 | U32: 9.167842031 | V32: 6.61469407 | W32: 4.016064257 | X32: 3.567181926 | Y32: 5.717008099
A33: South Ayrshire | B33: 160 | C33: 117 | D33: 136 | E33: 130 | F33: 147 | G33: 109 | H33: 128 | J33: 18074 | K33: 17833 | L33: 17798 | M33: 17760 | N33: 17716 | O33: 17638 | P33: 17608 | R33: South Ayrshire | S33: 8.852495297 | T33: 6.560870297 | U33: 7.641308012 | V33: 7.31981982 | W33: 8.297584105 | X33: 6.179838984 | Y33: 7.26942299
A34: South Lanarkshire | B34: 372 | C34: 382 | D34: 412 | E34: 419 | F34: 384 | G34: 440 | H34: 322 | J34: 55046 | K34: 54888 | L34: 55027 | M34: 54876 | N34: 55151 | O34: 55260 | P34: 55649 | R34: South Lanarkshire | S34: 6.757984231 | T34: 6.959626877 | U34: 7.48723354 | V34: 7.635396166 | W34: 6.962702399 | X34: 7.962359754 | Y34: 5.786267498
A35: Stirling | B35: 100 | C35: 83 | D35: 76 | E35: 73 | F35: 61 | G35: 100 | H35: 63 | J35: 15639 | K35: 15527 | L35: 15510 | M35: 15493 | N35: 15425 | O35: 15514 | P35: 15417 | R35: Stirling | S35: 6.394270733 | T35: 5.345527146 | U35: 4.900064475 | V35: 4.711805331 | W35: 3.954619125 | X35: 6.445790899 | Y35: 4.086398132
A36: West Dunbartonshire | B36: 129 | C36: 135 | D36: 139 | E36: 159 | F36: 251 | G36: 221 | H36: 163 | J36: 15782 | K36: 15698 | L36: 15709 | M36: 15764 | N36: 15790 | O36: 15705 | P36: 15647 | R36: West Dunbartonshire | S36: 8.173868965 | T36: 8.599821633 | U36: 8.848430836 | V36: 10.08627252 | W36: 15.8961368 | X36: 14.07195161 | Y36: 10.4173324
A37: West Lothian | B37: 151 | C37: 164 | D37: 223 | E37: 160 | F37: 193 | G37: 170 | H37: 220 | J37: 35010 | K37: 35073 | L37: 35102 | M37: 35307 | N37: 35443 | O37: 35485 | P37: 35494 | R37: West Lothian | S37: 4.313053413 | T37: 4.675961566 | U37: 6.352914364 | V37: 4.53167927 | W37: 5.445362977 | X37: 4.790756658 | Y37: 6.198230687
A38: Scotland | B38: 5601 | C38: 5882 | D38: 6061 | E38: 5707 | F38: 5649 | G38: 5655 | H38: 5525 | J38: 911579 | K38: 911041 | L38: 912262 | M38: 915917 | N38: 917442 | O38: 919502 | P38: =SUM(P6:P37) -> 921397 | R38: Scotland | S38: 6.14428371 | T38: 6.456350483 | U38: 6.643924662 | V38: 6.230913937 | W38: 6.157337467 | X38: 6.150068189 | Y38: 5.996329487
A39: Notes
A40: Figures for 2019 are provisional and may be revised with the publication of 2020 statistics.
A41: Cells containing * represent numbers that are supressed to maintain confidentiality.
A42: Population figures source: NRS mid-year population estimates for 2013-2019.
A43: Source: Scottish Government CP Returns

Sheet DATA CP REG
A1: Child Protection: Registrations: 31 July 2013-2019
A3: Number of registrations following a case conference: 31 July 2013-2019 | J3: Population Aged 0-15 | R3: Number of registrations following a case conference per 1,000 children: 31 July 2013-2019
A5: Council | B5: 2013 | C5: 2014 | D5: 2015 | E5: 2016 | F5: 2017 | G5: 2018 | H5: 2019 | J5: ='DATA CP CON'!J5 -> 2013 | K5: ='DATA CP CON'!K5 -> 2014 | L5: ='DATA CP CON'!L5 -> 2015 | M5: ='DATA CP CON'!M5 -> 2016 | N5: ='DATA CP CON'!N5 -> 2017 | O5: ='DATA CP CON'!O5 -> 2018 | P5: ='DATA CP CON'!P5 -> 2019 | R5: Council | S5: 2013 | T5: 2014 | U5: 2015 | V5: 2016 | W5: 2017 | X5: 2018 | Y5: 2019
A6: Aberdeen City | B6: 170 | C6: 167 | D6: 159 | E6: 156 | F6: 164 | G6: 150 | H6: 162 | J6: ='DATA CP CON'!J6 -> 33131 | K6: ='DATA CP CON'!K6 -> 33511 | L6: ='DATA CP CON'!L6 -> 33851 | M6: ='DATA CP CON'!M6 -> 34187 | N6: ='DATA CP CON'!N6 -> 34495 | O6: ='DATA CP CON'!O6 -> 34833 | P6: ='DATA CP CON'!P6 -> 35423 | R6: Aberdeen City | S6: =IFERROR(B6*1000/J6,"*") -> 5.131146057 | T6: =IFERROR(C6*1000/K6,"*") -> 4.983438274 | U6: 4.69705474 | V6: 4.563138035 | W6: 4.754312219 | X6: 4.306261304 | Y6: 4.573299833
A7: Aberdeenshire | B7: 67 | C7: 95 | D7: 113 | E7: 109 | F7: 124 | G7: 116 | H7: 142 | J7: ='DATA CP CON'!J7 -> 48112 | K7: ='DATA CP CON'!K7 -> 48669 | L7: ='DATA CP CON'!L7 -> 48856 | M7: ='DATA CP CON'!M7 -> 48871 | N7: ='DATA CP CON'!N7 -> 48888 | O7: ='DATA CP CON'!O7 -> 49033 | P7: ='DATA CP CON'!P7 -> 49016 | R7: Aberdeenshire | S7: =IFERROR(B7*1000/J7,"*") -> 1.392583971 | T7: 1.951961207 | U7: 2.3129196 | V7: 2.230361564 | W7: 2.536409753 | X7: 2.365753676 | Y7: 2.89701322
A8: Angus | B8: 132 | C8: 176 | D8: 145 | E8: 151 | F8: 126 | G8: 154 | H8: 98 | J8: ='DATA CP CON'!J8 -> 19757 | K8: ='DATA CP CON'!K8 -> 19676 | L8: ='DATA CP CON'!L8 -> 19653 | M8: ='DATA CP CON'!M8 -> 19445 | N8: ='DATA CP CON'!N8 -> 19288 | O8: ='DATA CP CON'!O8 -> 19253 | P8: ='DATA CP CON'!P8 -> 19145 | R8: Angus | S8: 6.681176292 | T8: 8.944907502 | U8: 7.378008447 | V8: 7.765492415 | W8: 6.532559104 | X8: 7.998753441 | Y8: 5.118829982
A9: Argyll & Bute | B9: 49 | C9: 47 | D9: 48 | E9: 64 | F9: 73 | G9: 57 | H9: 56 | J9: ='DATA CP CON'!J9 -> 13814 | K9: ='DATA CP CON'!K9 -> 13575 | L9: ='DATA CP CON'!L9 -> 13292 | M9: ='DATA CP CON'!M9 -> 13238 | N9: ='DATA CP CON'!N9 -> 13163 | O9: ='DATA CP CON'!O9 -> 13024 | P9: ='DATA CP CON'!P9 -> 12906 | R9: Argyll & Bute | S9: 3.547126104 | T9: 3.462246777 | U9: 3.611194704 | V9: 4.834567155 | W9: 5.545848211 | X9: 4.376535627 | Y9: 4.339067101
A10: City of Edinburgh | B10: 425 | C10: 451 | D10: 384 | E10: 411 | F10: 302 | G10: 285 | H10: 180 | J10: ='DATA CP CON'!J10 -> 74440 | K10: ='DATA CP CON'!K10 -> 75329 | L10: ='DATA CP CON'!L10 -> 76108 | M10: ='DATA CP CON'!M10 -> 77364 | N10: ='DATA CP CON'!N10 -> 78052 | O10: ='DATA CP CON'!O10 -> 78501 | P10: ='DATA CP CON'!P10 -> 79067 | R10: City of Edinburgh | S10: 5.709296077 | T10: 5.987070053 | U10: 5.045461712 | V10: 5.312548472 | W10: 3.869215395 | X10: 3.630527 | Y10: 2.276550267
A11: Clackmannanshire | B11: 57 | C11: 69 | D11: 87 | E11: 25 | F11: 46 | G11: 58 | H11: 57 | J11: ='DATA CP CON'!J11 -> 9180 | K11: ='DATA CP CON'!K11 -> 9087 | L11: ='DATA CP CON'!L11 -> 9029 | M11: ='DATA CP CON'!M11 -> 9024 | N11: ='DATA CP CON'!N11 -> 9020 | O11: ='DATA CP CON'!O11 -> 8980 | P11: ='DATA CP CON'!P11 -> 8946 | R11: Clackmannanshire | S11: 6.209150327 | T11: 7.593265104 | U11: 9.635618562 | V11: 2.770390071 | W11: 5.099778271 | X11: 6.458797327 | Y11: 6.37156271
A12: Dumfries and Galloway | B12: 121 | C12: 159 | D12: 168 | E12: 109 | F12: 154 | G12: 191 | H12: 142 | J12: ='DATA CP CON'!J12 -> 24265 | K12: ='DATA CP CON'!K12 -> 23927 | L12: ='DATA CP CON'!L12 -> 23676 | M12: ='DATA CP CON'!M12 -> 23614 | N12: ='DATA CP CON'!N12 -> 23487 | O12: ='DATA CP CON'!O12 -> 23424 | P12: ='DATA CP CON'!P12 -> 23243 | R12: Dumfries and Galloway | S12: 4.986606223 | T12: 6.645212521 | U12: 7.095793208 | V12: 4.615905819 | W12: 6.556818666 | X12: 8.154030055 | Y12: 6.109366261
A13: Dundee City | B13: 122 | C13: 132 | D13: 126 | E13: 151 | F13: 143 | G13: 142 | H13: 168 | J13: ='DATA CP CON'!J13 -> 23753 | K13: ='DATA CP CON'!K13 -> 23716 | L13: ='DATA CP CON'!L13 -> 23798 | M13: ='DATA CP CON'!M13 -> 23849 | N13: ='DATA CP CON'!N13 -> 23998 | O13: ='DATA CP CON'!O13 -> 24016 | P13: ='DATA CP CON'!P13 -> 24044 | R13: Dundee City | S13: 5.136193323 | T13: 5.565862709 | U13: 5.294562568 | V13: 6.331502369 | W13: 5.958829902 | X13: 5.91272485 | Y13: 6.987190151
A14: East Ayrshire | B14: 112 | C14: 88 | D14: 130 | E14: 140 | F14: 177 | G14: 158 | H14: 189 | J14: ='DATA CP CON'!J14 -> 21380 | K14: ='DATA CP CON'!K14 -> 21169 | L14: ='DATA CP CON'!L14 -> 21191 | M14: ='DATA CP CON'!M14 -> 21259 | N14: ='DATA CP CON'!N14 -> 21164 | O14: ='DATA CP CON'!O14 -> 21119 | P14: ='DATA CP CON'!P14 -> 21053 | R14: East Ayrshire | S14: 5.238540692 | T14: 4.157022061 | U14: 6.134679817 | V14: 6.585446164 | W14: 8.363258363 | X14: 7.48141484 | Y14: 8.977342896
A15: East Dunbartonshire | B15: 62 | C15: 75 | D15: 78 | E15: 78 | F15: 77 | G15: 101 | H15: 82 | J15: ='DATA CP CON'!J15 -> 18326 | K15: ='DATA CP CON'!K15 -> 18384 | L15: ='DATA CP CON'!L15 -> 18544 | M15: ='DATA CP CON'!M15 -> 18810 | N15: ='DATA CP CON'!N15 -> 19061 | O15: ='DATA CP CON'!O15 -> 19224 | P15: ='DATA CP CON'!P15 -> 19398 | R15: East Dunbartonshire | S15: 3.38317145 | T15: 4.079634465 | U15: 4.206212252 | V15: 4.146730463 | W15: 4.039662137 | X15: 5.253849355 | Y15: 4.227239922
A16: East Lothian | B16: 75 | C16: 83 | D16: 38 | E16: 66 | F16: 62 | G16: 72 | H16: 84 | J16: ='DATA CP CON'!J16 -> 18729 | K16: ='DATA CP CON'!K16 -> 18807 | L16: ='DATA CP CON'!L16 -> 18915 | M16: ='DATA CP CON'!M16 -> 18989 | N16: ='DATA CP CON'!N16 -> 19051 | O16: ='DATA CP CON'!O16 -> 19350 | P16: ='DATA CP CON'!P16 -> 19700 | R16: East Lothian | S16: 4.004485023 | T16: 4.413250385 | U16: 2.008987576 | V16: 3.475696456 | W16: 3.25442234 | X16: 3.720930233 | Y16: 4.263959391
A17: East Renfrewshire | B17: 51 | C17: 43 | D17: 57 | E17: 29 | F17: 35 | G17: 11 | H17: 26 | J17: ='DATA CP CON'!J17 -> 18015 | K17: ='DATA CP CON'!K17 -> 18206 | L17: ='DATA CP CON'!L17 -> 18381 | M17: ='DATA CP CON'!M17 -> 18662 | N17: ='DATA CP CON'!N17 -> 19029 | O17: ='DATA CP CON'!O17 -> 19322 | P17: ='DATA CP CON'!P17 -> 19525 | R17: East Renfrewshire | S17: 2.830974188 | T17: 2.361858728 | U17: 3.101028236 | V17: 1.553959919 | W17: 1.839297914 | X17: 0.5692992444 | Y17: 1.33162612
A18: Falkirk | B18: 93 | C18: 115 | D18: 102 | E18: 116 | F18: 127 | G18: 99 | H18: 128 | J18: ='DATA CP CON'!J18 -> 28309 | K18: ='DATA CP CON'!K18 -> 28288 | L18: ='DATA CP CON'!L18 -> 28318 | M18: ='DATA CP CON'!M18 -> 28359 | N18: ='DATA CP CON'!N18 -> 28329 | O18: ='DATA CP CON'!O18 -> 28230 | P18: ='DATA CP CON'!P18 -> 28112 | R18: Falkirk | S18: 3.285174326 | T18: 4.065328054 | U18: 3.60194929 | V18: 4.090412215 | W18: 4.483038582 | X18: 3.506907545 | Y18: 4.553215709
A19: Fife | B19: 318 | C19: 433 | D19: 348 | E19: 294 | F19: 314 | G19: 325 | H19: 318 | J19: ='DATA CP CON'!J19 -> 64186 | K19: ='DATA CP CON'!K19 -> 64070 | L19: ='DATA CP CON'!L19 -> 64081 | M19: ='DATA CP CON'!M19 -> 64372 | N19: ='DATA CP CON'!N19 -> 64333 | O19: ='DATA CP CON'!O19 -> 64473 | P19: ='DATA CP CON'!P19 -> 64552 | R19: Fife | S19: 4.954351416 | T19: 6.758233182 | U19: 5.430626863 | V19: 4.567203132 | W19: 4.880854305 | X19: 5.040869821 | Y19: 4.926260999
A20: Glasgow City | B20: 633 | C20: 708 | D20: 731 | E20: 599 | F20: 488 | G20: 411 | H20: 533 | J20: ='DATA CP CON'!J20 -> 96447 | K20: ='DATA CP CON'!K20 -> 96709 | L20: ='DATA CP CON'!L20 -> 97532 | M20: ='DATA CP CON'!M20 -> 98487 | N20: ='DATA CP CON'!N20 -> 99137 | O20: ='DATA CP CON'!O20 -> 99938 | P20: ='DATA CP CON'!P20 -> 100666 | R20: Glasgow City | S20: 6.563190146 | T20: 7.320931868 | U20: 7.494976008 | V20: 6.082020977 | W20: 4.922481011 | X20: 4.112549781 | Y20: 5.294737051
A21: Highland | B21: 150 | C21: 195 | D21: 131 | E21: 168 | F21: 138 | G21: 147 | H21: 151 | J21: ='DATA CP CON'!J21 -> 40530 | K21: ='DATA CP CON'!K21 -> 40126 | L21: ='DATA CP CON'!L21 -> 39956 | M21: ='DATA CP CON'!M21 -> 39972 | N21: ='DATA CP CON'!N21 -> 39555 | O21: ='DATA CP CON'!O21 -> 39335 | P21: ='DATA CP CON'!P21 -> 39036 | R21: Highland | S21: 3.70096225 | T21: 4.85969197 | U21: 3.278606467 | V21: 4.202942059 | W21: 3.488813045 | X21: 3.737129783 | Y21: 3.868224203
A22: Inverclyde | B22: 48 | C22: 68 | D22: 59 | E22: 57 | F22: 47 | G22: 50 | H22: 64 | J22: ='DATA CP CON'!J22 -> 13241 | K22: ='DATA CP CON'!K22 -> 13143 | L22: ='DATA CP CON'!L22 -> 12966 | M22: ='DATA CP CON'!M22 -> 12851 | N22: ='DATA CP CON'!N22 -> 12701 | O22: ='DATA CP CON'!O22 -> 12628 | P22: ='DATA CP CON'!P22 -> 12603 | R22: Inverclyde | S22: 3.625103844 | T22: 5.173856806 | U22: 4.550362487 | V22: 4.435452494 | W22: 3.700496024 | X22: 3.959455179 | Y22: 5.078155995
A23: Midlothian | B23: 129 | C23: 134 | D23: 64 | E23: 99 | F23: 129 | G23: 100 | H23: 112 | J23: ='DATA CP CON'!J23 -> 16061 | K23: ='DATA CP CON'!K23 -> 16365 | L23: ='DATA CP CON'!L23 -> 16624 | M23: ='DATA CP CON'!M23 -> 16884 | N23: ='DATA CP CON'!N23 -> 17229 | O23: ='DATA CP CON'!O23 -> 17590 | P23: ='DATA CP CON'!P23 -> 17953 | R23: Midlothian | S23: 8.031878463 | T23: 8.188206538 | U23: 3.84985563 | V23: 5.863539446 | W23: 7.487375936 | X23: 5.685048323 | Y23: 6.238511669
A24: Moray | B24: 94 | C24: 73 | D24: 66 | E24: 87 | F24: 97 | G24: 86 | H24: 95 | J24: ='DATA CP CON'!J24 -> 16611 | K24: ='DATA CP CON'!K24 -> 16591 | L24: ='DATA CP CON'!L24 -> 16502 | M24: ='DATA CP CON'!M24 -> 16527 | N24: ='DATA CP CON'!N24 -> 16362 | O24: ='DATA CP CON'!O24 -> 16173 | P24: ='DATA CP CON'!P24 -> 16145 | R24: Moray | S24: 5.658900728 | T24: 4.399975891 | U24: 3.99951521 | V24: 5.264113269 | W24: 5.928370615 | X24: 5.317504483 | Y24: 5.884174667
A25: Na h-Eileanan Siar | B25: 16 | C25: 9 | D25: * | E25: 5 | F25: 6 | G25: 12 | H25: 6 | J25: ='DATA CP CON'!J25 -> 4460 | K25: ='DATA CP CON'!K25 -> 4431 | L25: ='DATA CP CON'!L25 -> 4348 | M25: ='DATA CP CON'!M25 -> 4307 | N25: ='DATA CP CON'!N25 -> 4367 | O25: ='DATA CP CON'!O25 -> 4328 | P25: ='DATA CP CON'!P25 -> 4254 | R25: Na h-Eileanan Siar | S25: 3.587443946 | T25: 2.031144211 | U25: * | V25: 1.160900859 | W25: 1.373940921 | X25: 2.772643253 | Y25: 1.410437236
A26: North Ayrshire | B26: 200 | C26: 180 | D26: 163 | E26: 150 | F26: 139 | G26: 272 | H26: 237 | J26: ='DATA CP CON'!J26 -> 23675 | K26: ='DATA CP CON'!K26 -> 23369 | L26: ='DATA CP CON'!L26 -> 23196 | M26: ='DATA CP CON'!M26 -> 23128 | N26: ='DATA CP CON'!N26 -> 22901 | O26: ='DATA CP CON'!O26 -> 22780 | P26: ='DATA CP CON'!P26 -> 22468 | R26: North Ayrshire | S26: 8.447729673 | T26: 7.702511875 | U26: 7.027073633 | V26: 6.485645105 | W26: 6.069603947 | X26: 11.94029851 | Y26: 10.54833541
A27: North Lanarkshire | B27: 188 | C27: 185 | D27: 195 | E27: 240 | F27: 270 | G27: 219 | H27: 282 | J27: ='DATA CP CON'!J27 -> 63940 | K27: ='DATA CP CON'!K27 -> 63555 | L27: ='DATA CP CON'!L27 -> 63131 | M27: ='DATA CP CON'!M27 -> 63299 | N27: ='DATA CP CON'!N27 -> 63011 | O27: ='DATA CP CON'!O27 -> 62955 | P27: ='DATA CP CON'!P27 -> 62836 | R27: North Lanarkshire | S27: 2.94025649 | T27: 2.910864605 | U27: 3.088815321 | V27: 3.791529092 | W27: 4.284966117 | X27: 3.478675244 | Y27: 4.487873194
A28: Orkney Islands | B28: 13 | C28: 12 | D28: * | E28: 5 | F28: 16 | G28: 10 | H28: 7 | J28: ='DATA CP CON'!J28 -> 3526 | K28: ='DATA CP CON'!K28 -> 3508 | L28: ='DATA CP CON'!L28 -> 3489 | M28: ='DATA CP CON'!M28 -> 3516 | N28: ='DATA CP CON'!N28 -> 3545 | O28: ='DATA CP CON'!O28 -> 3544 | P28: ='DATA CP CON'!P28 -> 3582 | R28: Orkney Islands | S28: 3.686897334 | T28: 3.420752566 | U28: * | V28: 1.422070535 | W28: 4.513399154 | X28: 2.821670429 | Y28: 1.954215522
A29: Perth and Kinross | B29: 74 | C29: 89 | D29: 111 | E29: 100 | F29: 103 | G29: 109 | H29: 142 | J29: ='DATA CP CON'!J29 -> 24640 | K29: ='DATA CP CON'!K29 -> 24462 | L29: ='DATA CP CON'!L29 -> 24619 | M29: ='DATA CP CON'!M29 -> 24514 | N29: ='DATA CP CON'!N29 -> 24453 | O29: ='DATA CP CON'!O29 -> 24425 | P29: ='DATA CP CON'!P29 -> 24421 | R29: Perth and Kinross | S29: 3.003246753 | T29: 3.638296133 | U29: 4.508712783 | V29: 4.079301624 | W29: 4.212162107 | X29: 4.462640737 | Y29: 5.814667704
A30: Renfrewshire | B30: 191 | C30: 137 | D30: 139 | E30: 133 | F30: 194 | G30: 128 | H30: 160 | J30: ='DATA CP CON'!J30 -> 30113 | K30: ='DATA CP CON'!K30 -> 29973 | L30: ='DATA CP CON'!L30 -> 29831 | M30: ='DATA CP CON'!M30 -> 29954 | N30: ='DATA CP CON'!N30 -> 30039 | O30: ='DATA CP CON'!O30 -> 30171 | P30: ='DATA CP CON'!P30 -> 30267 | R30: Renfrewshire | S30: 6.342775545 | T30: 4.570780369 | U30: 4.659582314 | V30: 4.44014155 | W30: 6.458270914 | X30: 4.242484505 | Y30: 5.286285393
A31: Scottish Borders | B31: 47 | C31: 36 | D31: 55 | E31: 83 | F31: 51 | G31: 75 | H31: 60 | J31: ='DATA CP CON'!J31 -> 19030 | K31: ='DATA CP CON'!K31 -> 19069 | L31: ='DATA CP CON'!L31 -> 18975 | M31: ='DATA CP CON'!M31 -> 19002 | N31: ='DATA CP CON'!N31 -> 19026 | O31: ='DATA CP CON'!O31 -> 19046 | P31: ='DATA CP CON'!P31 -> 19023 | R31: Scottish Borders | S31: 2.469784551 | T31: 1.887880854 | U31: 2.898550725 | V31: 4.367961267 | W31: 2.680542416 | X31: 3.937834716 | Y31: 3.154076644
A32: Shetland Islands | B32: 4 | C32: 26 | D32: 31 | E32: 26 | F32: 13 | G32: 13 | H32: 22 | J32: ='DATA CP CON'!J32 -> 4357 | K32: ='DATA CP CON'!K32 -> 4307 | L32: ='DATA CP CON'!L32 -> 4254 | M32: ='DATA CP CON'!M32 -> 4233 | N32: ='DATA CP CON'!N32 -> 4233 | O32: ='DATA CP CON'!O32 -> 4205 | P32: ='DATA CP CON'!P32 -> 4198 | R32: Shetland Islands | S32: 0.9180628873 | T32: 6.036684467 | U32: 7.28725905 | V32: 6.142215923 | W32: 3.071107961 | X32: 3.091557669 | Y32: 5.240590758
A33: South Ayrshire | B33: 77 | C33: 83 | D33: 82 | E33: 81 | F33: 99 | G33: 78 | H33: 77 | J33: ='DATA CP CON'!J33 -> 18074 | K33: ='DATA CP CON'!K33 -> 17833 | L33: ='DATA CP CON'!L33 -> 17798 | M33: ='DATA CP CON'!M33 -> 17760 | N33: ='DATA CP CON'!N33 -> 17716 | O33: ='DATA CP CON'!O33 -> 17638 | P33: ='DATA CP CON'!P33 -> 17608 | R33: South Ayrshire | S33: 4.260263362 | T33: 4.654292604 | U33: 4.607259243 | V33: 4.560810811 | W33: 5.588168887 | X33: 4.422270099 | Y33: 4.373012267
A34: South Lanarkshire | B34: 249 | C34: 265 | D34: 272 | E34: 273 | F34: 253 | G34: 295 | H34: 220 | J34: ='DATA CP CON'!J34 -> 55046 | K34: ='DATA CP CON'!K34 -> 54888 | L34: ='DATA CP CON'!L34 -> 55027 | M34: ='DATA CP CON'!M34 -> 54876 | N34: ='DATA CP CON'!N34 -> 55151 | O34: ='DATA CP CON'!O34 -> 55260 | P34: ='DATA CP CON'!P34 -> 55649 | R34: South Lanarkshire | S34: 4.523489445 | T34: 4.828013409 | U34: 4.943027968 | V34: 4.974852394 | W34: 4.587405487 | X34: 5.33840029 | Y34: 3.953350465
A35: Stirling | B35: 91 | C35: 71 | D35: 66 | E35: 71 | F35: 55 | G35: 88 | H35: 58 | J35: ='DATA CP CON'!J35 -> 15639 | K35: ='DATA CP CON'!K35 -> 15527 | L35: ='DATA CP CON'!L35 -> 15510 | M35: ='DATA CP CON'!M35 -> 15493 | N35: ='DATA CP CON'!N35 -> 15425 | O35: ='DATA CP CON'!O35 -> 15514 | P35: ='DATA CP CON'!P35 -> 15417 | R35: Stirling | S35: 5.818786367 | T35: 4.572679848 | U35: 4.255319149 | V35: 4.582714774 | W35: 3.565640194 | X35: 5.672295991 | Y35: 3.76208082
A36: West Dunbartonshire | B36: 62 | C36: 65 | D36: 58 | E36: 77 | F36: 128 | G36: 95 | H36: 71 | J36: ='DATA CP CON'!J36 -> 15782 | K36: ='DATA CP CON'!K36 -> 15698 | L36: ='DATA CP CON'!L36 -> 15709 | M36: ='DATA CP CON'!M36 -> 15764 | N36: ='DATA CP CON'!N36 -> 15790 | O36: ='DATA CP CON'!O36 -> 15705 | P36: ='DATA CP CON'!P36 -> 15647 | R36: West Dunbartonshire | S36: 3.928526169 | T36: 4.14065486 | U36: 3.692150996 | V36: 4.884547069 | W36: 8.106396453 | X36: 6.049028972 | Y36: 4.537611044
A37: West Lothian | B37: 131 | C37: 153 | D37: 176 | E37: 120 | F37: 137 | G37: 139 | H37: 164 | J37: ='DATA CP CON'!J37 -> 35010 | K37: ='DATA CP CON'!K37 -> 35073 | L37: ='DATA CP CON'!L37 -> 35102 | M37: ='DATA CP CON'!M37 -> 35307 | N37: ='DATA CP CON'!N37 -> 35443 | O37: ='DATA CP CON'!O37 -> 35485 | P37: ='DATA CP CON'!P37 -> 35494 | R37: West Lothian | S37: 3.741788061 | T37: 4.362329997 | U37: 5.013959319 | V37: 3.398759453 | W37: 3.865361284 | X37: 3.917148091 | Y37: 4.620499239
A38: Scotland | B38: 4251 | C38: 4622 | D38: 4401 | E38: 4273 | F38: 4287 | G38: 4246 | H38: 4293 | J38: ='DATA CP CON'!J38 -> 911579 | K38: ='DATA CP CON'!K38 -> 911041 | L38: ='DATA CP CON'!L38 -> 912262 | M38: ='DATA CP CON'!M38 -> 915917 | N38: ='DATA CP CON'!N38 -> 917442 | O38: ='DATA CP CON'!O38 -> 919502 | P38: ='DATA CP CON'!P38 -> 921397 | R38: Scotland | S38: 4.663336913 | T38: 5.073317227 | U38: 4.824271974 | V38: 4.665269888 | W38: 4.672774955 | X38: 4.617716982 | Y38: 4.659229409
A39: Notes
A40: Figures for 2019 are provisional and may be revised with the publication of 2020 statistics.
A41: Cells containing * represent numbers that are supressed to maintain confidentiality.
A42: Population figures source: NRS mid-year population estimates for 2013-2019.
A43: Source: Scottish Government CP Returns

Sheet DATA CP DEREG
A1: Child Protection: De-registrations: 31 July 2013-2019
A3: Number of de-registrations: 31 July 2013-2019 | J3: Population Aged 0-15 | R3: Number of de-registrations per 1,000 children: 31 July 2013-2019
A5: Council | B5: 2013 | C5: 2014 | D5: 2015 | E5: 2016 | F5: 2017 | G5: 2018 | H5: 2019 | J5: ='DATA CP CON'!J5 -> 2013 | K5: ='DATA CP CON'!K5 -> 2014 | L5: ='DATA CP CON'!L5 -> 2015 | M5: ='DATA CP CON'!M5 -> 2016 | N5: ='DATA CP CON'!N5 -> 2017 | O5: ='DATA CP CON'!O5 -> 2018 | P5: ='DATA CP CON'!P5 -> 2019 | R5: Council | S5: =B5 -> 2013 | T5: =C5 -> 2014 | U5: 2015 | V5: 2016 | W5: 2017 | X5: 2018 | Y5: 2018
A6: Aberdeen City | B6: 154 | C6: 186 | D6: 134 | E6: 136 | F6: 201 | G6: 162 | H6: 111 | J6: ='DATA CP CON'!J6 -> 33131 | K6: ='DATA CP CON'!K6 -> 33511 | L6: ='DATA CP CON'!L6 -> 33851 | M6: ='DATA CP CON'!M6 -> 34187 | N6: ='DATA CP CON'!N6 -> 34495 | O6: ='DATA CP CON'!O6 -> 34833 | P6: ='DATA CP CON'!P6 -> 35423 | R6: Aberdeen City | S6: =IFERROR(B6*1000/J6,"*") -> 4.648214663 | T6: =IFERROR(C6*1000/K6,"*") -> 5.550416281 | U6: 3.95852412 | V6: 3.978120338 | W6: 5.826931439 | X6: 4.650762208 | Y6: 3.133557293
A7: Aberdeenshire | B7: 84 | C7: 79 | D7: 91 | E7: 135 | F7: 111 | G7: 116 | H7: 116 | J7: ='DATA CP CON'!J7 -> 48112 | K7: ='DATA CP CON'!K7 -> 48669 | L7: ='DATA CP CON'!L7 -> 48856 | M7: ='DATA CP CON'!M7 -> 48871 | N7: ='DATA CP CON'!N7 -> 48888 | O7: ='DATA CP CON'!O7 -> 49033 | P7: ='DATA CP CON'!P7 -> 49016 | R7: Aberdeenshire | S7: =IFERROR(B7*1000/J7,"*") -> 1.745926172 | T7: 1.623209846 | U7: 1.862616669 | V7: 2.762374414 | W7: 2.270495827 | X7: 2.365753676 | Y7: 2.36657418
A8: Angus | B8: 97 | C8: 156 | D8: 172 | E8: 144 | F8: 170 | G8: 141 | H8: 117 | J8: ='DATA CP CON'!J8 -> 19757 | K8: ='DATA CP CON'!K8 -> 19676 | L8: ='DATA CP CON'!L8 -> 19653 | M8: ='DATA CP CON'!M8 -> 19445 | N8: ='DATA CP CON'!N8 -> 19288 | O8: ='DATA CP CON'!O8 -> 19253 | P8: ='DATA CP CON'!P8 -> 19145 | R8: Angus | S8: 4.909652275 | T8: 7.92844074 | U8: 8.751844502 | V8: 7.4055027 | W8: 8.81377022 | X8: 7.323533995 | Y8: 6.111256203
A9: Argyll & Bute | B9: 81 | C9: 42 | D9: 36 | E9: 57 | F9: 82 | G9: 57 | H9: 59 | J9: ='DATA CP CON'!J9 -> 13814 | K9: ='DATA CP CON'!K9 -> 13575 | L9: ='DATA CP CON'!L9 -> 13292 | M9: ='DATA CP CON'!M9 -> 13238 | N9: ='DATA CP CON'!N9 -> 13163 | O9: ='DATA CP CON'!O9 -> 13024 | P9: ='DATA CP CON'!P9 -> 12906 | R9: Argyll & Bute | S9: 5.863616621 | T9: 3.093922652 | U9: 2.708396028 | V9: 4.305786373 | W9: 6.229582922 | X9: 4.376535627 | Y9: 4.571517124
A10: City of Edinburgh | B10: 386 | C10: 400 | D10: 442 | E10: 379 | F10: 353 | G10: 331 | H10: 247 | J10: ='DATA CP CON'!J10 -> 74440 | K10: ='DATA CP CON'!K10 -> 75329 | L10: ='DATA CP CON'!L10 -> 76108 | M10: ='DATA CP CON'!M10 -> 77364 | N10: ='DATA CP CON'!N10 -> 78052 | O10: ='DATA CP CON'!O10 -> 78501 | P10: ='DATA CP CON'!P10 -> 79067 | R10: City of Edinburgh | S10: 5.185384202 | T10: 5.310039958 | U10: 5.807536658 | V10: 4.898919394 | W10: 4.522625942 | X10: 4.216506796 | Y10: 3.123932867
A11: Clackmannanshire | B11: 39 | C11: 58 | D11: 77 | E11: 64 | F11: 37 | G11: 47 | H11: 69 | J11: ='DATA CP CON'!J11 -> 9180 | K11: ='DATA CP CON'!K11 -> 9087 | L11: ='DATA CP CON'!L11 -> 9029 | M11: ='DATA CP CON'!M11 -> 9024 | N11: ='DATA CP CON'!N11 -> 9020 | O11: ='DATA CP CON'!O11 -> 8980 | P11: ='DATA CP CON'!P11 -> 8946 | R11: Clackmannanshire | S11: 4.248366013 | T11: 6.38274458 | U11: 8.528076199 | V11: 7.092198582 | W11: 4.101995565 | X11: 5.233853007 | Y11: 7.712944333
A12: Dumfries and Galloway | B12: 137 | C12: 125 | D12: 192 | E12: 136 | F12: 136 | G12: 176 | H12: 210 | J12: ='DATA CP CON'!J12 -> 24265 | K12: ='DATA CP CON'!K12 -> 23927 | L12: ='DATA CP CON'!L12 -> 23676 | M12: ='DATA CP CON'!M12 -> 23614 | N12: ='DATA CP CON'!N12 -> 23487 | O12: ='DATA CP CON'!O12 -> 23424 | P12: ='DATA CP CON'!P12 -> 23243 | R12: Dumfries and Galloway | S12: 5.64599217 | T12: 5.22422368 | U12: 8.109477952 | V12: 5.759295333 | W12: 5.790437263 | X12: 7.513661202 | Y12: 9.034978273
A13: Dundee City | B13: 158 | C13: 111 | D13: 122 | E13: 143 | F13: 152 | G13: 136 | H13: 152 | J13: ='DATA CP CON'!J13 -> 23753 | K13: ='DATA CP CON'!K13 -> 23716 | L13: ='DATA CP CON'!L13 -> 23798 | M13: ='DATA CP CON'!M13 -> 23849 | N13: ='DATA CP CON'!N13 -> 23998 | O13: ='DATA CP CON'!O13 -> 24016 | P13: ='DATA CP CON'!P13 -> 24044 | R13: Dundee City | S13: 6.651791353 | T13: 4.680384551 | U13: 5.126481217 | V13: 5.996058535 | W13: 6.333861155 | X13: 5.662891406 | Y13: 6.32174347
A14: East Ayrshire | B14: 125 | C14: 100 | D14: 120 | E14: 160 | F14: 116 | G14: 147 | H14: 198 | J14: ='DATA CP CON'!J14 -> 21380 | K14: ='DATA CP CON'!K14 -> 21169 | L14: ='DATA CP CON'!L14 -> 21191 | M14: ='DATA CP CON'!M14 -> 21259 | N14: ='DATA CP CON'!N14 -> 21164 | O14: ='DATA CP CON'!O14 -> 21119 | P14: ='DATA CP CON'!P14 -> 21053 | R14: East Ayrshire | S14: 5.846585594 | T14: 4.723888705 | U14: 5.662781369 | V14: 7.526224187 | W14: 5.481005481 | X14: 6.960556845 | Y14: 9.404835415
A15: East Dunbartonshire | B15: 42 | C15: 75 | D15: 70 | E15: 91 | F15: 73 | G15: 86 | H15: 84 | J15: ='DATA CP CON'!J15 -> 18326 | K15: ='DATA CP CON'!K15 -> 18384 | L15: ='DATA CP CON'!L15 -> 18544 | M15: ='DATA CP CON'!M15 -> 18810 | N15: ='DATA CP CON'!N15 -> 19061 | O15: ='DATA CP CON'!O15 -> 19224 | P15: ='DATA CP CON'!P15 -> 19398 | R15: East Dunbartonshire | S15: 2.291825821 | T15: 4.079634465 | U15: 3.774805867 | V15: 4.837852206 | W15: 3.829809559 | X15: 4.473574698 | Y15: 4.330343334
A16: East Lothian | B16: 87 | C16: 65 | D16: 80 | E16: 45 | F16: 61 | G16: 88 | H16: 58 | J16: ='DATA CP CON'!J16 -> 18729 | K16: ='DATA CP CON'!K16 -> 18807 | L16: ='DATA CP CON'!L16 -> 18915 | M16: ='DATA CP CON'!M16 -> 18989 | N16: ='DATA CP CON'!N16 -> 19051 | O16: ='DATA CP CON'!O16 -> 19350 | P16: ='DATA CP CON'!P16 -> 19700 | R16: East Lothian | S16: 4.645202627 | T16: 3.45615994 | U16: 4.229447528 | V16: 2.369793038 | W16: 3.201931657 | X16: 4.547803618 | Y16: 2.944162437
A17: East Renfrewshire | B17: 66 | C17: 33 | D17: 60 | E17: 50 | F17: 26 | G17: 22 | H17: 20 | J17: ='DATA CP CON'!J17 -> 18015 | K17: ='DATA CP CON'!K17 -> 18206 | L17: ='DATA CP CON'!L17 -> 18381 | M17: ='DATA CP CON'!M17 -> 18662 | N17: ='DATA CP CON'!N17 -> 19029 | O17: ='DATA CP CON'!O17 -> 19322 | P17: ='DATA CP CON'!P17 -> 19525 | R17: East Renfrewshire | S17: 3.663613655 | T17: 1.812589256 | U17: 3.264240248 | V17: 2.679241239 | W17: 1.366335593 | X17: 1.138598489 | Y17: 1.024327785
A18: Falkirk | B18: 96 | C18: 100 | D18: 112 | E18: 109 | F18: 129 | G18: 91 | H18: 91 | J18: ='DATA CP CON'!J18 -> 28309 | K18: ='DATA CP CON'!K18 -> 28288 | L18: ='DATA CP CON'!L18 -> 28318 | M18: ='DATA CP CON'!M18 -> 28359 | N18: ='DATA CP CON'!N18 -> 28329 | O18: ='DATA CP CON'!O18 -> 28230 | P18: ='DATA CP CON'!P18 -> 28112 | R18: Falkirk | S18: 3.391147692 | T18: 3.535067873 | U18: 3.955081574 | V18: 3.843576995 | W18: 4.553637615 | X18: 3.223521077 | Y18: 3.237051793
A19: Fife | B19: 298 | C19: 416 | D19: 398 | E19: 319 | F19: 296 | G19: 327 | H19: 279 | J19: ='DATA CP CON'!J19 -> 64186 | K19: ='DATA CP CON'!K19 -> 64070 | L19: ='DATA CP CON'!L19 -> 64081 | M19: ='DATA CP CON'!M19 -> 64372 | N19: ='DATA CP CON'!N19 -> 64333 | O19: ='DATA CP CON'!O19 -> 64473 | P19: ='DATA CP CON'!P19 -> 64552 | R19: Fife | S19: 4.642756988 | T19: 6.492898392 | U19: 6.210889343 | V19: 4.955570745 | W19: 4.601060109 | X19: 5.071890559 | Y19: 4.322096914
A20: Glasgow City | B20: 639 | C20: 657 | D20: 709 | E20: 592 | F20: 594 | G20: 508 | H20: 427 | J20: ='DATA CP CON'!J20 -> 96447 | K20: ='DATA CP CON'!K20 -> 96709 | L20: ='DATA CP CON'!L20 -> 97532 | M20: ='DATA CP CON'!M20 -> 98487 | N20: ='DATA CP CON'!N20 -> 99137 | O20: ='DATA CP CON'!O20 -> 99938 | P20: ='DATA CP CON'!P20 -> 100666 | R20: Glasgow City | S20: 6.625400479 | T20: 6.793576606 | U20: 7.269409014 | V20: 6.010945607 | W20: 5.991708444 | X20: 5.083151554 | Y20: 4.241749945
A21: Highland | B21: 176 | C21: 169 | D21: 158 | E21: 143 | F21: 140 | G21: 168 | H21: 141 | J21: ='DATA CP CON'!J21 -> 40530 | K21: ='DATA CP CON'!K21 -> 40126 | L21: ='DATA CP CON'!L21 -> 39956 | M21: ='DATA CP CON'!M21 -> 39972 | N21: ='DATA CP CON'!N21 -> 39555 | O21: ='DATA CP CON'!O21 -> 39335 | P21: ='DATA CP CON'!P21 -> 39036 | R21: Highland | S21: 4.342462374 | T21: 4.211733041 | U21: 3.954349785 | V21: 3.577504253 | W21: 3.539375553 | X21: 4.271005466 | Y21: 3.612050415
A22: Inverclyde | B22: 54 | C22: 66 | D22: 43 | E22: 59 | F22: 51 | G22: 52 | H22: 47 | J22: ='DATA CP CON'!J22 -> 13241 | K22: ='DATA CP CON'!K22 -> 13143 | L22: ='DATA CP CON'!L22 -> 12966 | M22: ='DATA CP CON'!M22 -> 12851 | N22: ='DATA CP CON'!N22 -> 12701 | O22: ='DATA CP CON'!O22 -> 12628 | P22: ='DATA CP CON'!P22 -> 12603 | R22: Inverclyde | S22: 4.078241825 | T22: 5.021684547 | U22: 3.31636588 | V22: 4.591082406 | W22: 4.015431856 | X22: 4.117833386 | Y22: 3.729270809
A23: Midlothian | B23: 187 | C23: 139 | D23: 89 | E23: 77 | F23: 116 | G23: 119 | H23: 108 | J23: ='DATA CP CON'!J23 -> 16061 | K23: ='DATA CP CON'!K23 -> 16365 | L23: ='DATA CP CON'!L23 -> 16624 | M23: ='DATA CP CON'!M23 -> 16884 | N23: ='DATA CP CON'!N23 -> 17229 | O23: ='DATA CP CON'!O23 -> 17590 | P23: ='DATA CP CON'!P23 -> 17953 | R23: Midlothian | S23: 11.64311064 | T23: 8.493736633 | U23: 5.353705486 | V23: 4.56053068 | W23: 6.732834175 | X23: 6.765207504 | Y23: 6.015707681
A24: Moray | B24: 74 | C24: 92 | D24: 66 | E24: 68 | F24: 82 | G24: 103 | H24: 110 | J24: ='DATA CP CON'!J24 -> 16611 | K24: ='DATA CP CON'!K24 -> 16591 | L24: ='DATA CP CON'!L24 -> 16502 | M24: ='DATA CP CON'!M24 -> 16527 | N24: ='DATA CP CON'!N24 -> 16362 | O24: ='DATA CP CON'!O24 -> 16173 | P24: ='DATA CP CON'!P24 -> 16145 | R24: Moray | S24: 4.454879297 | T24: 5.545175095 | U24: 3.99951521 | V24: 4.114479337 | W24: 5.011612272 | X24: 6.36863909 | Y24: 6.813254878
A25: Na h-Eileanan Siar | B25: 10 | C25: 16 | D25: 6 | E25: * | F25: 6 | G25: 11 | H25: 6 | J25: ='DATA CP CON'!J25 -> 4460 | K25: ='DATA CP CON'!K25 -> 4431 | L25: ='DATA CP CON'!L25 -> 4348 | M25: ='DATA CP CON'!M25 -> 4307 | N25: ='DATA CP CON'!N25 -> 4367 | O25: ='DATA CP CON'!O25 -> 4328 | P25: ='DATA CP CON'!P25 -> 4254 | R25: Na h-Eileanan Siar | S25: 2.242152466 | T25: 3.610923042 | U25: 1.379944802 | V25: * | W25: 1.373940921 | X25: 2.541589649 | Y25: 1.410437236
A26: North Ayrshire | B26: 182 | C26: 165 | D26: 180 | E26: 172 | F26: 147 | G26: 178 | H26: 287 | J26: ='DATA CP CON'!J26 -> 23675 | K26: ='DATA CP CON'!K26 -> 23369 | L26: ='DATA CP CON'!L26 -> 23196 | M26: ='DATA CP CON'!M26 -> 23128 | N26: ='DATA CP CON'!N26 -> 22901 | O26: ='DATA CP CON'!O26 -> 22780 | P26: ='DATA CP CON'!P26 -> 22468 | R26: North Ayrshire | S26: 7.687434002 | T26: 7.060635885 | U26: 7.759958614 | V26: 7.436873054 | W26: 6.418933671 | X26: 7.813871817 | Y26: 12.77372263
A27: North Lanarkshire | B27: 178 | C27: 202 | D27: 175 | E27: 224 | F27: 254 | G27: 255 | H27: 215 | J27: ='DATA CP CON'!J27 -> 63940 | K27: ='DATA CP CON'!K27 -> 63555 | L27: ='DATA CP CON'!L27 -> 63131 | M27: ='DATA CP CON'!M27 -> 63299 | N27: ='DATA CP CON'!N27 -> 63011 | O27: ='DATA CP CON'!O27 -> 62955 | P27: ='DATA CP CON'!P27 -> 62836 | R27: North Lanarkshire | S27: 2.783859869 | T27: 3.178349461 | U27: 2.772013749 | V27: 3.538760486 | W27: 4.031042199 | X27: 4.050512271 | Y27: 3.421605449
A28: Orkney Islands | B28: 6 | C28: 16 | D28: 17 | E28: * | F28: 14 | G28: 8 | H28: 9 | J28: ='DATA CP CON'!J28 -> 3526 | K28: ='DATA CP CON'!K28 -> 3508 | L28: ='DATA CP CON'!L28 -> 3489 | M28: ='DATA CP CON'!M28 -> 3516 | N28: ='DATA CP CON'!N28 -> 3545 | O28: ='DATA CP CON'!O28 -> 3544 | P28: ='DATA CP CON'!P28 -> 3582 | R28: Orkney Islands | S28: 1.701644923 | T28: 4.561003421 | U28: 4.872456291 | V28: * | W28: 3.94922426 | X28: 2.257336343 | Y28: 2.512562814
A29: Perth and Kinross | B29: 63 | C29: 77 | D29: 90 | E29: 109 | F29: 91 | G29: 115 | H29: 139 | J29: ='DATA CP CON'!J29 -> 24640 | K29: ='DATA CP CON'!K29 -> 24462 | L29: ='DATA CP CON'!L29 -> 24619 | M29: ='DATA CP CON'!M29 -> 24514 | N29: ='DATA CP CON'!N29 -> 24453 | O29: ='DATA CP CON'!O29 -> 24425 | P29: ='DATA CP CON'!P29 -> 24421 | R29: Perth and Kinross | S29: 2.556818182 | T29: 3.147739351 | U29: 3.655713067 | V29: 4.44643877 | W29: 3.721424774 | X29: 4.708290686 | Y29: 5.691822612
A30: Renfrewshire | B30: 168 | C30: 168 | D30: 132 | E30: 146 | F30: 159 | G30: 132 | H30: 180 | J30: ='DATA CP CON'!J30 -> 30113 | K30: ='DATA CP CON'!K30 -> 29973 | L30: ='DATA CP CON'!L30 -> 29831 | M30: ='DATA CP CON'!M30 -> 29954 | N30: ='DATA CP CON'!N30 -> 30039 | O30: ='DATA CP CON'!O30 -> 30171 | P30: ='DATA CP CON'!P30 -> 30267 | R30: Renfrewshire | S30: 5.57898582 | T30: 5.60504454 | U30: 4.424927089 | V30: 4.874140349 | W30: 5.293118945 | X30: 4.375062146 | Y30: 5.947071067
A31: Scottish Borders | B31: 59 | C31: 45 | D31: 47 | E31: 40 | F31: 77 | G31: 64 | H31: 64 | J31: ='DATA CP CON'!J31 -> 19030 | K31: ='DATA CP CON'!K31 -> 19069 | L31: ='DATA CP CON'!L31 -> 18975 | M31: ='DATA CP CON'!M31 -> 19002 | N31: ='DATA CP CON'!N31 -> 19026 | O31: ='DATA CP CON'!O31 -> 19046 | P31: ='DATA CP CON'!P31 -> 19023 | R31: Scottish Borders | S31: 3.10036784 | T31: 2.359851067 | U31: 2.476943347 | V31: 2.105041575 | W31: 4.047093451 | X31: 3.360285624 | Y31: 3.36434842
A32: Shetland Islands | B32: 8 | C32: 10 | D32: 37 | E32: 22 | F32: 27 | G32: 8 | H32: 18 | J32: ='DATA CP CON'!J32 -> 4357 | K32: ='DATA CP CON'!K32 -> 4307 | L32: ='DATA CP CON'!L32 -> 4254 | M32: ='DATA CP CON'!M32 -> 4233 | N32: ='DATA CP CON'!N32 -> 4233 | O32: ='DATA CP CON'!O32 -> 4205 | P32: ='DATA CP CON'!P32 -> 4198 | R32: Shetland Islands | S32: 1.836125775 | T32: 2.321801718 | U32: 8.697696286 | V32: 5.197259627 | W32: 6.378454996 | X32: 1.902497027 | Y32: 4.287756074
A33: South Ayrshire | B33: 92 | C33: 41 | D33: 112 | E33: 72 | F33: 109 | G33: 94 | H33: 84 | J33: ='DATA CP CON'!J33 -> 18074 | K33: ='DATA CP CON'!K33 -> 17833 | L33: ='DATA CP CON'!L33 -> 17798 | M33: ='DATA CP CON'!M33 -> 17760 | N33: ='DATA CP CON'!N33 -> 17716 | O33: ='DATA CP CON'!O33 -> 17638 | P33: ='DATA CP CON'!P33 -> 17608 | R33: South Ayrshire | S33: 5.090184796 | T33: 2.299108395 | U33: 6.292841892 | V33: 4.054054054 | W33: 6.152630391 | X33: 5.329402427 | Y33: 4.770558837
A34: South Lanarkshire | B34: 216 | C34: 287 | D34: 260 | E34: 298 | F34: 271 | G34: 255 | H34: 284 | J34: ='DATA CP CON'!J34 -> 55046 | K34: ='DATA CP CON'!K34 -> 54888 | L34: ='DATA CP CON'!L34 -> 55027 | M34: ='DATA CP CON'!M34 -> 54876 | N34: ='DATA CP CON'!N34 -> 55151 | O34: ='DATA CP CON'!O34 -> 55260 | P34: ='DATA CP CON'!P34 -> 55649 | R34: South Lanarkshire | S34: 3.923990844 | T34: 5.228829617 | U34: 4.724953205 | V34: 5.430424958 | W34: 4.913782162 | X34: 4.614549403 | Y34: 5.103416054
A35: Stirling | B35: 75 | C35: 66 | D35: 85 | E35: 70 | F35: 51 | G35: 80 | H35: 71 | J35: ='DATA CP CON'!J35 -> 15639 | K35: ='DATA CP CON'!K35 -> 15527 | L35: ='DATA CP CON'!L35 -> 15510 | M35: ='DATA CP CON'!M35 -> 15493 | N35: ='DATA CP CON'!N35 -> 15425 | O35: ='DATA CP CON'!O35 -> 15514 | P35: ='DATA CP CON'!P35 -> 15417 | R35: Stirling | S35: 4.79570305 | T35: 4.25066014 | U35: 5.480335268 | V35: 4.518169496 | W35: 3.306320908 | X35: 5.156632719 | Y35: 4.605305831
A36: West Dunbartonshire | B36: 61 | C36: 56 | D36: 83 | E36: 45 | F36: 105 | G36: 112 | H36: 81 | J36: ='DATA CP CON'!J36 -> 15782 | K36: ='DATA CP CON'!K36 -> 15698 | L36: ='DATA CP CON'!L36 -> 15709 | M36: ='DATA CP CON'!M36 -> 15764 | N36: ='DATA CP CON'!N36 -> 15790 | O36: ='DATA CP CON'!O36 -> 15705 | P36: ='DATA CP CON'!P36 -> 15647 | R36: West Dunbartonshire | S36: 3.865162844 | T36: 3.567333418 | U36: 5.283595391 | V36: 2.85460543 | W36: 6.649778341 | X36: 7.131486788 | Y36: 5.176711191
A37: West Lothian | B37: 130 | C37: 176 | D37: 145 | E37: 180 | F37: 134 | G37: 127 | H37: 142 | J37: ='DATA CP CON'!J37 -> 35010 | K37: ='DATA CP CON'!K37 -> 35073 | L37: ='DATA CP CON'!L37 -> 35102 | M37: ='DATA CP CON'!M37 -> 35307 | N37: ='DATA CP CON'!N37 -> 35443 | O37: ='DATA CP CON'!O37 -> 35485 | P37: ='DATA CP CON'!P37 -> 35494 | R37: West Lothian | S37: 3.713224793 | T37: 5.018105095 | U37: 4.130818757 | V37: 5.098139179 | W37: 3.780718336 | X37: 3.578977033 | Y37: 4.000676171
A38: Scotland | B38: 4228 | C38: 4394 | D38: 4540 | E38: 4299 | F38: 4371 | G38: 4316 | H38: 4224 | J38: ='DATA CP CON'!J38 -> 911579 | K38: ='DATA CP CON'!K38 -> 911041 | L38: ='DATA CP CON'!L38 -> 912262 | M38: ='DATA CP CON'!M38 -> 915917 | N38: ='DATA CP CON'!N38 -> 917442 | O38: ='DATA CP CON'!O38 -> 919502 | P38: ='DATA CP CON'!P38 -> 921397 | R38: Scotland | S38: 4.638105968 | T38: 4.823054067 | U38: 4.976640483 | V38: 4.69365674 | W38: 4.764333876 | X38: 4.693845147 | Y38: 4.584343122
A39: Notes
A40: Figures for 2019 are provisional and may be revised with the publication of 2020 statistics.
A41: Cells containing * represent numbers that are supressed to maintain confidentiality.
A42: Population figures source: NRS mid-year population estimates for 2013-2019.
A43: Source: Scottish Government CP Returns

Sheet DATA CP ON REG
A1: Child Protection: On Child Protection Registers: as at 31 July 2012-2018
A3: Number of children on child protection registers: as at 31 July 2013-2019 | J3: Population Aged 0-15 | R3: Number of children on child protection registers per 1,000 children: as at 31 July 2013-2019
A5: Council | B5: 2013 | C5: 2014 | D5: 2015 | E5: 2016 | F5: 2017 | G5: 2018 | H5: 2019 | J5: ='DATA CP CON'!J5 -> 2013 | K5: ='DATA CP CON'!K5 -> 2014 | L5: ='DATA CP CON'!L5 -> 2015 | M5: ='DATA CP CON'!M5 -> 2016 | N5: ='DATA CP CON'!N5 -> 2017 | O5: ='DATA CP CON'!O5 -> 2018 | P5: ='DATA CP CON'!P5 -> 2019 | R5: Council | S5: =B5 -> 2013 | T5: =C5 -> 2014 | U5: 2015 | V5: 2016 | W5: 2017 | X5: 2018 | Y5: 2018
A6: Aberdeen City | B6: 92 | C6: 73 | D6: 98 | E6: 118 | F6: 80 | G6: 68 | H6: 119 | J6: ='DATA CP CON'!J6 -> 33131 | K6: ='DATA CP CON'!K6 -> 33511 | L6: ='DATA CP CON'!L6 -> 33851 | M6: ='DATA CP CON'!M6 -> 34187 | N6: ='DATA CP CON'!N6 -> 34495 | O6: ='DATA CP CON'!O6 -> 34833 | P6: ='DATA CP CON'!P6 -> 35423 | R6: Aberdeen City | S6: =IFERROR(B6*1000/J6,"*") -> 2.776855513 | T6: =IFERROR(C6*1000/K6,"*") -> 2.178389186 | U6: 2.895040028 | V6: 3.451604411 | W6: 2.319176692 | X6: 1.952171791 | Y6: 3.35939926
A7: Aberdeenshire | B7: 52 | C7: 68 | D7: 90 | E7: 64 | F7: 77 | G7: 77 | H7: 103 | J7: ='DATA CP CON'!J7 -> 48112 | K7: ='DATA CP CON'!K7 -> 48669 | L7: ='DATA CP CON'!L7 -> 48856 | M7: ='DATA CP CON'!M7 -> 48871 | N7: ='DATA CP CON'!N7 -> 48888 | O7: ='DATA CP CON'!O7 -> 49033 | P7: ='DATA CP CON'!P7 -> 49016 | R7: Aberdeenshire | S7: =IFERROR(B7*1000/J7,"*") -> 1.08081144 | T7: 1.397193285 | U7: 1.842148354 | V7: 1.309570093 | W7: 1.575028637 | X7: 1.570370975 | Y7: 2.10135466
A8: Angus | B8: 94 | C8: 116 | D8: 89 | E8: 96 | F8: 51 | G8: 64 | H8: 45 | J8: ='DATA CP CON'!J8 -> 19757 | K8: ='DATA CP CON'!K8 -> 19676 | L8: ='DATA CP CON'!L8 -> 19653 | M8: ='DATA CP CON'!M8 -> 19445 | N8: ='DATA CP CON'!N8 -> 19288 | O8: ='DATA CP CON'!O8 -> 19253 | P8: ='DATA CP CON'!P8 -> 19145 | R8: Angus | S8: 4.757807359 | T8: 5.895507217 | U8: 4.528570702 | V8: 4.9370018 | W8: 2.644131066 | X8: 3.324157274 | Y8: 2.350483155
A9: Argyll & Bute | B9: 16 | C9: 21 | D9: 33 | E9: 40 | F9: 31 | G9: 31 | H9: 28 | J9: ='DATA CP CON'!J9 -> 13814 | K9: ='DATA CP CON'!K9 -> 13575 | L9: ='DATA CP CON'!L9 -> 13292 | M9: ='DATA CP CON'!M9 -> 13238 | N9: ='DATA CP CON'!N9 -> 13163 | O9: ='DATA CP CON'!O9 -> 13024 | P9: ='DATA CP CON'!P9 -> 12906 | R9: Argyll & Bute | S9: 1.158245258 | T9: 1.546961326 | U9: 2.482696359 | V9: 3.021604472 | W9: 2.355086227 | X9: 2.38022113 | Y9: 2.16953355
A10: City of Edinburgh | B10: 262 | C10: 313 | D10: 255 | E10: 287 | F10: 235 | G10: 189 | H10: 122 | J10: ='DATA CP CON'!J10 -> 74440 | K10: ='DATA CP CON'!K10 -> 75329 | L10: ='DATA CP CON'!L10 -> 76108 | M10: ='DATA CP CON'!M10 -> 77364 | N10: ='DATA CP CON'!N10 -> 78052 | O10: ='DATA CP CON'!O10 -> 78501 | P10: ='DATA CP CON'!P10 -> 79067 | R10: City of Edinburgh | S10: 3.519613111 | T10: 4.155106267 | U10: 3.350501918 | V10: 3.709735794 | W10: 3.010813304 | X10: 2.407612642 | Y10: 1.542995181
A11: Clackmannanshire | B11: 32 | C11: 47 | D11: 57 | E11: 18 | F11: 26 | G11: 37 | H11: 25 | J11: ='DATA CP CON'!J11 -> 9180 | K11: ='DATA CP CON'!K11 -> 9087 | L11: ='DATA CP CON'!L11 -> 9029 | M11: ='DATA CP CON'!M11 -> 9024 | N11: ='DATA CP CON'!N11 -> 9020 | O11: ='DATA CP CON'!O11 -> 8980 | P11: ='DATA CP CON'!P11 -> 8946 | R11: Clackmannanshire | S11: 3.48583878 | T11: 5.172224056 | U11: 6.312991472 | V11: 1.994680851 | W11: 2.88248337 | X11: 4.120267261 | Y11: 2.794545048
A12: Dumfries and Galloway | B12: 78 | C12: 112 | D12: 88 | E12: 61 | F12: 78 | G12: 93 | H12: 25 | J12: ='DATA CP CON'!J12 -> 24265 | K12: ='DATA CP CON'!K12 -> 23927 | L12: ='DATA CP CON'!L12 -> 23676 | M12: ='DATA CP CON'!M12 -> 23614 | N12: ='DATA CP CON'!N12 -> 23487 | O12: ='DATA CP CON'!O12 -> 23424 | P12: ='DATA CP CON'!P12 -> 23243 | R12: Dumfries and Galloway | S12: 3.214506491 | T12: 4.680904418 | U12: 3.716844061 | V12: 2.583213348 | W12: 3.320986077 | X12: 3.970286885 | Y12: 1.075592652
A13: Dundee City | B13: 46 | C13: 67 | D13: 71 | E13: 79 | F13: 69 | G13: 75 | H13: 91 | J13: ='DATA CP CON'!J13 -> 23753 | K13: ='DATA CP CON'!K13 -> 23716 | L13: ='DATA CP CON'!L13 -> 23798 | M13: ='DATA CP CON'!M13 -> 23849 | N13: ='DATA CP CON'!N13 -> 23998 | O13: ='DATA CP CON'!O13 -> 24016 | P13: ='DATA CP CON'!P13 -> 24044 | R13: Dundee City | S13: 1.936597482 | T13: 2.825096981 | U13: 2.983443987 | V13: 3.312507862 | W13: 2.875239603 | X13: 3.122918055 | Y13: 3.784727999
A14: East Ayrshire | B14: 61 | C14: 49 | D14: 59 | E14: 39 | F14: 96 | G14: 107 | H14: 98 | J14: ='DATA CP CON'!J14 -> 21380 | K14: ='DATA CP CON'!K14 -> 21169 | L14: ='DATA CP CON'!L14 -> 21191 | M14: ='DATA CP CON'!M14 -> 21259 | N14: ='DATA CP CON'!N14 -> 21164 | O14: ='DATA CP CON'!O14 -> 21119 | P14: ='DATA CP CON'!P14 -> 21053 | R14: East Ayrshire | S14: 2.85313377 | T14: 2.314705466 | U14: 2.78420084 | V14: 1.834517146 | W14: 4.536004536 | X14: 5.066527771 | Y14: 4.654918539
A15: East Dunbartonshire | B15: 43 | C15: 43 | D15: 51 | E15: 38 | F15: 42 | G15: 57 | H15: 55 | J15: ='DATA CP CON'!J15 -> 18326 | K15: ='DATA CP CON'!K15 -> 18384 | L15: ='DATA CP CON'!L15 -> 18544 | M15: ='DATA CP CON'!M15 -> 18810 | N15: ='DATA CP CON'!N15 -> 19061 | O15: ='DATA CP CON'!O15 -> 19224 | P15: ='DATA CP CON'!P15 -> 19398 | R15: East Dunbartonshire | S15: 2.346393103 | T15: 2.338990426 | U15: 2.750215703 | V15: 2.02020202 | W15: 2.203452075 | X15: 2.965043695 | Y15: 2.83534385
A16: East Lothian | B16: 49 | C16: 67 | D16: 26 | E16: 47 | F16: 45 | G16: 29 | H16: 55 | J16: ='DATA CP CON'!J16 -> 18729 | K16: ='DATA CP CON'!K16 -> 18807 | L16: ='DATA CP CON'!L16 -> 18915 | M16: ='DATA CP CON'!M16 -> 18989 | N16: ='DATA CP CON'!N16 -> 19051 | O16: ='DATA CP CON'!O16 -> 19350 | P16: ='DATA CP CON'!P16 -> 19700 | R16: East Lothian | S16: 2.616263549 | T16: 3.562503323 | U16: 1.374570447 | V16: 2.475117173 | W16: 2.362080731 | X16: 1.49870801 | Y16: 2.791878173
A17: East Renfrewshire | B17: 26 | C17: 36 | D17: 33 | E17: 12 | F17: 20 | G17: 9 | H17: 15 | J17: ='DATA CP CON'!J17 -> 18015 | K17: ='DATA CP CON'!K17 -> 18206 | L17: ='DATA CP CON'!L17 -> 18381 | M17: ='DATA CP CON'!M17 -> 18662 | N17: ='DATA CP CON'!N17 -> 19029 | O17: ='DATA CP CON'!O17 -> 19322 | P17: ='DATA CP CON'!P17 -> 19525 | R17: East Renfrewshire | S17: 1.443241743 | T17: 1.977370098 | U17: 1.795332136 | V17: 0.6430178973 | W17: 1.051027379 | X17: 0.4657902909 | Y17: 0.7682458387
A18: Falkirk | B18: 70 | C18: 85 | D18: 75 | E18: 82 | F18: 80 | G18: 88 | H18: 125 | J18: ='DATA CP CON'!J18 -> 28309 | K18: ='DATA CP CON'!K18 -> 28288 | L18: ='DATA CP CON'!L18 -> 28318 | M18: ='DATA CP CON'!M18 -> 28359 | N18: ='DATA CP CON'!N18 -> 28329 | O18: ='DATA CP CON'!O18 -> 28230 | P18: ='DATA CP CON'!P18 -> 28112 | R18: Falkirk | S18: 2.472711858 | T18: 3.004807692 | U18: 2.648492125 | V18: 2.89149829 | W18: 2.823961312 | X18: 3.117251151 | Y18: 4.446499715
A19: Fife | B19: 213 | C19: 230 | D19: 182 | E19: 157 | F19: 172 | G19: 170 | H19: 209 | J19: ='DATA CP CON'!J19 -> 64186 | K19: ='DATA CP CON'!K19 -> 64070 | L19: ='DATA CP CON'!L19 -> 64081 | M19: ='DATA CP CON'!M19 -> 64372 | N19: ='DATA CP CON'!N19 -> 64333 | O19: ='DATA CP CON'!O19 -> 64473 | P19: ='DATA CP CON'!P19 -> 64552 | R19: Fife | S19: 3.318480666 | T19: 3.58982363 | U19: 2.840155428 | V19: 2.438948611 | W19: 2.673588982 | X19: 2.636762676 | Y19: 3.237699839
A20: Glasgow City | B20: 431 | C20: 482 | D20: 504 | E20: 511 | F20: 405 | G20: 308 | H20: 414 | J20: ='DATA CP CON'!J20 -> 96447 | K20: ='DATA CP CON'!K20 -> 96709 | L20: ='DATA CP CON'!L20 -> 97532 | M20: ='DATA CP CON'!M20 -> 98487 | N20: ='DATA CP CON'!N20 -> 99137 | O20: ='DATA CP CON'!O20 -> 99938 | P20: ='DATA CP CON'!P20 -> 100666 | R20: Glasgow City | S20: 4.468775597 | T20: 4.984024238 | U20: 5.167534758 | V20: 5.188502036 | W20: 4.085255757 | X20: 3.081910785 | Y20: 4.112610017
A21: Highland | B21: 80 | C21: 106 | D21: 79 | E21: 104 | F21: 102 | G21: 81 | H21: 91 | J21: ='DATA CP CON'!J21 -> 40530 | K21: ='DATA CP CON'!K21 -> 40126 | L21: ='DATA CP CON'!L21 -> 39956 | M21: ='DATA CP CON'!M21 -> 39972 | N21: ='DATA CP CON'!N21 -> 39555 | O21: ='DATA CP CON'!O21 -> 39335 | P21: ='DATA CP CON'!P21 -> 39036 | R21: Highland | S21: 1.973846533 | T21: 2.641678712 | U21: 1.977174892 | V21: 2.601821275 | W21: 2.578687903 | X21: 2.059234778 | Y21: 2.331181474
A22: Inverclyde | B22: 24 | C22: 26 | D22: 42 | E22: 40 | F22: 33 | G22: 31 | H22: 48 | J22: ='DATA CP CON'!J22 -> 13241 | K22: ='DATA CP CON'!K22 -> 13143 | L22: ='DATA CP CON'!L22 -> 12966 | M22: ='DATA CP CON'!M22 -> 12851 | N22: ='DATA CP CON'!N22 -> 12701 | O22: ='DATA CP CON'!O22 -> 12628 | P22: ='DATA CP CON'!P22 -> 12603 | R22: Inverclyde | S22: 1.812551922 | T22: 1.978239367 | U22: 3.239241092 | V22: 3.112598241 | W22: 2.598220613 | X22: 2.454862211 | Y22: 3.808616996
A23: Midlothian | B23: 59 | C23: 54 | D23: 29 | E23: 51 | F23: 64 | G23: 45 | H23: 49 | J23: ='DATA CP CON'!J23 -> 16061 | K23: ='DATA CP CON'!K23 -> 16365 | L23: ='DATA CP CON'!L23 -> 16624 | M23: ='DATA CP CON'!M23 -> 16884 | N23: ='DATA CP CON'!N23 -> 17229 | O23: ='DATA CP CON'!O23 -> 17590 | P23: ='DATA CP CON'!P23 -> 17953 | R23: Midlothian | S23: 3.673494801 | T23: 3.299725023 | U23: 1.744465833 | V23: 3.02061123 | W23: 3.714667131 | X23: 2.558271745 | Y23: 2.729348855
A24: Moray | B24: 64 | C24: 45 | D24: 45 | E24: 64 | F24: 79 | G24: 62 | H24: 47 | J24: ='DATA CP CON'!J24 -> 16611 | K24: ='DATA CP CON'!K24 -> 16591 | L24: ='DATA CP CON'!L24 -> 16502 | M24: ='DATA CP CON'!M24 -> 16527 | N24: ='DATA CP CON'!N24 -> 16362 | O24: ='DATA CP CON'!O24 -> 16173 | P24: ='DATA CP CON'!P24 -> 16145 | R24: Moray | S24: 3.852868581 | T24: 2.712313905 | U24: 2.726942189 | V24: 3.872451141 | W24: 4.828260604 | X24: 3.833549743 | Y24: 2.911117993
A25: Na h-Eileanan Siar | B25: 14 | C25: 6 | D25: * | E25: * | F25: * | G25: 4 | H25: * | J25: ='DATA CP CON'!J25 -> 4460 | K25: ='DATA CP CON'!K25 -> 4431 | L25: ='DATA CP CON'!L25 -> 4348 | M25: ='DATA CP CON'!M25 -> 4307 | N25: ='DATA CP CON'!N25 -> 4367 | O25: ='DATA CP CON'!O25 -> 4328 | P25: ='DATA CP CON'!P25 -> 4254 | R25: Na h-Eileanan Siar | S25: 3.139013453 | T25: 1.354096141 | U25: * | V25: * | W25: * | X25: 0.9242144177 | Y25: *
A26: North Ayrshire | B26: 92 | C26: 107 | D26: 90 | E26: 68 | F26: 60 | G26: 154 | H26: 104 | J26: ='DATA CP CON'!J26 -> 23675 | K26: ='DATA CP CON'!K26 -> 23369 | L26: ='DATA CP CON'!L26 -> 23196 | M26: ='DATA CP CON'!M26 -> 23128 | N26: ='DATA CP CON'!N26 -> 22901 | O26: ='DATA CP CON'!O26 -> 22780 | P26: ='DATA CP CON'!P26 -> 22468 | R26: North Ayrshire | S26: 3.885955649 | T26: 4.578715392 | U26: 3.879979307 | V26: 2.940159114 | W26: 2.619972927 | X26: 6.760316067 | Y26: 4.628805412
A27: North Lanarkshire | B27: 96 | C27: 79 | D27: 99 | E27: 115 | F27: 131 | G27: 95 | H27: 162 | J27: ='DATA CP CON'!J27 -> 63940 | K27: ='DATA CP CON'!K27 -> 63555 | L27: ='DATA CP CON'!L27 -> 63131 | M27: ='DATA CP CON'!M27 -> 63299 | N27: ='DATA CP CON'!N27 -> 63011 | O27: ='DATA CP CON'!O27 -> 62955 | P27: ='DATA CP CON'!P27 -> 62836 | R27: North Lanarkshire | S27: 1.50140757 | T27: 1.243017859 | U27: 1.568167778 | V27: 1.816774357 | W27: 2.079002079 | X27: 1.509014375 | Y27: 2.57813992
A28: Orkney Islands | B28: * | C28: 6 | D28: * | E28: * | F28: * | G28: 5 | H28: * | J28: ='DATA CP CON'!J28 -> 3526 | K28: ='DATA CP CON'!K28 -> 3508 | L28: ='DATA CP CON'!L28 -> 3489 | M28: ='DATA CP CON'!M28 -> 3516 | N28: ='DATA CP CON'!N28 -> 3545 | O28: ='DATA CP CON'!O28 -> 3544 | P28: ='DATA CP CON'!P28 -> 3582 | R28: Orkney Islands | S28: * | T28: 1.710376283 | U28: * | V28: * | W28: * | X28: 1.410835214 | Y28: *
A29: Perth and Kinross | B29: 49 | C29: 61 | D29: 82 | E29: 73 | F29: 81 | G29: 75 | H29: 78 | J29: ='DATA CP CON'!J29 -> 24640 | K29: ='DATA CP CON'!K29 -> 24462 | L29: ='DATA CP CON'!L29 -> 24619 | M29: ='DATA CP CON'!M29 -> 24514 | N29: ='DATA CP CON'!N29 -> 24453 | O29: ='DATA CP CON'!O29 -> 24425 | P29: ='DATA CP CON'!P29 -> 24421 | R29: Perth and Kinross | S29: 1.988636364 | T29: 2.493663642 | U29: 3.330760795 | V29: 2.977890185 | W29: 3.312476997 | X29: 3.07062436 | Y29: 3.193972401
A30: Renfrewshire | B30: 109 | C30: 78 | D30: 85 | E30: 72 | F30: 107 | G30: 103 | H30: 83 | J30: ='DATA CP CON'!J30 -> 30113 | K30: ='DATA CP CON'!K30 -> 29973 | L30: ='DATA CP CON'!L30 -> 29831 | M30: ='DATA CP CON'!M30 -> 29954 | N30: ='DATA CP CON'!N30 -> 30039 | O30: ='DATA CP CON'!O30 -> 30171 | P30: ='DATA CP CON'!P30 -> 30267 | R30: Renfrewshire | S30: 3.619699133 | T30: 2.602342108 | U30: 2.849384868 | V30: 2.403685651 | W30: 3.56203602 | X30: 3.41387425 | Y30: 2.742260548
A31: Scottish Borders | B31: 25 | C31: 16 | D31: 24 | E31: 67 | F31: 39 | G31: 50 | H31: 46 | J31: ='DATA CP CON'!J31 -> 19030 | K31: ='DATA CP CON'!K31 -> 19069 | L31: ='DATA CP CON'!L31 -> 18975 | M31: ='DATA CP CON'!M31 -> 19002 | N31: ='DATA CP CON'!N31 -> 19026 | O31: ='DATA CP CON'!O31 -> 19046 | P31: ='DATA CP CON'!P31 -> 19023 | R31: Scottish Borders | S31: 1.313715187 | T31: 0.8390581572 | U31: 1.264822134 | V31: 3.525944637 | W31: 2.049826553 | X31: 2.625223144 | Y31: 2.418125427
A32: Shetland Islands | B32: * | C32: 19 | D32: 13 | E32: * | F32: * | G32: 8 | H32: 12 | J32: ='DATA CP CON'!J32 -> 4357 | K32: ='DATA CP CON'!K32 -> 4307 | L32: ='DATA CP CON'!L32 -> 4254 | M32: ='DATA CP CON'!M32 -> 4233 | N32: ='DATA CP CON'!N32 -> 4233 | O32: ='DATA CP CON'!O32 -> 4205 | P32: ='DATA CP CON'!P32 -> 4198 | R32: Shetland Islands | S32: * | T32: 4.411423264 | U32: 3.055947344 | V32: * | W32: * | X32: 1.902497027 | Y32: 2.85850405
A33: South Ayrshire | B33: 49 | C33: 91 | D33: 61 | E33: 70 | F33: 60 | G33: 44 | H33: 37 | J33: ='DATA CP CON'!J33 -> 18074 | K33: ='DATA CP CON'!K33 -> 17833 | L33: ='DATA CP CON'!L33 -> 17798 | M33: ='DATA CP CON'!M33 -> 17760 | N33: ='DATA CP CON'!N33 -> 17716 | O33: ='DATA CP CON'!O33 -> 17638 | P33: ='DATA CP CON'!P33 -> 17608 | R33: South Ayrshire | S33: 2.711076685 | T33: 5.10289912 | U33: 3.427351388 | V33: 3.941441441 | W33: 3.386769022 | X33: 2.494613902 | Y33: 2.101317583
A34: South Lanarkshire | B34: 198 | C34: 175 | D34: 187 | E34: 162 | F34: 140 | G34: 180 | H34: 116 | J34: ='DATA CP CON'!J34 -> 55046 | K34: ='DATA CP CON'!K34 -> 54888 | L34: ='DATA CP CON'!L34 -> 55027 | M34: ='DATA CP CON'!M34 -> 54876 | N34: ='DATA CP CON'!N34 -> 55151 | O34: ='DATA CP CON'!O34 -> 55260 | P34: ='DATA CP CON'!P34 -> 55649 | R34: South Lanarkshire | S34: 3.596991607 | T34: 3.188310742 | U34: 3.398331728 | V34: 2.952110212 | W34: 2.53848525 | X34: 3.25732899 | Y34: 2.084493881
A35: Stirling | B35: 57 | C35: 62 | D35: 43 | E35: 44 | F35: 47 | G35: 55 | H35: 42 | J35: ='DATA CP CON'!J35 -> 15639 | K35: ='DATA CP CON'!K35 -> 15527 | L35: ='DATA CP CON'!L35 -> 15510 | M35: ='DATA CP CON'!M35 -> 15493 | N35: ='DATA CP CON'!N35 -> 15425 | O35: ='DATA CP CON'!O35 -> 15514 | P35: ='DATA CP CON'!P35 -> 15417 | R35: Stirling | S35: 3.644734318 | T35: 3.993044374 | U35: 2.7724049 | V35: 2.839992255 | W35: 3.047001621 | X35: 3.545184994 | Y35: 2.724265421
A36: West Dunbartonshire | B36: 32 | C36: 41 | D36: 16 | E36: 48 | F36: 71 | G36: 54 | H36: 44 | J36: ='DATA CP CON'!J36 -> 15782 | K36: ='DATA CP CON'!K36 -> 15698 | L36: ='DATA CP CON'!L36 -> 15709 | M36: ='DATA CP CON'!M36 -> 15764 | N36: ='DATA CP CON'!N36 -> 15790 | O36: ='DATA CP CON'!O36 -> 15705 | P36: ='DATA CP CON'!P36 -> 15647 | R36: West Dunbartonshire | S36: 2.02762641 | T36: 2.611797681 | U36: 1.018524413 | V36: 3.044912459 | W36: 4.496516783 | X36: 3.438395415 | Y36: 2.812040647
A37: West Lothian | B37: 119 | C37: 96 | D37: 127 | E37: 67 | F37: 70 | G37: 82 | H37: 104 | J37: ='DATA CP CON'!J37 -> 35010 | K37: ='DATA CP CON'!K37 -> 35073 | L37: ='DATA CP CON'!L37 -> 35102 | M37: ='DATA CP CON'!M37 -> 35307 | N37: ='DATA CP CON'!N37 -> 35443 | O37: ='DATA CP CON'!O37 -> 35485 | P37: ='DATA CP CON'!P37 -> 35494 | R37: West Lothian | S37: 3.399028849 | T37: 2.737148234 | U37: 3.618027463 | V37: 1.897640694 | W37: 1.975002116 | X37: 2.310835564 | Y37: 2.930072688
A38: Scotland | B38: 2645 | C38: 2877 | D38: 2741 | E38: 2715 | F38: 2600 | G38: 2530 | H38: 2599 | J38: ='DATA CP CON'!J38 -> 911579 | K38: ='DATA CP CON'!K38 -> 911041 | L38: ='DATA CP CON'!L38 -> 912262 | M38: ='DATA CP CON'!M38 -> 915917 | N38: ='DATA CP CON'!N38 -> 917442 | O38: ='DATA CP CON'!O38 -> 919502 | P38: ='DATA CP CON'!P38 -> 921397 | R38: Scotland | S38: 2.901558724 | T38: 3.157925933 | U38: 3.004619287 | V38: 2.964242393 | W38: 2.833966616 | X38: 2.751489393 | Y38: 2.820716803
A39: Notes
A40: Figures for 2019 are provisional and may be revised with the publication of 2020 statistics.
A41: Cells containing * represent numbers that are supressed to maintain confidentiality.
A42: Population figures source: NRS mid-year population estimates for 2013-2019.
A43: Source: Scottish Government CP Returns

Sheet REF EA Name (hidden)
A1: EA Code | B1: EA Name
A3: 100 | B3: Aberdeen City
A4: 110 | B4: Aberdeenshire
A5: 120 | B5: Angus
A6: 130 | B6: Argyll & Bute
A7: 230 | B7: City of Edinburgh
A8: 150 | B8: Clackmannanshire
A9: 170 | B9: Dumfries & Galloway
A10: 180 | B10: Dundee City
A11: 190 | B11: East Ayrshire
A12: 200 | B12: East Dunbartonshire
A13: 210 | B13: East Lothian
A14: 220 | B14: East Renfrewshire
A15: 240 | B15: Falkirk
A16: 250 | B16: Fife
A17: 260 | B17: Glasgow City
A18: 270 | B18: Highland
A19: 280 | B19: Inverclyde
A20: 290 | B20: Midlothian
A21: 300 | B21: Moray
A22: 235 | B22: Na h-Eileanan Siar
A23: 310 | B23: North Ayrshire
A24: 320 | B24: North Lanarkshire
A25: 330 | B25: Orkney Islands
A26: 340 | B26: Perth & Kinross
A27: 350 | B27: Renfrewshire
A28: 355 | B28: Scottish Borders
A29: 360 | B29: Shetland Islands
A30: 370 | B30: South Ayrshire
A31: 380 | B31: South Lanarkshire
A32: 390 | B32: Stirling
A33: 395 | B33: West Dunbartonshire
A34: 400 | B34: West Lothian
B35: [no comparator]

Sheet REF CAS2 (hidden)
A2: 100 | B2: Aberdeen City | C2: City of Edinburgh | D2: **** | E2: Dundee City | F2: *** | G2: South Ayrshire | H2: *** | I2: Argyll and Bute | J2: *** | K2: Renfrewshire | L2: ***
A3: 110 | B3: Aberdeenshire | C3: Stirling | D3: **** | E3: Perth and Kinross | F3: **** | G3: Highland | H3: **** | I3: Scottish Borders | J3: **** | K3: South Lanarkshire | L3: ****
A4: 120 | B4: Angus | C4: Highland | D4: ***** | E4: Dumfries and Galloway | F4: ***** | G4: Moray | H4: ***** | I4: Scottish Borders | J4: **** | K4: South Ayrshire | L4: ****
A5: 130 | B5: Argyll & Bute | C5: South Ayrshire | D5: ***** | E5: Dumfries and Galloway | F5: **** | G5: Scottish Borders | H5: **** | I5: Highland | J5: **** | K5: Angus | L5: ****
A6: 230 | B6: City of Edinburgh | C6: Aberdeen City | D6: **** | E6: Dundee City | F6: ** | G6: South Ayrshire | H6: ** | I6: Argyll and Bute | J6: ** | K6: Renfrewshire | L6: **
A7: 150 | B7: Clackmannanshire | C7: North Lanarkshire | D7: ***** | E7: West Lothian | F7: **** | G7: Falkirk | H7: **** | I7: South Lanarkshire | J7: **** | K7: East Ayrshire | L7: ****
A8: 170 | B8: Dumfries & Galloway | C8: Angus | D8: ***** | E8: Highland | F8: **** | G8: Argyll and Bute | H8: **** | I8: Scottish Borders | J8: **** | K8: Moray | L8: ****
A9: 180 | B9: Dundee City | C9: Aberdeen City | D9: *** | E9: Renfrewshire | F9: *** | G9: Dumfries and Galloway | H9: *** | I9: Inverclyde | J9: *** | K9: South Ayrshire | L9: ***
A10: 190 | B10: East Ayrshire | C10: North Lanarkshire | D10: ***** | E10: Clackmannanshire | F10: **** | G10: Falkirk | H10: **** | I10: North Ayrshire | J10: **** | K10: West Lothian | L10: ****
A11: 200 | B11: East Dunbartonshire | C11: East Renfrewshire | D11: **** | E11: Stirling | F11: **** | G11: East Lothian | H11: **** | I11: Aberdeenshire | J11: *** | K11: Perth and Kinross | L11: ***
A12: 210 | B12: East Lothian | C12: Stirling | D12: **** | E12: Midlothian | F12: **** | G12: Fife | H12: **** | I12: Aberdeenshire | J12: **** | K12: South Lanarkshire | L12: ****
A13: 220 | B13: East Renfrewshire | C13: East Dunbartonshire | D13: **** | E13: East Lothian | F13: **** | G13: Stirling | H13: *** | I13: Aberdeenshire | J13: *** | K13: Midlothian | L13: ***
A14: 240 | B14: Falkirk | C14: South Lanarkshire | D14: **** | E14: Fife | F14: **** | G14: Clackmannanshire | H14: **** | I14: Moray | J14: **** | K14: Angus | L14: ****
A15: 250 | B15: Fife | C15: South Lanarkshire | D15: ***** | E15: Falkirk | F15: **** | G15: Clackmannanshire | H15: **** | I15: West Lothian | J15: **** | K15: Renfrewshire | L15: ****
A16: 260 | B16: Glasgow City | C16: Dundee City | D16: *** | E16: West Dunbartonshire | F16: *** | G16: Inverclyde | H16: *** | I16: Aberdeen City | J16: *** | K16: Renfrewshire | L16: ***
A17: 270 | B17: Highland | C17: Angus | D17: ***** | E17: Scottish Borders | F17: ***** | G17: Dumfries and Galloway | H17: **** | I17: Moray | J17: **** | K17: Argyll and Bute | L17: ****
A18: 280 | B18: Inverclyde | C18: West Dunbartonshire | D18: **** | E18: North Ayrshire | F18: **** | G18: North Lanarkshire | H18: **** | I18: East Ayrshire | J18: **** | K18: Renfrewshire | L18: ****
A19: 290 | B19: Midlothian | C19: West Lothian | D19: **** | E19: Fife | F19: **** | G19: Clackmannanshire | H19: **** | I19: South Lanarkshire | J19: **** | K19: East Lothian | L19: ****
A20: 300 | B20: Moray | C20: Angus | D20: ***** | E20: Highland | F20: **** | G20: Dumfries and Galloway | H20: **** | I20: Falkirk | J20: **** | K20: Scottish Borders | L20: ****
A21: 235 | B21: Na h-Eileanan Siar | C21: Orkney Islands | D21: **** | E21: Dumfries and Galloway | F21: *** | G21: Scottish Borders | H21: *** | I21: Highland | J21: *** | K21: Moray | L21: ***
A22: 310 | B22: North Ayrshire | C22: North Lanarkshire | D22: **** | E22: Inverclyde | F22: **** | G22: Clackmannanshire | H22: **** | I22: West Dunbartonshire | J22: **** | K22: West Lothian | L22: ****
A23: 320 | B23: North Lanarkshire | C23: Clackmannanshire | D23: ***** | E23: East Ayrshire | F23: ***** | G23: Falkirk | H23: **** | I23: West Lothian | J23: **** | K23: North Ayrshire | L23: ****
A24: 330 | B24: Orkney Islands | C24: Scottish Borders | D24: **** | E24: Highland | F24: **** | G24: Na h-Eileanan Siar | H24: **** | I24: Moray | J24: **** | K24: Shetland Islands | L24: ****
A25: 340 | B25: Perth & Kinross | C25: Scottish Borders | D25: **** | E25: Argyll and Bute | F25: **** | G25: Aberdeenshire | H25: **** | I25: Stirling | J25: **** | K25: Highland | L25: ****
A26: 350 | B26: Renfrewshire | C26: Fife | D26: **** | E26: Falkirk | F26: **** | G26: Clackmannanshire | H26: **** | I26: West Dunbartonshire | J26: **** | K26: South Lanarkshire | L26: ****
A27: 355 | B27: Scottish Borders | C27: Highland | D27: ***** | E27: Angus | F27: **** | G27: Dumfries and Galloway | H27: **** | I27: Argyll and Bute | J27: **** | K27: Perth and Kinross | L27: ****
A28: 360 | B28: Shetland Islands | C28: Orkney Islands | D28: **** | E28: Moray | F28: **** | G28: Highland | H28: **** | I28: Scottish Borders | J28: **** | K28: Angus | L28: ***
A29: 370 | B29: South Ayrshire | C29: Argyll and Bute | D29: ***** | E29: Angus | F29: **** | G29: Dumfries and Galloway | H29: **** | I29: Highland | J29: **** | K29: Scottish Borders | L29: ****
A30: 380 | B30: South Lanarkshire | C30: Fife | D30: ***** | E30: Falkirk | F30: **** | G30: West Lothian | H30: **** | I30: Clackmannanshire | J30: **** | K30: North Lanarkshire | L30: ****
A31: 390 | B31: Stirling | C31: Aberdeenshire | D31: **** | E31: Perth and Kinross | F31: **** | G31: East Lothian | H31: **** | I31: South Ayrshire | J31: **** | K31: Fife | L31: ****
A32: 395 | B32: West Dunbartonshire | C32: Inverclyde | D32: **** | E32: Renfrewshire | F32: **** | G32: North Ayrshire | H32: **** | I32: Clackmannanshire | J32: **** | K32: Midlothian | L32: ****
A33: 400 | B33: West Lothian | C33: Clackmannanshire | D33: **** | E33: South Lanarkshire | F33: **** | G33: Midlothian | H33: **** | I33: North Lanarkshire | J33: **** | K33: Fife | L33: ****

Sheet REF CAs (hidden)
A1: 1 | B1: =INDEX($J$1:$K$32,MATCH(C39,$J$1:$J$32,0),2) -> 5 | C1: =INDEX($J$1:$K$32,MATCH(D39,$J$1:$J$32,0),2) -> 8 | D1: 28 | E1: 4 | F1: 25 | I1: Aberdeen City | J1: Aberdeen City | K1: 1
A2: 2 | B2: =INDEX($J$1:$K$32,MATCH(C40,$J$1:$J$32,0),2) -> 30 | C2: 24 | D2: 16 | E2: 26 | F2: 29 | I2: Aberdeenshire | J2: Aberdeenshire | K2: 2
A3: 3 | B3: 16 | C3: 7 | D3: 19 | E3: 26 | F3: 28 | I3: Angus | J3: Angus | K3: 3
A4: 4 | B4: 28 | C4: 7 | D4: 26 | E4: 16 | F4: 3 | I4: Argyll and Bute | J4: Argyll and Bute | K4: 4
A5: 5 | B5: 1 | C5: 8 | D5: 28 | E5: 4 | F5: 25 | I5: Clackmannanshire | J5: City of Edinburgh | K5: 5
A6: 6 | B6: 22 | C6: 32 | D6: 13 | E6: 29 | F6: 9 | I6: Dumfries and Galloway | J6: Clackmannanshire | K6: 6
A7: 7 | B7: 3 | C7: 16 | D7: 4 | E7: 26 | F7: 19 | I7: Dundee City | J7: Dumfries and Galloway | K7: 7
A8: 8 | B8: 1 | C8: 25 | D8: 7 | E8: 17 | F8: 28 | I8: East Ayrshire | J8: Dundee City | K8: 8
A9: 9 | B9: 22 | C9: 6 | D9: 13 | E9: 21 | F9: 32 | I9: East Dunbartonshire | J9: East Ayrshire | K9: 9
A10: 10 | B10: 12 | C10: 30 | D10: 11 | E10: 2 | F10: 24 | I10: East Lothian | J10: East Dunbartonshire | K10: 10
A11: 11 | B11: 30 | C11: 18 | D11: 14 | E11: 2 | F11: 29 | I11: East Renfrewshire | J11: East Lothian | K11: 11
A12: 12 | B12: 10 | C12: 11 | D12: 30 | E12: 2 | F12: 18 | I12: Edinburgh | J12: East Renfrewshire | K12: 12
A13: 13 | B13: 29 | C13: 14 | D13: 6 | E13: 19 | F13: 3 | I13: Eilean Siar | J13: Falkirk | K13: 13
A14: 14 | B14: 29 | C14: 13 | D14: 6 | E14: 32 | F14: 25 | I14: Falkirk | J14: Fife | K14: 14
A15: 15 | B15: 8 | C15: 31 | D15: 17 | E15: 1 | F15: 25 | I15: Fife | J15: Glasgow City | K15: 15
A16: 16 | B16: 3 | C16: 26 | D16: 7 | E16: 19 | F16: 4 | I16: Glasgow City | J16: Highland | K16: 16
A17: 17 | B17: 31 | C17: 21 | D17: 22 | E17: 9 | F17: 25 | I17: Highland | J17: Inverclyde | K17: 17
A18: 18 | B18: =INDEX($J$1:$K$32,MATCH(C56,$J$1:$J$32,0),2) -> 32 | C18: 14 | D18: 6 | E18: 29 | F18: 11 | I18: Inverclyde | J18: Midlothian | K18: 18
A19: 19 | B19: 3 | C19: 16 | D19: 7 | E19: 13 | F19: 26 | I19: Midlothian | J19: Moray | K19: 19
A20: 20 | B20: 23 | C20: 7 | D20: 26 | E20: 16 | F20: 19 | I20: Moray | J20: Na h-Eileanan Siar | K20: 20
A21: 21 | B21: 22 | C21: 17 | D21: 6 | E21: 31 | F21: 32 | I21: North Ayrshire | J21: North Ayrshire | K21: 21
A22: 22 | B22: 6 | C22: 9 | D22: 13 | E22: 32 | F22: 21 | I22: North Lanarkshire | J22: North Lanarkshire | K22: 22
A23: 23 | B23: 26 | C23: 16 | D23: 20 | E23: 19 | F23: 27 | I23: Orkney Islands | J23: Orkney Islands | K23: 23
A24: 24 | B24: 26 | C24: 4 | D24: 2 | E24: 30 | F24: 16 | I24: Perth and Kinross | J24: Perth and Kinross | K24: 24
A25: 25 | B25: 14 | C25: 13 | D25: 6 | E25: 31 | F25: 29 | I25: Renfrewshire | J25: Renfrewshire | K25: 25
A26: 26 | B26: 16 | C26: 3 | D26: 7 | E26: 4 | F26: 24 | I26: Scottish Borders | J26: Scottish Borders | K26: 26
A27: 27 | B27: 23 | C27: 19 | D27: 16 | E27: 26 | F27: 3 | I27: Shetland Islands | J27: Shetland Islands | K27: 27
A28: 28 | B28: 4 | C28: 3 | D28: 7 | E28: 16 | F28: 26 | I28: South Ayrshire | J28: South Ayrshire | K28: 28
A29: 29 | B29: 14 | C29: 13 | D29: 32 | E29: 6 | F29: 22 | I29: South Lanarkshire | J29: South Lanarkshire | K29: 29
A30: 30 | B30: 2 | C30: 24 | D30: 11 | E30: 28 | F30: 14 | I30: Stirling | J30: Stirling | K30: 30
A31: 31 | B31: 17 | C31: 25 | D31: 21 | E31: 6 | F31: 18 | I31: West Dunbartonshire | J31: West Dunbartonshire | K31: 31
A32: 32 | B32: 6 | C32: 29 | D32: 18 | E32: 22 | F32: 14 | I32: West Lothian | J32: West Lothian | K32: 32
A39: 1 | B39: Aberdeen City | C39: City of Edinburgh | D39: Dundee City | E39: South Ayrshire | F39: Argyll and Bute | G39: Renfrewshire
A40: 2 | B40: Aberdeenshire | C40: Stirling | D40: Perth and Kinross | E40: Highland | F40: Scottish Borders | G40: South Lanarkshire
A41: 3 | B41: Angus | C41: Highland | D41: Dumfries and Galloway | E41: Moray | F41: Scottish Borders | G41: South Ayrshire
A42: 4 | B42: Argyll & Bute | C42: South Ayrshire | D42: Dumfries and Galloway | E42: Scottish Borders | F42: Highland | G42: Angus
A43: 5 | B43: City of Edinburgh | C43: Aberdeen City | D43: Dundee City | E43: South Ayrshire | F43: Argyll and Bute | G43: Renfrewshire
A44: 6 | B44: Clackmannanshire | C44: North Lanarkshire | D44: West Lothian | E44: Falkirk | F44: South Lanarkshire | G44: East Ayrshire
A45: 7 | B45: Dumfries & Galloway | C45: Angus | D45: Highland | E45: Argyll and Bute | F45: Scottish Borders | G45: Moray
A46: 8 | B46: Dundee City | C46: Aberdeen City | D46: Renfrewshire | E46: Dumfries and Galloway | F46: Inverclyde | G46: South Ayrshire
A47: 9 | B47: East Ayrshire | C47: North Lanarkshire | D47: Clackmannanshire | E47: Falkirk | F47: North Ayrshire | G47: West Lothian
A48: 10 | B48: East Dunbartonshire | C48: East Renfrewshire | D48: Stirling | E48: East Lothian | F48: Aberdeenshire | G48: Perth and Kinross
A49: 11 | B49: East Lothian | C49: Stirling | D49: Midlothian | E49: Fife | F49: Aberdeenshire | G49: South Lanarkshire
A50: 12 | B50: East Renfrewshire | C50: East Dunbartonshire | D50: East Lothian | E50: Stirling | F50: Aberdeenshire | G50: Midlothian
A51: 13 | B51: Falkirk | C51: South Lanarkshire | D51: Fife | E51: Clackmannanshire | F51: Moray | G51: Angus
A52: 14 | B52: Fife | C52: South Lanarkshire | D52: Falkirk | E52: Clackmannanshire | F52: West Lothian | G52: Renfrewshire
A53: 15 | B53: Glasgow City | C53: Dundee City | D53: West Dunbartonshire | E53: Inverclyde | F53: Aberdeen City | G53: Renfrewshire
A54: 16 | B54: Highland | C54: Angus | D54: Scottish Borders | E54: Dumfries and Galloway | F54: Moray | G54: Argyll and Bute
A55: 17 | B55: Inverclyde | C55: West Dunbartonshire | D55: North Ayrshire | E55: North Lanarkshire | F55: East Ayrshire | G55: Renfrewshire
A56: 18 | B56: Midlothian | C56: West Lothian | D56: Fife | E56: Clackmannanshire | F56: South Lanarkshire | G56: East Lothian
A57: 19 | B57: Moray | C57: Angus | D57: Highland | E57: Dumfries and Galloway | F57: Falkirk | G57: Scottish Borders
A58: 20 | B58: Na h-Eileanan Siar | C58: Orkney Islands | D58: Dumfries and Galloway | E58: Scottish Borders | F58: Highland | G58: Moray
A59: 21 | B59: North Ayrshire | C59: North Lanarkshire | D59: Inverclyde | E59: Clackmannanshire | F59: West Dunbartonshire | G59: West Lothian
A60: 22 | B60: North Lanarkshire | C60: Clackmannanshire | D60: East Ayrshire | E60: Falkirk | F60: West Lothian | G60: North Ayrshire
A61: 23 | B61: Orkney Islands | C61: Scottish Borders | D61: Highland | E61: Na h-Eileanan Siar | F61: Moray | G61: Shetland Islands
A62: 24 | B62: Perth & Kinross | C62: Scottish Borders | D62: Argyll and Bute | E62: Aberdeenshire | F62: Stirling | G62: Highland
A63: 25 | B63: Renfrewshire | C63: Fife | D63: Falkirk | E63: Clackmannanshire | F63: West Dunbartonshire | G63: South Lanarkshire
A64: 26 | B64: Scottish Borders | C64: Highland | D64: Angus | E64: Dumfries and Galloway | F64: Argyll and Bute | G64: Perth and Kinross
A65: 27 | B65: Shetland Islands | C65: Orkney Islands | D65: Moray | E65: Highland | F65: Scottish Borders | G65: Angus
A66: 28 | B66: South Ayrshire | C66: Argyll and Bute | D66: Angus | E66: Dumfries and Galloway | F66: Highland | G66: Scottish Borders
A67: 29 | B67: South Lanarkshire | C67: Fife | D67: Falkirk | E67: West Lothian | F67: Clackmannanshire | G67: North Lanarkshire
A68: 30 | B68: Stirling | C68: Aberdeenshire | D68: Perth and Kinross | E68: East Lothian | F68: South Ayrshire | G68: Fife
A69: 31 | B69: West Dunbartonshire | C69: Inverclyde | D69: Renfrewshire | E69: North Ayrshire | F69: Clackmannanshire | G69: Midlothian
A70: 32 | B70: West Lothian | C70: Clackmannanshire | D70: South Lanarkshire | E70: Midlothian | F70: North Lanarkshire | G70: Fife
